{"text_format":"1","workbook":"xlsx","n_sheets":3,"sheets":["Compte Joint","Feuil2","Feuil3"],"not_rendered":{"charts":2,"images":0,"macros":1,"external_links":0,"defined_names":5,"comments":0,"pivot_tables":0},"unopened":[],"bounds":{"document_bytes":16777216,"sheet_cells":100000,"rows_first":2000,"rows_last":500,"rows_between":2000,"halvings":0,"cell_chars":16384,"cell_head_chars":4096},"cells_cut":0,"cells_raw":0,"read":"whole","date_system":"1900"}

{"sheet":"Compte Joint","index":0,"n_rows":10006,"n_cols":14,"rows_kept":4500,"cut":true,"hidden":false,"merged":[[0,0,0,1]],"bounds":{"rows_first":2000,"rows_last":500,"rows_between":2000,"halvings":0}}
["Saisie des mouvements du compte Joint"]
["Soldes Réel =",{"$f":"LOOKUP(2.1,1/(F2:F10001<>\" \"),F2:F10001)","v":10045},"total débit relevé =",{"$f":"SUM(J6:J10001)","v":10},"total crédit relevé= ",{"$f":"SUM(L6:L10001)","v":265},"soldes relevés=",{"$f":"B5-K3+I3","v":10055}]
[1,null,null,null,null,null,null,null,{"$f":"SUM(I6:I10001)","v":1840},null,{"$f":"SUM(K6:K10001)","v":1785}]
["Date","N° Cheque ou CB","Intitulé","recettes","dépenses","Soldes","Type","pointage banque",null,null,null,null,"Année","Mois"]
["solde depart",10000,null,{"$f":"SUM(D6:D10002)","v":1840},{"$f":"SUM(E6:E10002)","v":1795}]
["2017-04-12","CB","essence leclerc",null,500,{"$f":"B5+D6-E6","v":9500},"Auto","V",{"$f":"IF(H6=0,0,D6)","v":0},{"$f":"IF(H6<>\"p\",0,D6)","v":0},{"$f":"IF(H6=0,0,E6)","v":500},{"$f":"IF(H6<>\"p\",0,E6)","v":0},{"$f":"IF(A6=0,0,YEAR(A6))","v":2017},{"$f":"IF(A6=0,0,MONTH(A6))","v":4}]
["2017-04-13",4444520,"courses géant",null,240,{"$f":"IF(D7-E7=0,\" \",F6+D7-E7)","v":9260},"Alimentation","P",{"$f":"IF(H7=0,0,D7)","v":0},{"$f":"IF(H7<>\"p\",0,D7)","v":0},{"$f":"IF(H7=0,0,E7)","v":240},{"$f":"IF(H7<>\"p\",0,E7)","v":240},{"$f":"IF(A7=0,0,YEAR(A7))","v":2017},{"$f":"IF(A7=0,0,MONTH(A7))","v":4}]
["2017-03-11",4444521,"enfants",null,20,9240,"Kdo","V",0,0,20,0,2017,3]
["2017-03-12",4444522,"loto",30,null,9270,"Jeux","V",30,0,0,0,{"$f":"IF(A9=0,\"\",YEAR(A9))","v":2017},{"$f":"IF(A9=0,\"\",MONTH(A9))","v":3}]
["2017-02-11","CB","carrefour",null,1000,8270,"Equipements Maison","V",0,0,1000,0,2017,2]
["2017-03-12","CB","salaire",1800,null,10070,"Salaire","V",1800,0,0,0,2017,3]
["2017-03-13","CB","dr ",null,25,10045,"Santé","P",0,0,25,25,2017,3]
["2017-03-14","CB","secu",10,null,10055,"Santé","P",10,10,0,0,2017,3]
["2017-03-15","cb","cinema",null,10,{"$f":"IF(D14-E14=0,\" \",F13+D14-E14)","v":10045},"Loisirs",null,0,0,0,0,2017,3]
[null,null,null,null,null,{"$f":"IF(D15-E15=0,\" \",F14+D15-E15)","v":" "},null,null,0,0,0,0,{"$f":"IF(A15=0,\"\",YEAR(A15))","v":""},{"$f":"IF(A15=0,\"\",MONTH(A15))","v":""}]
[null,null,null,null,null," ",null,null,0,0,0,0,{"$f":"IF(A16=0,\"\",YEAR(A16))","v":""},{"$f":"IF(A16=0,\"\",MONTH(A16))","v":""}]
[null,null,null,null,null," ",null,null,0,0,0,0,"",""]
[null,null,null,null,null," ",null,null,0,0,0,0,"",""]
[null,null,null,null,null," ",null,null,0,0,0,0,"",""]
[null,null,null,null,null," ",null,null,0,0,0,0,"",""]
[null,null,null,null,null," ",null,null,0,0,0,0,"",""]
[null,null,null,null,null," ",null,null,0,0,0,0,"",""]
[null,null,null,null,null," ",null,null,0,0,0,0,"",""]
[null,null,null,null,null," ",null,null,0,0,0,0,"",""]
[null,null,null,null,null," ",null,null,0,0,0,0,"",""]
[null,null,null,null,null," ",null,null,0,0,0,0,"",""]
[null,null,null,null,null," ",null,null,0,0,0,0,"",""]
[null,null,null,null,null," ",null,null,0,0,0,0,"",""]
[null,null,null,null,null," ",null,null,0,0,0,0,"",""]
[null,null,null,null,null," ",null,null,0,0,0,0,"",""]
[null,null,null,null,null," ",null,null,0,0,0,0,"",""]
[null,null,null,null,null," ",null,null,0,0,0,0,"",""]
[null,null,null,null,null," ",null,null,0,0,0,0,"",""]
[null,null,null,null,null," ",null,null,0,0,0,0,"",""]
[null,null,null,null,null," ",null,null,0,0,0,0,"",""]
[null,null,null,null,null," ",null,null,0,0,0,0,"",""]
[null,null,null,null,null," ",null,null,0,0,0,0,"",""]
[null,null,null,null,null," ",null,null,0,0,0,0,"",""]
[null,null,null,null,null," ",null,null,0,0,0,0,"",""]
[null,null,null,null,null," ",null,null,0,0,0,0,"",""]
[null,null,null,null,null," ",null,null,0,0,0,0,"",""]
[null,null,null,null,null," ",null,null,0,0,0,0,"",""]
[null,null,null,null,null," ",null,null,0,0,0,0,"",""]
[null,null,null,null,null," ",null,null,0,0,0,0,"",""]
[null,null,null,null,null," ",null,null,0,0,0,0,"",""]
[null,null,null,null,null," ",null,null,0,0,0,0,"",""]
[null,null,null,null,null," ",null,null,0,0,0,0,"",""]
[null,null,null,null,null," ",null,null,0,0,0,0,"",""]
[null,null,null,null,null," ",null,null,0,0,0,0,"",""]
[null,null,null,null,null," ",null,null,0,0,0,0,"",""]
[null,null,null,null,null," ",null,null,0,0,0,0,"",""]
[null,null,null,null,null," ",null,null,0,0,0,0,"",""]
[null,null,null,null,null," ",null,null,0,0,0,0,"",""]
[null,null,null,null,null," ",null,null,0,0,0,0,"",""]
[null,null,null,null,null," ",null,null,0,0,0,0,"",""]
[null,null,null,null,null," ",null,null,0,0,0,0,"",""]
[null,null,null,null,null," ",null,null,0,0,0,0,"",""]
[null,null,null,null,null," ",null,null,0,0,0,0,"",""]
[null,null,null,null,null," ",null,null,0,0,0,0,"",""]
[null,null,null,null,null," ",null,null,0,0,0,0,"",""]
[null,null,null,null,null," ",null,null,0,0,0,0,"",""]
[null,null,null,null,null," ",null,null,0,0,0,0,"",""]
[null,null,null,null,null," ",null,null,0,0,0,0,"",""]
[null,null,null,null,null," ",null,null,0,0,0,0,"",""]
[null,null,null,null,null," ",null,null,0,0,0,0,"",""]
[null,null,null,null,null," ",null,null,0,0,0,0,"",""]
[null,null,null,null,null," ",null,null,0,0,0,0,"",""]
[null,null,null,null,null," ",null,null,0,0,0,0,"",""]
[null,null,null,null,null," ",null,null,0,0,0,0,"",""]
[null,null,null,null,null," ",null,null,0,0,0,0,"",""]
[null,null,null,null,null," ",null,null,{"$f":"IF(H71=0,0,D71)","v":0},{"$f":"IF(H71<>\"p\",0,D71)","v":0},{"$f":"IF(H71=0,0,E71)","v":0},{"$f":"IF(H71<>\"p\",0,E71)","v":0},"",""]
[null,null,null,null,null," ",null,null,0,0,0,0,"",""]
[null,null,null,null,null," ",null,null,0,0,0,0,"",""]
[null,null,null,null,null," ",null,null,0,0,0,0,"",""]
[null,null,null,null,null," ",null,null,0,0,0,0,"",""]
[null,null,null,null,null," ",null,null,0,0,0,0,"",""]
[null,null,null,null,null," ",null,null,0,0,0,0,"",""]
[null,null,null,null,null," ",null,null,0,0,0,0,"",""]
[null,null,null,null,null,{"$f":"IF(D79-E79=0,\" \",F78+D79-E79)","v":" "},null,null,0,0,0,0,"",""]
[null,null,null,null,null," ",null,null,0,0,0,0,{"$f":"IF(A80=0,\"\",YEAR(A80))","v":""},{"$f":"IF(A80=0,\"\",MONTH(A80))","v":""}]
[null,null,null,null,null," ",null,null,0,0,0,0,"",""]
[null,null,null,null,null," ",null,null,0,0,0,0,"",""]
[null,null,null,null,null," ",null,null,0,0,0,0,"",""]
[null,null,null,null,null," ",null,null,0,0,0,0,"",""]
[null,null,null,null,null," ",null,null,0,0,0,0,"",""]
[null,null,null,null,null," ",null,null,0,0,0,0,"",""]
[null,null,null,null,null," ",null,null,0,0,0,0,"",""]
[null,null,null,null,null," ",null,null,0,0,0,0,"",""]
[null,null,null,null,null," ",null,null,0,0,0,0,"",""]
[null,null,null,null,null," ",null,null,0,0,0,0,"",""]
[null,null,null,null,null," ",null,null,0,0,0,0,"",""]
[null,null,null,null,null," ",null,null,0,0,0,0,"",""]
[null,null,null,null,null," ",null,null,0,0,0,0,"",""]
[null,null,null,null,null," ",null,null,0,0,0,0,"",""]
[null,null,null,null,null," ",null,null,0,0,0,0,"",""]
[null,null,null,null,null," ",null,null,0,0,0,0,"",""]
[null,null,null,null,null," ",null,null,0,0,0,0,"",""]
[null,null,null,null,null," ",null,null,0,0,0,0,"",""]
[null,null,null,null,null," ",null,null,0,0,0,0,"",""]
[null,null,null,null,null," ",null,null,0,0,0,0,"",""]
[null,null,null,null,null," ",null,null,0,0,0,0,"",""]
[null,null,null,null,null," ",null,null,0,0,0,0,"",""]
[null,null,null,null,null," ",null,null,0,0,0,0,"",""]
[null,null,null,null,null," ",null,null,0,0,0,0,"",""]
[null,null,null,null,null," ",null,null,0,0,0,0,"",""]
[null,null,null,null,null," ",null,null,0,0,0,0,"",""]
[null,null,null,null,null," ",null,null,0,0,0,0,"",""]
[null,null,null,null,null," ",null,null,0,0,0,0,"",""]
[null,null,null,null,null," ",null,null,0,0,0,0,"",""]
[null,null,null,null,null," ",null,null,0,0,0,0,"",""]
[null,null,null,null,null," ",null,null,0,0,0,0,"",""]
[null,null,null,null,null," ",null,null,0,0,0,0,"",""]
[null,null,null,null,null," ",null,null,0,0,0,0,"",""]
[null,null,null,null,null," ",null,null,0,0,0,0,"",""]
[null,null,null,null,null," ",null,null,0,0,0,0,"",""]
[null,null,null,null,null," ",null,null,0,0,0,0,"",""]
[null,null,null,null,null," ",null,null,0,0,0,0,"",""]
[null,null,null,null,null," ",null,null,0,0,0,0,"",""]
[null,null,null,null,null," ",null,null,0,0,0,0,"",""]
[null,null,null,null,null," ",null,null,0,0,0,0,"",""]
[null,null,null,null,null," ",null,null,0,0,0,0,"",""]
[null,null,null,null,null," ",null,null,0,0,0,0,"",""]
[null,null,null,null,null," ",null,null,0,0,0,0,"",""]
[null,null,null,null,null," ",null,null,0,0,0,0,"",""]
[null,null,null,null,null," ",null,null,0,0,0,0,"",""]
[null,null,null,null,null," ",null,null,0,0,0,0,"",""]
[null,null,null,null,null," ",null,null,0,0,0,0,"",""]
[null,null,null,null,null," ",null,null,0,0,0,0,"",""]
[null,null,null,null,null," ",null,null,0,0,0,0,"",""]
[null,null,null,null,null," ",null,null,0,0,0,0,"",""]
[null,null,null,null,null," ",null,null,0,0,0,0,"",""]
[null,null,null,null,null," ",null,null,0,0,0,0,"",""]
[null,null,null,null,null," ",null,null,0,0,0,0,"",""]
[null,null,null,null,null," ",null,null,0,0,0,0,"",""]
[null,null,null,null,null," ",null,null,{"$f":"IF(H135=0,0,D135)","v":0},{"$f":"IF(H135<>\"p\",0,D135)","v":0},{"$f":"IF(H135=0,0,E135)","v":0},{"$f":"IF(H135<>\"p\",0,E135)","v":0},"",""]
[null,null,null,null,null," ",null,null,0,0,0,0,"",""]
[null,null,null,null,null," ",null,null,0,0,0,0,"",""]
[null,null,null,null,null," ",null,null,0,0,0,0,"",""]
[null,null,null,null,null," ",null,null,0,0,0,0,"",""]
[null,null,null,null,null," ",null,null,0,0,0,0,"",""]
[null,null,null,null,null," ",null,null,0,0,0,0,"",""]
[null,null,null,null,null," ",null,null,0,0,0,0,"",""]
[null,null,null,null,null,{"$f":"IF(D143-E143=0,\" \",F142+D143-E143)","v":" "},null,null,0,0,0,0,"",""]
[null,null,null,null,null," ",null,null,0,0,0,0,{"$f":"IF(A144=0,\"\",YEAR(A144))","v":""},{"$f":"IF(A144=0,\"\",MONTH(A144))","v":""}]
[null,null,null,null,null," ",null,null,0,0,0,0,"",""]
[null,null,null,null,null," ",null,null,0,0,0,0,"",""]
[null,null,null,null,null," ",null,null,0,0,0,0,"",""]
[null,null,null,null,null," ",null,null,0,0,0,0,"",""]
[null,null,null,null,null," ",null,null,0,0,0,0,"",""]
[null,null,null,null,null," ",null,null,0,0,0,0,"",""]
[null,null,null,null,null," ",null,null,0,0,0,0,"",""]
[null,null,null,null,null," ",null,null,0,0,0,0,"",""]
[null,null,null,null,null," ",null,null,0,0,0,0,"",""]
[null,null,null,null,null," ",null,null,0,0,0,0,"",""]
[null,null,null,null,null," ",null,null,0,0,0,0,"",""]
[null,null,null,null,null," ",null,null,0,0,0,0,"",""]
[null,null,null,null,null," ",null,null,0,0,0,0,"",""]
[null,null,null,null,null," ",null,null,0,0,0,0,"",""]
[null,null,null,null,null," ",null,null,0,0,0,0,"",""]
[null,null,null,null,null," ",null,null,0,0,0,0,"",""]
[null,null,null,null,null," ",null,null,0,0,0,0,"",""]
[null,null,null,null,null," ",null,null,0,0,0,0,"",""]
[null,null,null,null,null," ",null,null,0,0,0,0,"",""]
[null,null,null,null,null," ",null,null,0,0,0,0,"",""]
[null,null,null,null,null," ",null,null,0,0,0,0,"",""]
[null,null,null,null,null," ",null,null,0,0,0,0,"",""]
[null,null,null,null,null," ",null,null,0,0,0,0,"",""]
[null,null,null,null,null," ",null,null,0,0,0,0,"",""]
[null,null,null,null,null," ",null,null,0,0,0,0,"",""]
[null,null,null,null,null," ",null,null,0,0,0,0,"",""]
[null,null,null,null,null," ",null,null,0,0,0,0,"",""]
[null,null,null,null,null," ",null,null,0,0,0,0,"",""]
[null,null,null,null,null," ",null,null,0,0,0,0,"",""]
[null,null,null,null,null," ",null,null,0,0,0,0,"",""]
[null,null,null,null,null," ",null,null,0,0,0,0,"",""]
[null,null,null,null,null," ",null,null,0,0,0,0,"",""]
[null,null,null,null,null," ",null,null,0,0,0,0,"",""]
[null,null,null,null,null," ",null,null,0,0,0,0,"",""]
[null,null,null,null,null," ",null,null,0,0,0,0,"",""]
[null,null,null,null,null," ",null,null,0,0,0,0,"",""]
[null,null,null,null,null," ",null,null,0,0,0,0,"",""]
[null,null,null,null,null," ",null,null,0,0,0,0,"",""]
[null,null,null,null,null," ",null,null,0,0,0,0,"",""]
[null,null,null,null,null," ",null,null,0,0,0,0,"",""]
[null,null,null,null,null," ",null,null,0,0,0,0,"",""]
[null,null,null,null,null," ",null,null,0,0,0,0,"",""]
[null,null,null,null,null," ",null,null,0,0,0,0,"",""]
[null,null,null,null,null," ",null,null,0,0,0,0,"",""]
[null,null,null,null,null," ",null,null,0,0,0,0,"",""]
[null,null,null,null,null," ",null,null,0,0,0,0,"",""]
[null,null,null,null,null," ",null,null,0,0,0,0,"",""]
[null,null,null,null,null," ",null,null,0,0,0,0,"",""]
[null,null,null,null,null," ",null,null,0,0,0,0,"",""]
[null,null,null,null,null," ",null,null,0,0,0,0,"",""]
[null,null,null,null,null," ",null,null,0,0,0,0,"",""]
[null,null,null,null,null," ",null,null,0,0,0,0,"",""]
[null,null,null,null,null," ",null,null,0,0,0,0,"",""]
[null,null,null,null,null," ",null,null,0,0,0,0,"",""]
[null,null,null,null,null," ",null,null,{"$f":"IF(H199=0,0,D199)","v":0},{"$f":"IF(H199<>\"p\",0,D199)","v":0},{"$f":"IF(H199=0,0,E199)","v":0},{"$f":"IF(H199<>\"p\",0,E199)","v":0},"",""]
[null,null,null,null,null," ",null,null,0,0,0,0,"",""]
[null,null,null,null,null," ",null,null,0,0,0,0,"",""]
[null,null,null,null,null," ",null,null,0,0,0,0,"",""]
[null,null,null,null,null," ",null,null,0,0,0,0,"",""]
[null,null,null,null,null," ",null,null,0,0,0,0,"",""]
[null,null,null,null,null," ",null,null,0,0,0,0,"",""]
[null,null,null,null,null," ",null,null,0,0,0,0,"",""]
[null,null,null,null,null,{"$f":"IF(D207-E207=0,\" \",F206+D207-E207)","v":" "},null,null,0,0,0,0,"",""]
[null,null,null,null,null," ",null,null,0,0,0,0,{"$f":"IF(A208=0,\"\",YEAR(A208))","v":""},{"$f":"IF(A208=0,\"\",MONTH(A208))","v":""}]
[null,null,null,null,null," ",null,null,0,0,0,0,"",""]
[null,null,null,null,null," ",null,null,0,0,0,0,"",""]
[null,null,null,null,null," ",null,null,0,0,0,0,"",""]
[null,null,null,null,null," ",null,null,0,0,0,0,"",""]
[null,null,null,null,null," ",null,null,0,0,0,0,"",""]
[null,null,null,null,null," ",null,null,0,0,0,0,"",""]
[null,null,null,null,null," ",null,null,0,0,0,0,"",""]
[null,null,null,null,null," ",null,null,0,0,0,0,"",""]
[null,null,null,null,null," ",null,null,0,0,0,0,"",""]
[null,null,null,null,null," ",null,null,0,0,0,0,"",""]
[null,null,null,null,null," ",null,null,0,0,0,0,"",""]
[null,null,null,null,null," ",null,null,0,0,0,0,"",""]
[null,null,null,null,null," ",null,null,0,0,0,0,"",""]
[null,null,null,null,null," ",null,null,0,0,0,0,"",""]
[null,null,null,null,null," ",null,null,0,0,0,0,"",""]
[null,null,null,null,null," ",null,null,0,0,0,0,"",""]
[null,null,null,null,null," ",null,null,0,0,0,0,"",""]
[null,null,null,null,null," ",null,null,0,0,0,0,"",""]
[null,null,null,null,null," ",null,null,0,0,0,0,"",""]
[null,null,null,null,null," ",null,null,0,0,0,0,"",""]
[null,null,null,null,null," ",null,null,0,0,0,0,"",""]
[null,null,null,null,null," ",null,null,0,0,0,0,"",""]
[null,null,null,null,null," ",null,null,0,0,0,0,"",""]
[null,null,null,null,null," ",null,null,0,0,0,0,"",""]
[null,null,null,null,null," ",null,null,0,0,0,0,"",""]
[null,null,null,null,null," ",null,null,0,0,0,0,"",""]
[null,null,null,null,null," ",null,null,0,0,0,0,"",""]
[null,null,null,null,null," ",null,null,0,0,0,0,"",""]
[null,null,null,null,null," ",null,null,0,0,0,0,"",""]
[null,null,null,null,null," ",null,null,0,0,0,0,"",""]
[null,null,null,null,null," ",null,null,0,0,0,0,"",""]
[null,null,null,null,null," ",null,null,0,0,0,0,"",""]
[null,null,null,null,null," ",null,null,0,0,0,0,"",""]
[null,null,null,null,null," ",null,null,0,0,0,0,"",""]
[null,null,null,null,null," ",null,null,0,0,0,0,"",""]
[null,null,null,null,null," ",null,null,0,0,0,0,"",""]
[null,null,null,null,null," ",null,null,0,0,0,0,"",""]
[null,null,null,null,null," ",null,null,0,0,0,0,"",""]
[null,null,null,null,null," ",null,null,0,0,0,0,"",""]
[null,null,null,null,null," ",null,null,0,0,0,0,"",""]
[null,null,null,null,null," ",null,null,0,0,0,0,"",""]
[null,null,null,null,null," ",null,null,0,0,0,0,"",""]
[null,null,null,null,null," ",null,null,0,0,0,0,"",""]
[null,null,null,null,null," ",null,null,0,0,0,0,"",""]
[null,null,null,null,null," ",null,null,0,0,0,0,"",""]
[null,null,null,null,null," ",null,null,0,0,0,0,"",""]
[null,null,null,null,null," ",null,null,0,0,0,0,"",""]
[null,null,null,null,null," ",null,null,0,0,0,0,"",""]
[null,null,null,null,null," ",null,null,0,0,0,0,"",""]
[null,null,null,null,null," ",null,null,0,0,0,0,"",""]
[null,null,null,null,null," ",null,null,0,0,0,0,"",""]
[null,null,null,null,null," ",null,null,0,0,0,0,"",""]
[null,null,null,null,null," ",null,null,0,0,0,0,"",""]
[null,null,null,null,null," ",null,null,0,0,0,0,"",""]
[null,null,null,null,null," ",null,null,{"$f":"IF(H263=0,0,D263)","v":0},{"$f":"IF(H263<>\"p\",0,D263)","v":0},{"$f":"IF(H263=0,0,E263)","v":0},{"$f":"IF(H263<>\"p\",0,E263)","v":0},"",""]
[null,null,null,null,null," ",null,null,0,0,0,0,"",""]
[null,null,null,null,null," ",null,null,0,0,0,0,"",""]
[null,null,null,null,null," ",null,null,0,0,0,0,"",""]
[null,null,null,null,null," ",null,null,0,0,0,0,"",""]
[null,null,null,null,null," ",null,null,0,0,0,0,"",""]
[null,null,null,null,null," ",null,null,0,0,0,0,"",""]
[null,null,null,null,null," ",null,null,0,0,0,0,"",""]
[null,null,null,null,null,{"$f":"IF(D271-E271=0,\" \",F270+D271-E271)","v":" "},null,null,0,0,0,0,"",""]
[null,null,null,null,null," ",null,null,0,0,0,0,{"$f":"IF(A272=0,\"\",YEAR(A272))","v":""},{"$f":"IF(A272=0,\"\",MONTH(A272))","v":""}]
[null,null,null,null,null," ",null,null,0,0,0,0,"",""]
[null,null,null,null,null," ",null,null,0,0,0,0,"",""]
[null,null,null,null,null," ",null,null,0,0,0,0,"",""]
[null,null,null,null,null," ",null,null,0,0,0,0,"",""]
[null,null,null,null,null," ",null,null,0,0,0,0,"",""]
[null,null,null,null,null," ",null,null,0,0,0,0,"",""]
[null,null,null,null,null," ",null,null,0,0,0,0,"",""]
[null,null,null,null,null," ",null,null,0,0,0,0,"",""]
[null,null,null,null,null," ",null,null,0,0,0,0,"",""]
[null,null,null,null,null," ",null,null,0,0,0,0,"",""]
[null,null,null,null,null," ",null,null,0,0,0,0,"",""]
[null,null,null,null,null," ",null,null,0,0,0,0,"",""]
[null,null,null,null,null," ",null,null,0,0,0,0,"",""]
[null,null,null,null,null," ",null,null,0,0,0,0,"",""]
[null,null,null,null,null," ",null,null,0,0,0,0,"",""]
[null,null,null,null,null," ",null,null,0,0,0,0,"",""]
[null,null,null,null,null," ",null,null,0,0,0,0,"",""]
[null,null,null,null,null," ",null,null,0,0,0,0,"",""]
[null,null,null,null,null," ",null,null,0,0,0,0,"",""]
[null,null,null,null,null," ",null,null,0,0,0,0,"",""]
[null,null,null,null,null," ",null,null,0,0,0,0,"",""]
[null,null,null,null,null," ",null,null,0,0,0,0,"",""]
[null,null,null,null,null," ",null,null,0,0,0,0,"",""]
[null,null,null,null,null," ",null,null,0,0,0,0,"",""]
[null,null,null,null,null," ",null,null,0,0,0,0,"",""]
[null,null,null,null,null," ",null,null,0,0,0,0,"",""]
[null,null,null,null,null," ",null,null,0,0,0,0,"",""]
[null,null,null,null,null," ",null,null,0,0,0,0,"",""]
[null,null,null,null,null," ",null,null,0,0,0,0,"",""]
[null,null,null,null,null," ",null,null,0,0,0,0,"",""]
[null,null,null,null,null," ",null,null,0,0,0,0,"",""]
[null,null,null,null,null," ",null,null,0,0,0,0,"",""]
[null,null,null,null,null," ",null,null,0,0,0,0,"",""]
[null,null,null,null,null," ",null,null,0,0,0,0,"",""]
[null,null,null,null,null," ",null,null,0,0,0,0,"",""]
[null,null,null,null,null," ",null,null,0,0,0,0,"",""]
[null,null,null,null,null," ",null,null,0,0,0,0,"",""]
[null,null,null,null,null," ",null,null,0,0,0,0,"",""]
[null,null,null,null,null," ",null,null,0,0,0,0,"",""]
[null,null,null,null,null," ",null,null,0,0,0,0,"",""]
[null,null,null,null,null," ",null,null,0,0,0,0,"",""]
[null,null,null,null,null," ",null,null,0,0,0,0,"",""]
[null,null,null,null,null," ",null,null,0,0,0,0,"",""]
[null,null,null,null,null," ",null,null,0,0,0,0,"",""]
[null,null,null,null,null," ",null,null,0,0,0,0,"",""]
[null,null,null,null,null," ",null,null,0,0,0,0,"",""]
[null,null,null,null,null," ",null,null,0,0,0,0,"",""]
[null,null,null,null,null," ",null,null,0,0,0,0,"",""]
[null,null,null,null,null," ",null,null,0,0,0,0,"",""]
[null,null,null,null,null," ",null,null,0,0,0,0,"",""]
[null,null,null,null,null," ",null,null,0,0,0,0,"",""]
[null,null,null,null,null," ",null,null,0,0,0,0,"",""]
[null,null,null,null,null," ",null,null,0,0,0,0,"",""]
[null,null,null,null,null," ",null,null,0,0,0,0,"",""]
[null,null,null,null,null," ",null,null,{"$f":"IF(H327=0,0,D327)","v":0},{"$f":"IF(H327<>\"p\",0,D327)","v":0},{"$f":"IF(H327=0,0,E327)","v":0},{"$f":"IF(H327<>\"p\",0,E327)","v":0},"",""]
[null,null,null,null,null," ",null,null,0,0,0,0,"",""]
[null,null,null,null,null," ",null,null,0,0,0,0,"",""]
[null,null,null,null,null," ",null,null,0,0,0,0,"",""]
[null,null,null,null,null," ",null,null,0,0,0,0,"",""]
[null,null,null,null,null," ",null,null,0,0,0,0,"",""]
[null,null,null,null,null," ",null,null,0,0,0,0,"",""]
[null,null,null,null,null," ",null,null,0,0,0,0,"",""]
[null,null,null,null,null,{"$f":"IF(D335-E335=0,\" \",F334+D335-E335)","v":" "},null,null,0,0,0,0,"",""]
[null,null,null,null,null," ",null,null,0,0,0,0,{"$f":"IF(A336=0,\"\",YEAR(A336))","v":""},{"$f":"IF(A336=0,\"\",MONTH(A336))","v":""}]
[null,null,null,null,null," ",null,null,0,0,0,0,"",""]
[null,null,null,null,null," ",null,null,0,0,0,0,"",""]
[null,null,null,null,null," ",null,null,0,0,0,0,"",""]
[null,null,null,null,null," ",null,null,0,0,0,0,"",""]
[null,null,null,null,null," ",null,null,0,0,0,0,"",""]
[null,null,null,null,null," ",null,null,0,0,0,0,"",""]
[null,null,null,null,null," ",null,null,0,0,0,0,"",""]
[null,null,null,null,null," ",null,null,0,0,0,0,"",""]
[null,null,null,null,null," ",null,null,0,0,0,0,"",""]
[null,null,null,null,null," ",null,null,0,0,0,0,"",""]
[null,null,null,null,null," ",null,null,0,0,0,0,"",""]
[null,null,null,null,null," ",null,null,0,0,0,0,"",""]
[null,null,null,null,null," ",null,null,0,0,0,0,"",""]
[null,null,null,null,null," ",null,null,0,0,0,0,"",""]
[null,null,null,null,null," ",null,null,0,0,0,0,"",""]
[null,null,null,null,null," ",null,null,0,0,0,0,"",""]
[null,null,null,null,null," ",null,null,0,0,0,0,"",""]
[null,null,null,null,null," ",null,null,0,0,0,0,"",""]
[null,null,null,null,null," ",null,null,0,0,0,0,"",""]
[null,null,null,null,null," ",null,null,0,0,0,0,"",""]
[null,null,null,null,null," ",null,null,0,0,0,0,"",""]
[null,null,null,null,null," ",null,null,0,0,0,0,"",""]
[null,null,null,null,null," ",null,null,0,0,0,0,"",""]
[null,null,null,null,null," ",null,null,0,0,0,0,"",""]
[null,null,null,null,null," ",null,null,0,0,0,0,"",""]
[null,null,null,null,null," ",null,null,0,0,0,0,"",""]
[null,null,null,null,null," ",null,null,0,0,0,0,"",""]
[null,null,null,null,null," ",null,null,0,0,0,0,"",""]
[null,null,null,null,null," ",null,null,0,0,0,0,"",""]
[null,null,null,null,null," ",null,null,0,0,0,0,"",""]
[null,null,null,null,null," ",null,null,0,0,0,0,"",""]
[null,null,null,null,null," ",null,null,0,0,0,0,"",""]
[null,null,null,null,null," ",null,null,0,0,0,0,"",""]
[null,null,null,null,null," ",null,null,0,0,0,0,"",""]
[null,null,null,null,null," ",null,null,0,0,0,0,"",""]
[null,null,null,null,null," ",null,null,0,0,0,0,"",""]
[null,null,null,null,null," ",null,null,0,0,0,0,"",""]
[null,null,null,null,null," ",null,null,0,0,0,0,"",""]
[null,null,null,null,null," ",null,null,0,0,0,0,"",""]
[null,null,null,null,null," ",null,null,0,0,0,0,"",""]
[null,null,null,null,null," ",null,null,0,0,0,0,"",""]
[null,null,null,null,null," ",null,null,0,0,0,0,"",""]
[null,null,null,null,null," ",null,null,0,0,0,0,"",""]
[null,null,null,null,null," ",null,null,0,0,0,0,"",""]
[null,null,null,null,null," ",null,null,0,0,0,0,"",""]
[null,null,null,null,null," ",null,null,0,0,0,0,"",""]
[null,null,null,null,null," ",null,null,0,0,0,0,"",""]
[null,null,null,null,null," ",null,null,0,0,0,0,"",""]
[null,null,null,null,null," ",null,null,0,0,0,0,"",""]
[null,null,null,null,null," ",null,null,0,0,0,0,"",""]
[null,null,null,null,null," ",null,null,0,0,0,0,"",""]
[null,null,null,null,null," ",null,null,0,0,0,0,"",""]
[null,null,null,null,null," ",null,null,0,0,0,0,"",""]
[null,null,null,null,null," ",null,null,0,0,0,0,"",""]
[null,null,null,null,null," ",null,null,{"$f":"IF(H391=0,0,D391)","v":0},{"$f":"IF(H391<>\"p\",0,D391)","v":0},{"$f":"IF(H391=0,0,E391)","v":0},{"$f":"IF(H391<>\"p\",0,E391)","v":0},"",""]
[null,null,null,null,null," ",null,null,0,0,0,0,"",""]
[null,null,null,null,null," ",null,null,0,0,0,0,"",""]
[null,null,null,null,null," ",null,null,0,0,0,0,"",""]
[null,null,null,null,null," ",null,null,0,0,0,0,"",""]
[null,null,null,null,null," ",null,null,0,0,0,0,"",""]
[null,null,null,null,null," ",null,null,0,0,0,0,"",""]
[null,null,null,null,null," ",null,null,0,0,0,0,"",""]
[null,null,null,null,null,{"$f":"IF(D399-E399=0,\" \",F398+D399-E399)","v":" "},null,null,0,0,0,0,"",""]
[null,null,null,null,null," ",null,null,0,0,0,0,{"$f":"IF(A400=0,\"\",YEAR(A400))","v":""},{"$f":"IF(A400=0,\"\",MONTH(A400))","v":""}]
[null,null,null,null,null," ",null,null,0,0,0,0,"",""]
[null,null,null,null,null," ",null,null,0,0,0,0,"",""]
[null,null,null,null,null," ",null,null,0,0,0,0,"",""]
[null,null,null,null,null," ",null,null,0,0,0,0,"",""]
[null,null,null,null,null," ",null,null,0,0,0,0,"",""]
[null,null,null,null,null," ",null,null,0,0,0,0,"",""]
[null,null,null,null,null," ",null,null,0,0,0,0,"",""]
[null,null,null,null,null," ",null,null,0,0,0,0,"",""]
[null,null,null,null,null," ",null,null,0,0,0,0,"",""]
[null,null,null,null,null," ",null,null,0,0,0,0,"",""]
[null,null,null,null,null," ",null,null,0,0,0,0,"",""]
[null,null,null,null,null," ",null,null,0,0,0,0,"",""]
[null,null,null,null,null," ",null,null,0,0,0,0,"",""]
[null,null,null,null,null," ",null,null,0,0,0,0,"",""]
[null,null,null,null,null," ",null,null,0,0,0,0,"",""]
[null,null,null,null,null," ",null,null,0,0,0,0,"",""]
[null,null,null,null,null," ",null,null,0,0,0,0,"",""]
[null,null,null,null,null," ",null,null,0,0,0,0,"",""]
[null,null,null,null,null," ",null,null,0,0,0,0,"",""]
[null,null,null,null,null," ",null,null,0,0,0,0,"",""]
[null,null,null,null,null," ",null,null,0,0,0,0,"",""]
[null,null,null,null,null," ",null,null,0,0,0,0,"",""]
[null,null,null,null,null," ",null,null,0,0,0,0,"",""]
[null,null,null,null,null," ",null,null,0,0,0,0,"",""]
[null,null,null,null,null," ",null,null,0,0,0,0,"",""]
[null,null,null,null,null," ",null,null,0,0,0,0,"",""]
[null,null,null,null,null," ",null,null,0,0,0,0,"",""]
[null,null,null,null,null," ",null,null,0,0,0,0,"",""]
[null,null,null,null,null," ",null,null,0,0,0,0,"",""]
[null,null,null,null,null," ",null,null,0,0,0,0,"",""]
[null,null,null,null,null," ",null,null,0,0,0,0,"",""]
[null,null,null,null,null," ",null,null,0,0,0,0,"",""]
[null,null,null,null,null," ",null,null,0,0,0,0,"",""]
[null,null,null,null,null," ",null,null,0,0,0,0,"",""]
[null,null,null,null,null," ",null,null,0,0,0,0,"",""]
[null,null,null,null,null," ",null,null,0,0,0,0,"",""]
[null,null,null,null,null," ",null,null,0,0,0,0,"",""]
[null,null,null,null,null," ",null,null,0,0,0,0,"",""]
[null,null,null,null,null," ",null,null,0,0,0,0,"",""]
[null,null,null,null,null," ",null,null,0,0,0,0,"",""]
[null,null,null,null,null," ",null,null,0,0,0,0,"",""]
[null,null,null,null,null," ",null,null,0,0,0,0,"",""]
[null,null,null,null,null," ",null,null,0,0,0,0,"",""]
[null,null,null,null,null," ",null,null,0,0,0,0,"",""]
[null,null,null,null,null," ",null,null,0,0,0,0,"",""]
[null,null,null,null,null," ",null,null,0,0,0,0,"",""]
[null,null,null,null,null," ",null,null,0,0,0,0,"",""]
[null,null,null,null,null," ",null,null,0,0,0,0,"",""]
[null,null,null,null,null," ",null,null,0,0,0,0,"",""]
[null,null,null,null,null," ",null,null,0,0,0,0,"",""]
[null,null,null,null,null," ",null,null,0,0,0,0,"",""]
[null,null,null,null,null," ",null,null,0,0,0,0,"",""]
[null,null,null,null,null," ",null,null,0,0,0,0,"",""]
[null,null,null,null,null," ",null,null,0,0,0,0,"",""]
[null,null,null,null,null," ",null,null,{"$f":"IF(H455=0,0,D455)","v":0},{"$f":"IF(H455<>\"p\",0,D455)","v":0},{"$f":"IF(H455=0,0,E455)","v":0},{"$f":"IF(H455<>\"p\",0,E455)","v":0},"",""]
[null,null,null,null,null," ",null,null,0,0,0,0,"",""]
[null,null,null,null,null," ",null,null,0,0,0,0,"",""]
[null,null,null,null,null," ",null,null,0,0,0,0,"",""]
[null,null,null,null,null," ",null,null,0,0,0,0,"",""]
[null,null,null,null,null," ",null,null,0,0,0,0,"",""]
[null,null,null,null,null," ",null,null,0,0,0,0,"",""]
[null,null,null,null,null," ",null,null,0,0,0,0,"",""]
[null,null,null,null,null,{"$f":"IF(D463-E463=0,\" \",F462+D463-E463)","v":" "},null,null,0,0,0,0,"",""]
[null,null,null,null,null," ",null,null,0,0,0,0,{"$f":"IF(A464=0,\"\",YEAR(A464))","v":""},{"$f":"IF(A464=0,\"\",MONTH(A464))","v":""}]
[null,null,null,null,null," ",null,null,0,0,0,0,"",""]
[null,null,null,null,null," ",null,null,0,0,0,0,"",""]
[null,null,null,null,null," ",null,null,0,0,0,0,"",""]
[null,null,null,null,null," ",null,null,0,0,0,0,"",""]
[null,null,null,null,null," ",null,null,0,0,0,0,"",""]
[null,null,null,null,null," ",null,null,0,0,0,0,"",""]
[null,null,null,null,null," ",null,null,0,0,0,0,"",""]
[null,null,null,null,null," ",null,null,0,0,0,0,"",""]
[null,null,null,null,null," ",null,null,0,0,0,0,"",""]
[null,null,null,null,null," ",null,null,0,0,0,0,"",""]
[null,null,null,null,null," ",null,null,0,0,0,0,"",""]
[null,null,null,null,null," ",null,null,0,0,0,0,"",""]
[null,null,null,null,null," ",null,null,0,0,0,0,"",""]
[null,null,null,null,null," ",null,null,0,0,0,0,"",""]
[null,null,null,null,null," ",null,null,0,0,0,0,"",""]
[null,null,null,null,null," ",null,null,0,0,0,0,"",""]
[null,null,null,null,null," ",null,null,0,0,0,0,"",""]
[null,null,null,null,null," ",null,null,0,0,0,0,"",""]
[null,null,null,null,null," ",null,null,0,0,0,0,"",""]
[null,null,null,null,null," ",null,null,0,0,0,0,"",""]
[null,null,null,null,null," ",null,null,0,0,0,0,"",""]
[null,null,null,null,null," ",null,null,0,0,0,0,"",""]
[null,null,null,null,null," ",null,null,0,0,0,0,"",""]
[null,null,null,null,null," ",null,null,0,0,0,0,"",""]
[null,null,null,null,null," ",null,null,0,0,0,0,"",""]
[null,null,null,null,null," ",null,null,0,0,0,0,"",""]
[null,null,null,null,null," ",null,null,0,0,0,0,"",""]
[null,null,null,null,null," ",null,null,0,0,0,0,"",""]
[null,null,null,null,null," ",null,null,0,0,0,0,"",""]
[null,null,null,null,null," ",null,null,0,0,0,0,"",""]
[null,null,null,null,null," ",null,null,0,0,0,0,"",""]
[null,null,null,null,null," ",null,null,0,0,0,0,"",""]
[null,null,null,null,null," ",null,null,0,0,0,0,"",""]
[null,null,null,null,null," ",null,null,0,0,0,0,"",""]
[null,null,null,null,null," ",null,null,0,0,0,0,"",""]
[null,null,null,null,null," ",null,null,0,0,0,0,"",""]
[null,null,null,null,null," ",null,null,0,0,0,0,"",""]
[null,null,null,null,null," ",null,null,0,0,0,0,"",""]
[null,null,null,null,null," ",null,null,0,0,0,0,"",""]
[null,null,null,null,null," ",null,null,0,0,0,0,"",""]
[null,null,null,null,null," ",null,null,0,0,0,0,"",""]
[null,null,null,null,null," ",null,null,0,0,0,0,"",""]
[null,null,null,null,null," ",null,null,0,0,0,0,"",""]
[null,null,null,null,null," ",null,null,0,0,0,0,"",""]
[null,null,null,null,null," ",null,null,0,0,0,0,"",""]
[null,null,null,null,null," ",null,null,0,0,0,0,"",""]
[null,null,null,null,null," ",null,null,0,0,0,0,"",""]
[null,null,null,null,null," ",null,null,0,0,0,0,"",""]
[null,null,null,null,null," ",null,null,0,0,0,0,"",""]
[null,null,null,null,null," ",null,null,0,0,0,0,"",""]
[null,null,null,null,null," ",null,null,0,0,0,0,"",""]
[null,null,null,null,null," ",null,null,0,0,0,0,"",""]
[null,null,null,null,null," ",null,null,0,0,0,0,"",""]
[null,null,null,null,null," ",null,null,0,0,0,0,"",""]
[null,null,null,null,null," ",null,null,{"$f":"IF(H519=0,0,D519)","v":0},{"$f":"IF(H519<>\"p\",0,D519)","v":0},{"$f":"IF(H519=0,0,E519)","v":0},{"$f":"IF(H519<>\"p\",0,E519)","v":0},"",""]
[null,null,null,null,null," ",null,null,0,0,0,0,"",""]
[null,null,null,null,null," ",null,null,0,0,0,0,"",""]
[null,null,null,null,null," ",null,null,0,0,0,0,"",""]
[null,null,null,null,null," ",null,null,0,0,0,0,"",""]
[null,null,null,null,null," ",null,null,0,0,0,0,"",""]
[null,null,null,null,null," ",null,null,0,0,0,0,"",""]
[null,null,null,null,null," ",null,null,0,0,0,0,"",""]
[null,null,null,null,null,{"$f":"IF(D527-E527=0,\" \",F526+D527-E527)","v":" "},null,null,0,0,0,0,"",""]
[null,null,null,null,null," ",null,null,0,0,0,0,{"$f":"IF(A528=0,\"\",YEAR(A528))","v":""},{"$f":"IF(A528=0,\"\",MONTH(A528))","v":""}]
[null,null,null,null,null," ",null,null,0,0,0,0,"",""]
[null,null,null,null,null," ",null,null,0,0,0,0,"",""]
[null,null,null,null,null," ",null,null,0,0,0,0,"",""]
[null,null,null,null,null," ",null,null,0,0,0,0,"",""]
[null,null,null,null,null," ",null,null,0,0,0,0,"",""]
[null,null,null,null,null," ",null,null,0,0,0,0,"",""]
[null,null,null,null,null," ",null,null,0,0,0,0,"",""]
[null,null,null,null,null," ",null,null,0,0,0,0,"",""]
[null,null,null,null,null," ",null,null,0,0,0,0,"",""]
[null,null,null,null,null," ",null,null,0,0,0,0,"",""]
[null,null,null,null,null," ",null,null,0,0,0,0,"",""]
[null,null,null,null,null," ",null,null,0,0,0,0,"",""]
[null,null,null,null,null," ",null,null,0,0,0,0,"",""]
[null,null,null,null,null," ",null,null,0,0,0,0,"",""]
[null,null,null,null,null," ",null,null,0,0,0,0,"",""]
[null,null,null,null,null," ",null,null,0,0,0,0,"",""]
[null,null,null,null,null," ",null,null,0,0,0,0,"",""]
[null,null,null,null,null," ",null,null,0,0,0,0,"",""]
[null,null,null,null,null," ",null,null,0,0,0,0,"",""]
[null,null,null,null,null," ",null,null,0,0,0,0,"",""]
[null,null,null,null,null," ",null,null,0,0,0,0,"",""]
[null,null,null,null,null," ",null,null,0,0,0,0,"",""]
[null,null,null,null,null," ",null,null,0,0,0,0,"",""]
[null,null,null,null,null," ",null,null,0,0,0,0,"",""]
[null,null,null,null,null," ",null,null,0,0,0,0,"",""]
[null,null,null,null,null," ",null,null,0,0,0,0,"",""]
[null,null,null,null,null," ",null,null,0,0,0,0,"",""]
[null,null,null,null,null," ",null,null,0,0,0,0,"",""]
[null,null,null,null,null," ",null,null,0,0,0,0,"",""]
[null,null,null,null,null," ",null,null,0,0,0,0,"",""]
[null,null,null,null,null," ",null,null,0,0,0,0,"",""]
[null,null,null,null,null," ",null,null,0,0,0,0,"",""]
[null,null,null,null,null," ",null,null,0,0,0,0,"",""]
[null,null,null,null,null," ",null,null,0,0,0,0,"",""]
[null,null,null,null,null," ",null,null,0,0,0,0,"",""]
[null,null,null,null,null," ",null,null,0,0,0,0,"",""]
[null,null,null,null,null," ",null,null,0,0,0,0,"",""]
[null,null,null,null,null," ",null,null,0,0,0,0,"",""]
[null,null,null,null,null," ",null,null,0,0,0,0,"",""]
[null,null,null,null,null," ",null,null,0,0,0,0,"",""]
[null,null,null,null,null," ",null,null,0,0,0,0,"",""]
[null,null,null,null,null," ",null,null,0,0,0,0,"",""]
[null,null,null,null,null," ",null,null,0,0,0,0,"",""]
[null,null,null,null,null," ",null,null,0,0,0,0,"",""]
[null,null,null,null,null," ",null,null,0,0,0,0,"",""]
[null,null,null,null,null," ",null,null,0,0,0,0,"",""]
[null,null,null,null,null," ",null,null,0,0,0,0,"",""]
[null,null,null,null,null," ",null,null,0,0,0,0,"",""]
[null,null,null,null,null," ",null,null,0,0,0,0,"",""]
[null,null,null,null,null," ",null,null,0,0,0,0,"",""]
[null,null,null,null,null," ",null,null,0,0,0,0,"",""]
[null,null,null,null,null," ",null,null,0,0,0,0,"",""]
[null,null,null,null,null," ",null,null,0,0,0,0,"",""]
[null,null,null,null,null," ",null,null,0,0,0,0,"",""]
[null,null,null,null,null," ",null,null,{"$f":"IF(H583=0,0,D583)","v":0},{"$f":"IF(H583<>\"p\",0,D583)","v":0},{"$f":"IF(H583=0,0,E583)","v":0},{"$f":"IF(H583<>\"p\",0,E583)","v":0},"",""]
[null,null,null,null,null," ",null,null,0,0,0,0,"",""]
[null,null,null,null,null," ",null,null,0,0,0,0,"",""]
[null,null,null,null,null," ",null,null,0,0,0,0,"",""]
[null,null,null,null,null," ",null,null,0,0,0,0,"",""]
[null,null,null,null,null," ",null,null,0,0,0,0,"",""]
[null,null,null,null,null," ",null,null,0,0,0,0,"",""]
[null,null,null,null,null," ",null,null,0,0,0,0,"",""]
[null,null,null,null,null,{"$f":"IF(D591-E591=0,\" \",F590+D591-E591)","v":" "},null,null,0,0,0,0,"",""]
[null,null,null,null,null," ",null,null,0,0,0,0,{"$f":"IF(A592=0,\"\",YEAR(A592))","v":""},{"$f":"IF(A592=0,\"\",MONTH(A592))","v":""}]
[null,null,null,null,null," ",null,null,0,0,0,0,"",""]
[null,null,null,null,null," ",null,null,0,0,0,0,"",""]
[null,null,null,null,null," ",null,null,0,0,0,0,"",""]
[null,null,null,null,null," ",null,null,0,0,0,0,"",""]
[null,null,null,null,null," ",null,null,0,0,0,0,"",""]
[null,null,null,null,null," ",null,null,0,0,0,0,"",""]
[null,null,null,null,null," ",null,null,0,0,0,0,"",""]
[null,null,null,null,null," ",null,null,0,0,0,0,"",""]
[null,null,null,null,null," ",null,null,0,0,0,0,"",""]
[null,null,null,null,null," ",null,null,0,0,0,0,"",""]
[null,null,null,null,null," ",null,null,0,0,0,0,"",""]
[null,null,null,null,null," ",null,null,0,0,0,0,"",""]
[null,null,null,null,null," ",null,null,0,0,0,0,"",""]
[null,null,null,null,null," ",null,null,0,0,0,0,"",""]
[null,null,null,null,null," ",null,null,0,0,0,0,"",""]
[null,null,null,null,null," ",null,null,0,0,0,0,"",""]
[null,null,null,null,null," ",null,null,0,0,0,0,"",""]
[null,null,null,null,null," ",null,null,0,0,0,0,"",""]
[null,null,null,null,null," ",null,null,0,0,0,0,"",""]
[null,null,null,null,null," ",null,null,0,0,0,0,"",""]
[null,null,null,null,null," ",null,null,0,0,0,0,"",""]
[null,null,null,null,null," ",null,null,0,0,0,0,"",""]
[null,null,null,null,null," ",null,null,0,0,0,0,"",""]
[null,null,null,null,null," ",null,null,0,0,0,0,"",""]
[null,null,null,null,null," ",null,null,0,0,0,0,"",""]
[null,null,null,null,null," ",null,null,0,0,0,0,"",""]
[null,null,null,null,null," ",null,null,0,0,0,0,"",""]
[null,null,null,null,null," ",null,null,0,0,0,0,"",""]
[null,null,null,null,null," ",null,null,0,0,0,0,"",""]
[null,null,null,null,null," ",null,null,0,0,0,0,"",""]
[null,null,null,null,null," ",null,null,0,0,0,0,"",""]
[null,null,null,null,null," ",null,null,0,0,0,0,"",""]
[null,null,null,null,null," ",null,null,0,0,0,0,"",""]
[null,null,null,null,null," ",null,null,0,0,0,0,"",""]
[null,null,null,null,null," ",null,null,0,0,0,0,"",""]
[null,null,null,null,null," ",null,null,0,0,0,0,"",""]
[null,null,null,null,null," ",null,null,0,0,0,0,"",""]
[null,null,null,null,null," ",null,null,0,0,0,0,"",""]
[null,null,null,null,null," ",null,null,0,0,0,0,"",""]
[null,null,null,null,null," ",null,null,0,0,0,0,"",""]
[null,null,null,null,null," ",null,null,0,0,0,0,"",""]
[null,null,null,null,null," ",null,null,0,0,0,0,"",""]
[null,null,null,null,null," ",null,null,0,0,0,0,"",""]
[null,null,null,null,null," ",null,null,0,0,0,0,"",""]
[null,null,null,null,null," ",null,null,0,0,0,0,"",""]
[null,null,null,null,null," ",null,null,0,0,0,0,"",""]
[null,null,null,null,null," ",null,null,0,0,0,0,"",""]
[null,null,null,null,null," ",null,null,0,0,0,0,"",""]
[null,null,null,null,null," ",null,null,0,0,0,0,"",""]
[null,null,null,null,null," ",null,null,0,0,0,0,"",""]
[null,null,null,null,null," ",null,null,0,0,0,0,"",""]
[null,null,null,null,null," ",null,null,0,0,0,0,"",""]
[null,null,null,null,null," ",null,null,0,0,0,0,"",""]
[null,null,null,null,null," ",null,null,0,0,0,0,"",""]
[null,null,null,null,null," ",null,null,{"$f":"IF(H647=0,0,D647)","v":0},{"$f":"IF(H647<>\"p\",0,D647)","v":0},{"$f":"IF(H647=0,0,E647)","v":0},{"$f":"IF(H647<>\"p\",0,E647)","v":0},"",""]
[null,null,null,null,null," ",null,null,0,0,0,0,"",""]
[null,null,null,null,null," ",null,null,0,0,0,0,"",""]
[null,null,null,null,null," ",null,null,0,0,0,0,"",""]
[null,null,null,null,null," ",null,null,0,0,0,0,"",""]
[null,null,null,null,null," ",null,null,0,0,0,0,"",""]
[null,null,null,null,null," ",null,null,0,0,0,0,"",""]
[null,null,null,null,null," ",null,null,0,0,0,0,"",""]
[null,null,null,null,null,{"$f":"IF(D655-E655=0,\" \",F654+D655-E655)","v":" "},null,null,0,0,0,0,"",""]
[null,null,null,null,null," ",null,null,0,0,0,0,{"$f":"IF(A656=0,\"\",YEAR(A656))","v":""},{"$f":"IF(A656=0,\"\",MONTH(A656))","v":""}]
[null,null,null,null,null," ",null,null,0,0,0,0,"",""]
[null,null,null,null,null," ",null,null,0,0,0,0,"",""]
[null,null,null,null,null," ",null,null,0,0,0,0,"",""]
[null,null,null,null,null," ",null,null,0,0,0,0,"",""]
[null,null,null,null,null," ",null,null,0,0,0,0,"",""]
[null,null,null,null,null," ",null,null,0,0,0,0,"",""]
[null,null,null,null,null," ",null,null,0,0,0,0,"",""]
[null,null,null,null,null," ",null,null,0,0,0,0,"",""]
[null,null,null,null,null," ",null,null,0,0,0,0,"",""]
[null,null,null,null,null," ",null,null,0,0,0,0,"",""]
[null,null,null,null,null," ",null,null,0,0,0,0,"",""]
[null,null,null,null,null," ",null,null,0,0,0,0,"",""]
[null,null,null,null,null," ",null,null,0,0,0,0,"",""]
[null,null,null,null,null," ",null,null,0,0,0,0,"",""]
[null,null,null,null,null," ",null,null,0,0,0,0,"",""]
[null,null,null,null,null," ",null,null,0,0,0,0,"",""]
[null,null,null,null,null," ",null,null,0,0,0,0,"",""]
[null,null,null,null,null," ",null,null,0,0,0,0,"",""]
[null,null,null,null,null," ",null,null,0,0,0,0,"",""]
[null,null,null,null,null," ",null,null,0,0,0,0,"",""]
[null,null,null,null,null," ",null,null,0,0,0,0,"",""]
[null,null,null,null,null," ",null,null,0,0,0,0,"",""]
[null,null,null,null,null," ",null,null,0,0,0,0,"",""]
[null,null,null,null,null," ",null,null,0,0,0,0,"",""]
[null,null,null,null,null," ",null,null,0,0,0,0,"",""]
[null,null,null,null,null," ",null,null,0,0,0,0,"",""]
[null,null,null,null,null," ",null,null,0,0,0,0,"",""]
[null,null,null,null,null," ",null,null,0,0,0,0,"",""]
[null,null,null,null,null," ",null,null,0,0,0,0,"",""]
[null,null,null,null,null," ",null,null,0,0,0,0,"",""]
[null,null,null,null,null," ",null,null,0,0,0,0,"",""]
[null,null,null,null,null," ",null,null,0,0,0,0,"",""]
[null,null,null,null,null," ",null,null,0,0,0,0,"",""]
[null,null,null,null,null," ",null,null,0,0,0,0,"",""]
[null,null,null,null,null," ",null,null,0,0,0,0,"",""]
[null,null,null,null,null," ",null,null,0,0,0,0,"",""]
[null,null,null,null,null," ",null,null,0,0,0,0,"",""]
[null,null,null,null,null," ",null,null,0,0,0,0,"",""]
[null,null,null,null,null," ",null,null,0,0,0,0,"",""]
[null,null,null,null,null," ",null,null,0,0,0,0,"",""]
[null,null,null,null,null," ",null,null,0,0,0,0,"",""]
[null,null,null,null,null," ",null,null,0,0,0,0,"",""]
[null,null,null,null,null," ",null,null,0,0,0,0,"",""]
[null,null,null,null,null," ",null,null,0,0,0,0,"",""]
[null,null,null,null,null," ",null,null,0,0,0,0,"",""]
[null,null,null,null,null," ",null,null,0,0,0,0,"",""]
[null,null,null,null,null," ",null,null,0,0,0,0,"",""]
[null,null,null,null,null," ",null,null,0,0,0,0,"",""]
[null,null,null,null,null," ",null,null,0,0,0,0,"",""]
[null,null,null,null,null," ",null,null,0,0,0,0,"",""]
[null,null,null,null,null," ",null,null,0,0,0,0,"",""]
[null,null,null,null,null," ",null,null,0,0,0,0,"",""]
[null,null,null,null,null," ",null,null,0,0,0,0,"",""]
[null,null,null,null,null," ",null,null,0,0,0,0,"",""]
[null,null,null,null,null," ",null,null,{"$f":"IF(H711=0,0,D711)","v":0},{"$f":"IF(H711<>\"p\",0,D711)","v":0},{"$f":"IF(H711=0,0,E711)","v":0},{"$f":"IF(H711<>\"p\",0,E711)","v":0},"",""]
[null,null,null,null,null," ",null,null,0,0,0,0,"",""]
[null,null,null,null,null," ",null,null,0,0,0,0,"",""]
[null,null,null,null,null," ",null,null,0,0,0,0,"",""]
[null,null,null,null,null," ",null,null,0,0,0,0,"",""]
[null,null,null,null,null," ",null,null,0,0,0,0,"",""]
[null,null,null,null,null," ",null,null,0,0,0,0,"",""]
[null,null,null,null,null," ",null,null,0,0,0,0,"",""]
[null,null,null,null,null,{"$f":"IF(D719-E719=0,\" \",F718+D719-E719)","v":" "},null,null,0,0,0,0,"",""]
[null,null,null,null,null," ",null,null,0,0,0,0,{"$f":"IF(A720=0,\"\",YEAR(A720))","v":""},{"$f":"IF(A720=0,\"\",MONTH(A720))","v":""}]
[null,null,null,null,null," ",null,null,0,0,0,0,"",""]
[null,null,null,null,null," ",null,null,0,0,0,0,"",""]
[null,null,null,null,null," ",null,null,0,0,0,0,"",""]
[null,null,null,null,null," ",null,null,0,0,0,0,"",""]
[null,null,null,null,null," ",null,null,0,0,0,0,"",""]
[null,null,null,null,null," ",null,null,0,0,0,0,"",""]
[null,null,null,null,null," ",null,null,0,0,0,0,"",""]
[null,null,null,null,null," ",null,null,0,0,0,0,"",""]
[null,null,null,null,null," ",null,null,0,0,0,0,"",""]
[null,null,null,null,null," ",null,null,0,0,0,0,"",""]
[null,null,null,null,null," ",null,null,0,0,0,0,"",""]
[null,null,null,null,null," ",null,null,0,0,0,0,"",""]
[null,null,null,null,null," ",null,null,0,0,0,0,"",""]
[null,null,null,null,null," ",null,null,0,0,0,0,"",""]
[null,null,null,null,null," ",null,null,0,0,0,0,"",""]
[null,null,null,null,null," ",null,null,0,0,0,0,"",""]
[null,null,null,null,null," ",null,null,0,0,0,0,"",""]
[null,null,null,null,null," ",null,null,0,0,0,0,"",""]
[null,null,null,null,null," ",null,null,0,0,0,0,"",""]
[null,null,null,null,null," ",null,null,0,0,0,0,"",""]
[null,null,null,null,null," ",null,null,0,0,0,0,"",""]
[null,null,null,null,null," ",null,null,0,0,0,0,"",""]
[null,null,null,null,null," ",null,null,0,0,0,0,"",""]
[null,null,null,null,null," ",null,null,0,0,0,0,"",""]
[null,null,null,null,null," ",null,null,0,0,0,0,"",""]
[null,null,null,null,null," ",null,null,0,0,0,0,"",""]
[null,null,null,null,null," ",null,null,0,0,0,0,"",""]
[null,null,null,null,null," ",null,null,0,0,0,0,"",""]
[null,null,null,null,null," ",null,null,0,0,0,0,"",""]
[null,null,null,null,null," ",null,null,0,0,0,0,"",""]
[null,null,null,null,null," ",null,null,0,0,0,0,"",""]
[null,null,null,null,null," ",null,null,0,0,0,0,"",""]
[null,null,null,null,null," ",null,null,0,0,0,0,"",""]
[null,null,null,null,null," ",null,null,0,0,0,0,"",""]
[null,null,null,null,null," ",null,null,0,0,0,0,"",""]
[null,null,null,null,null," ",null,null,0,0,0,0,"",""]
[null,null,null,null,null," ",null,null,0,0,0,0,"",""]
[null,null,null,null,null," ",null,null,0,0,0,0,"",""]
[null,null,null,null,null," ",null,null,0,0,0,0,"",""]
[null,null,null,null,null," ",null,null,0,0,0,0,"",""]
[null,null,null,null,null," ",null,null,0,0,0,0,"",""]
[null,null,null,null,null," ",null,null,0,0,0,0,"",""]
[null,null,null,null,null," ",null,null,0,0,0,0,"",""]
[null,null,null,null,null," ",null,null,0,0,0,0,"",""]
[null,null,null,null,null," ",null,null,0,0,0,0,"",""]
[null,null,null,null,null," ",null,null,0,0,0,0,"",""]
[null,null,null,null,null," ",null,null,0,0,0,0,"",""]
[null,null,null,null,null," ",null,null,0,0,0,0,"",""]
[null,null,null,null,null," ",null,null,0,0,0,0,"",""]
[null,null,null,null,null," ",null,null,0,0,0,0,"",""]
[null,null,null,null,null," ",null,null,0,0,0,0,"",""]
[null,null,null,null,null," ",null,null,0,0,0,0,"",""]
[null,null,null,null,null," ",null,null,0,0,0,0,"",""]
[null,null,null,null,null," ",null,null,0,0,0,0,"",""]
[null,null,null,null,null," ",null,null,{"$f":"IF(H775=0,0,D775)","v":0},{"$f":"IF(H775<>\"p\",0,D775)","v":0},{"$f":"IF(H775=0,0,E775)","v":0},{"$f":"IF(H775<>\"p\",0,E775)","v":0},"",""]
[null,null,null,null,null," ",null,null,0,0,0,0,"",""]
[null,null,null,null,null," ",null,null,0,0,0,0,"",""]
[null,null,null,null,null," ",null,null,0,0,0,0,"",""]
[null,null,null,null,null," ",null,null,0,0,0,0,"",""]
[null,null,null,null,null," ",null,null,0,0,0,0,"",""]
[null,null,null,null,null," ",null,null,0,0,0,0,"",""]
[null,null,null,null,null," ",null,null,0,0,0,0,"",""]
[null,null,null,null,null,{"$f":"IF(D783-E783=0,\" \",F782+D783-E783)","v":" "},null,null,0,0,0,0,"",""]
[null,null,null,null,null," ",null,null,0,0,0,0,{"$f":"IF(A784=0,\"\",YEAR(A784))","v":""},{"$f":"IF(A784=0,\"\",MONTH(A784))","v":""}]
[null,null,null,null,null," ",null,null,0,0,0,0,"",""]
[null,null,null,null,null," ",null,null,0,0,0,0,"",""]
[null,null,null,null,null," ",null,null,0,0,0,0,"",""]
[null,null,null,null,null," ",null,null,0,0,0,0,"",""]
[null,null,null,null,null," ",null,null,0,0,0,0,"",""]
[null,null,null,null,null," ",null,null,0,0,0,0,"",""]
[null,null,null,null,null," ",null,null,0,0,0,0,"",""]
[null,null,null,null,null," ",null,null,0,0,0,0,"",""]
[null,null,null,null,null," ",null,null,0,0,0,0,"",""]
[null,null,null,null,null," ",null,null,0,0,0,0,"",""]
[null,null,null,null,null," ",null,null,0,0,0,0,"",""]
[null,null,null,null,null," ",null,null,0,0,0,0,"",""]
[null,null,null,null,null," ",null,null,0,0,0,0,"",""]
[null,null,null,null,null," ",null,null,0,0,0,0,"",""]
[null,null,null,null,null," ",null,null,0,0,0,0,"",""]
[null,null,null,null,null," ",null,null,0,0,0,0,"",""]
[null,null,null,null,null," ",null,null,0,0,0,0,"",""]
[null,null,null,null,null," ",null,null,0,0,0,0,"",""]
[null,null,null,null,null," ",null,null,0,0,0,0,"",""]
[null,null,null,null,null," ",null,null,0,0,0,0,"",""]
[null,null,null,null,null," ",null,null,0,0,0,0,"",""]
[null,null,null,null,null," ",null,null,0,0,0,0,"",""]
[null,null,null,null,null," ",null,null,0,0,0,0,"",""]
[null,null,null,null,null," ",null,null,0,0,0,0,"",""]
[null,null,null,null,null," ",null,null,0,0,0,0,"",""]
[null,null,null,null,null," ",null,null,0,0,0,0,"",""]
[null,null,null,null,null," ",null,null,0,0,0,0,"",""]
[null,null,null,null,null," ",null,null,0,0,0,0,"",""]
[null,null,null,null,null," ",null,null,0,0,0,0,"",""]
[null,null,null,null,null," ",null,null,0,0,0,0,"",""]
[null,null,null,null,null," ",null,null,0,0,0,0,"",""]
[null,null,null,null,null," ",null,null,0,0,0,0,"",""]
[null,null,null,null,null," ",null,null,0,0,0,0,"",""]
[null,null,null,null,null," ",null,null,0,0,0,0,"",""]
[null,null,null,null,null," ",null,null,0,0,0,0,"",""]
[null,null,null,null,null," ",null,null,0,0,0,0,"",""]
[null,null,null,null,null," ",null,null,0,0,0,0,"",""]
[null,null,null,null,null," ",null,null,0,0,0,0,"",""]
[null,null,null,null,null," ",null,null,0,0,0,0,"",""]
[null,null,null,null,null," ",null,null,0,0,0,0,"",""]
[null,null,null,null,null," ",null,null,0,0,0,0,"",""]
[null,null,null,null,null," ",null,null,0,0,0,0,"",""]
[null,null,null,null,null," ",null,null,0,0,0,0,"",""]
[null,null,null,null,null," ",null,null,0,0,0,0,"",""]
[null,null,null,null,null," ",null,null,0,0,0,0,"",""]
[null,null,null,null,null," ",null,null,0,0,0,0,"",""]
[null,null,null,null,null," ",null,null,0,0,0,0,"",""]
[null,null,null,null,null," ",null,null,0,0,0,0,"",""]
[null,null,null,null,null," ",null,null,0,0,0,0,"",""]
[null,null,null,null,null," ",null,null,0,0,0,0,"",""]
[null,null,null,null,null," ",null,null,0,0,0,0,"",""]
[null,null,null,null,null," ",null,null,0,0,0,0,"",""]
[null,null,null,null,null," ",null,null,0,0,0,0,"",""]
[null,null,null,null,null," ",null,null,0,0,0,0,"",""]
[null,null,null,null,null," ",null,null,{"$f":"IF(H839=0,0,D839)","v":0},{"$f":"IF(H839<>\"p\",0,D839)","v":0},{"$f":"IF(H839=0,0,E839)","v":0},{"$f":"IF(H839<>\"p\",0,E839)","v":0},"",""]
[null,null,null,null,null," ",null,null,0,0,0,0,"",""]
[null,null,null,null,null," ",null,null,0,0,0,0,"",""]
[null,null,null,null,null," ",null,null,0,0,0,0,"",""]
[null,null,null,null,null," ",null,null,0,0,0,0,"",""]
[null,null,null,null,null," ",null,null,0,0,0,0,"",""]
[null,null,null,null,null," ",null,null,0,0,0,0,"",""]
[null,null,null,null,null," ",null,null,0,0,0,0,"",""]
[null,null,null,null,null,{"$f":"IF(D847-E847=0,\" \",F846+D847-E847)","v":" "},null,null,0,0,0,0,"",""]
[null,null,null,null,null," ",null,null,0,0,0,0,{"$f":"IF(A848=0,\"\",YEAR(A848))","v":""},{"$f":"IF(A848=0,\"\",MONTH(A848))","v":""}]
[null,null,null,null,null," ",null,null,0,0,0,0,"",""]
[null,null,null,null,null," ",null,null,0,0,0,0,"",""]
[null,null,null,null,null," ",null,null,0,0,0,0,"",""]
[null,null,null,null,null," ",null,null,0,0,0,0,"",""]
[null,null,null,null,null," ",null,null,0,0,0,0,"",""]
[null,null,null,null,null," ",null,null,0,0,0,0,"",""]
[null,null,null,null,null," ",null,null,0,0,0,0,"",""]
[null,null,null,null,null," ",null,null,0,0,0,0,"",""]
[null,null,null,null,null," ",null,null,0,0,0,0,"",""]
[null,null,null,null,null," ",null,null,0,0,0,0,"",""]
[null,null,null,null,null," ",null,null,0,0,0,0,"",""]
[null,null,null,null,null," ",null,null,0,0,0,0,"",""]
[null,null,null,null,null," ",null,null,0,0,0,0,"",""]
[null,null,null,null,null," ",null,null,0,0,0,0,"",""]
[null,null,null,null,null," ",null,null,0,0,0,0,"",""]
[null,null,null,null,null," ",null,null,0,0,0,0,"",""]
[null,null,null,null,null," ",null,null,0,0,0,0,"",""]
[null,null,null,null,null," ",null,null,0,0,0,0,"",""]
[null,null,null,null,null," ",null,null,0,0,0,0,"",""]
[null,null,null,null,null," ",null,null,0,0,0,0,"",""]
[null,null,null,null,null," ",null,null,0,0,0,0,"",""]
[null,null,null,null,null," ",null,null,0,0,0,0,"",""]
[null,null,null,null,null," ",null,null,0,0,0,0,"",""]
[null,null,null,null,null," ",null,null,0,0,0,0,"",""]
[null,null,null,null,null," ",null,null,0,0,0,0,"",""]
[null,null,null,null,null," ",null,null,0,0,0,0,"",""]
[null,null,null,null,null," ",null,null,0,0,0,0,"",""]
[null,null,null,null,null," ",null,null,0,0,0,0,"",""]
[null,null,null,null,null," ",null,null,0,0,0,0,"",""]
[null,null,null,null,null," ",null,null,0,0,0,0,"",""]
[null,null,null,null,null," ",null,null,0,0,0,0,"",""]
[null,null,null,null,null," ",null,null,0,0,0,0,"",""]
[null,null,null,null,null," ",null,null,0,0,0,0,"",""]
[null,null,null,null,null," ",null,null,0,0,0,0,"",""]
[null,null,null,null,null," ",null,null,0,0,0,0,"",""]
[null,null,null,null,null," ",null,null,0,0,0,0,"",""]
[null,null,null,null,null," ",null,null,0,0,0,0,"",""]
[null,null,null,null,null," ",null,null,0,0,0,0,"",""]
[null,null,null,null,null," ",null,null,0,0,0,0,"",""]
[null,null,null,null,null," ",null,null,0,0,0,0,"",""]
[null,null,null,null,null," ",null,null,0,0,0,0,"",""]
[null,null,null,null,null," ",null,null,0,0,0,0,"",""]
[null,null,null,null,null," ",null,null,0,0,0,0,"",""]
[null,null,null,null,null," ",null,null,0,0,0,0,"",""]
[null,null,null,null,null," ",null,null,0,0,0,0,"",""]
[null,null,null,null,null," ",null,null,0,0,0,0,"",""]
[null,null,null,null,null," ",null,null,0,0,0,0,"",""]
[null,null,null,null,null," ",null,null,0,0,0,0,"",""]
[null,null,null,null,null," ",null,null,0,0,0,0,"",""]
[null,null,null,null,null," ",null,null,0,0,0,0,"",""]
[null,null,null,null,null," ",null,null,0,0,0,0,"",""]
[null,null,null,null,null," ",null,null,0,0,0,0,"",""]
[null,null,null,null,null," ",null,null,0,0,0,0,"",""]
[null,null,null,null,null," ",null,null,0,0,0,0,"",""]
[null,null,null,null,null," ",null,null,{"$f":"IF(H903=0,0,D903)","v":0},{"$f":"IF(H903<>\"p\",0,D903)","v":0},{"$f":"IF(H903=0,0,E903)","v":0},{"$f":"IF(H903<>\"p\",0,E903)","v":0},"",""]
[null,null,null,null,null," ",null,null,0,0,0,0,"",""]
[null,null,null,null,null," ",null,null,0,0,0,0,"",""]
[null,null,null,null,null," ",null,null,0,0,0,0,"",""]
[null,null,null,null,null," ",null,null,0,0,0,0,"",""]
[null,null,null,null,null," ",null,null,0,0,0,0,"",""]
[null,null,null,null,null," ",null,null,0,0,0,0,"",""]
[null,null,null,null,null," ",null,null,0,0,0,0,"",""]
[null,null,null,null,null,{"$f":"IF(D911-E911=0,\" \",F910+D911-E911)","v":" "},null,null,0,0,0,0,"",""]
[null,null,null,null,null," ",null,null,0,0,0,0,{"$f":"IF(A912=0,\"\",YEAR(A912))","v":""},{"$f":"IF(A912=0,\"\",MONTH(A912))","v":""}]
[null,null,null,null,null," ",null,null,0,0,0,0,"",""]
[null,null,null,null,null," ",null,null,0,0,0,0,"",""]
[null,null,null,null,null," ",null,null,0,0,0,0,"",""]
[null,null,null,null,null," ",null,null,0,0,0,0,"",""]
[null,null,null,null,null," ",null,null,0,0,0,0,"",""]
[null,null,null,null,null," ",null,null,0,0,0,0,"",""]
[null,null,null,null,null," ",null,null,0,0,0,0,"",""]
[null,null,null,null,null," ",null,null,0,0,0,0,"",""]
[null,null,null,null,null," ",null,null,0,0,0,0,"",""]
[null,null,null,null,null," ",null,null,0,0,0,0,"",""]
[null,null,null,null,null," ",null,null,0,0,0,0,"",""]
[null,null,null,null,null," ",null,null,0,0,0,0,"",""]
[null,null,null,null,null," ",null,null,0,0,0,0,"",""]
[null,null,null,null,null," ",null,null,0,0,0,0,"",""]
[null,null,null,null,null," ",null,null,0,0,0,0,"",""]
[null,null,null,null,null," ",null,null,0,0,0,0,"",""]
[null,null,null,null,null," ",null,null,0,0,0,0,"",""]
[null,null,null,null,null," ",null,null,0,0,0,0,"",""]
[null,null,null,null,null," ",null,null,0,0,0,0,"",""]
[null,null,null,null,null," ",null,null,0,0,0,0,"",""]
[null,null,null,null,null," ",null,null,0,0,0,0,"",""]
[null,null,null,null,null," ",null,null,0,0,0,0,"",""]
[null,null,null,null,null," ",null,null,0,0,0,0,"",""]
[null,null,null,null,null," ",null,null,0,0,0,0,"",""]
[null,null,null,null,null," ",null,null,0,0,0,0,"",""]
[null,null,null,null,null," ",null,null,0,0,0,0,"",""]
[null,null,null,null,null," ",null,null,0,0,0,0,"",""]
[null,null,null,null,null," ",null,null,0,0,0,0,"",""]
[null,null,null,null,null," ",null,null,0,0,0,0,"",""]
[null,null,null,null,null," ",null,null,0,0,0,0,"",""]
[null,null,null,null,null," ",null,null,0,0,0,0,"",""]
[null,null,null,null,null," ",null,null,0,0,0,0,"",""]
[null,null,null,null,null," ",null,null,0,0,0,0,"",""]
[null,null,null,null,null," ",null,null,0,0,0,0,"",""]
[null,null,null,null,null," ",null,null,0,0,0,0,"",""]
[null,null,null,null,null," ",null,null,0,0,0,0,"",""]
[null,null,null,null,null," ",null,null,0,0,0,0,"",""]
[null,null,null,null,null," ",null,null,0,0,0,0,"",""]
[null,null,null,null,null," ",null,null,0,0,0,0,"",""]
[null,null,null,null,null," ",null,null,0,0,0,0,"",""]
[null,null,null,null,null," ",null,null,0,0,0,0,"",""]
[null,null,null,null,null," ",null,null,0,0,0,0,"",""]
[null,null,null,null,null," ",null,null,0,0,0,0,"",""]
[null,null,null,null,null," ",null,null,0,0,0,0,"",""]
[null,null,null,null,null," ",null,null,0,0,0,0,"",""]
[null,null,null,null,null," ",null,null,0,0,0,0,"",""]
[null,null,null,null,null," ",null,null,0,0,0,0,"",""]
[null,null,null,null,null," ",null,null,0,0,0,0,"",""]
[null,null,null,null,null," ",null,null,0,0,0,0,"",""]
[null,null,null,null,null," ",null,null,0,0,0,0,"",""]
[null,null,null,null,null," ",null,null,0,0,0,0,"",""]
[null,null,null,null,null," ",null,null,0,0,0,0,"",""]
[null,null,null,null,null," ",null,null,0,0,0,0,"",""]
[null,null,null,null,null," ",null,null,0,0,0,0,"",""]
[null,null,null,null,null," ",null,null,{"$f":"IF(H967=0,0,D967)","v":0},{"$f":"IF(H967<>\"p\",0,D967)","v":0},{"$f":"IF(H967=0,0,E967)","v":0},{"$f":"IF(H967<>\"p\",0,E967)","v":0},"",""]
[null,null,null,null,null," ",null,null,0,0,0,0,"",""]
[null,null,null,null,null," ",null,null,0,0,0,0,"",""]
[null,null,null,null,null," ",null,null,0,0,0,0,"",""]
[null,null,null,null,null," ",null,null,0,0,0,0,"",""]
[null,null,null,null,null," ",null,null,0,0,0,0,"",""]
[null,null,null,null,null," ",null,null,0,0,0,0,"",""]
[null,null,null,null,null," ",null,null,0,0,0,0,"",""]
[null,null,null,null,null,{"$f":"IF(D975-E975=0,\" \",F974+D975-E975)","v":" "},null,null,0,0,0,0,"",""]
[null,null,null,null,null," ",null,null,0,0,0,0,{"$f":"IF(A976=0,\"\",YEAR(A976))","v":""},{"$f":"IF(A976=0,\"\",MONTH(A976))","v":""}]
[null,null,null,null,null," ",null,null,0,0,0,0,"",""]
[null,null,null,null,null," ",null,null,0,0,0,0,"",""]
[null,null,null,null,null," ",null,null,0,0,0,0,"",""]
[null,null,null,null,null," ",null,null,0,0,0,0,"",""]
[null,null,null,null,null," ",null,null,0,0,0,0,"",""]
[null,null,null,null,null," ",null,null,0,0,0,0,"",""]
[null,null,null,null,null," ",null,null,0,0,0,0,"",""]
[null,null,null,null,null," ",null,null,0,0,0,0,"",""]
[null,null,null,null,null," ",null,null,0,0,0,0,"",""]
[null,null,null,null,null," ",null,null,0,0,0,0,"",""]
[null,null,null,null,null," ",null,null,0,0,0,0,"",""]
[null,null,null,null,null," ",null,null,0,0,0,0,"",""]
[null,null,null,null,null," ",null,null,0,0,0,0,"",""]
[null,null,null,null,null," ",null,null,0,0,0,0,"",""]
[null,null,null,null,null," ",null,null,0,0,0,0,"",""]
[null,null,null,null,null," ",null,null,0,0,0,0,"",""]
[null,null,null,null,null," ",null,null,0,0,0,0,"",""]
[null,null,null,null,null," ",null,null,0,0,0,0,"",""]
[null,null,null,null,null," ",null,null,0,0,0,0,"",""]
[null,null,null,null,null," ",null,null,0,0,0,0,"",""]
[null,null,null,null,null," ",null,null,0,0,0,0,"",""]
[null,null,null,null,null," ",null,null,0,0,0,0,"",""]
[null,null,null,null,null," ",null,null,0,0,0,0,"",""]
[null,null,null,null,null," ",null,null,0,0,0,0,"",""]
[null,null,null,null,null," ",null,null,0,0,0,0,"",""]
[null,null,null,null,null," ",null,null,0,0,0,0,"",""]
[null,null,null,null,null," ",null,null,0,0,0,0,"",""]
[null,null,null,null,null," ",null,null,0,0,0,0,"",""]
[null,null,null,null,null," ",null,null,0,0,0,0,"",""]
[null,null,null,null,null," ",null,null,0,0,0,0,"",""]
[null,null,null,null,null," ",null,null,0,0,0,0,"",""]
[null,null,null,null,null," ",null,null,0,0,0,0,"",""]
[null,null,null,null,null," ",null,null,0,0,0,0,"",""]
[null,null,null,null,null," ",null,null,0,0,0,0,"",""]
[null,null,null,null,null," ",null,null,0,0,0,0,"",""]
[null,null,null,null,null," ",null,null,0,0,0,0,"",""]
[null,null,null,null,null," ",null,null,0,0,0,0,"",""]
[null,null,null,null,null," ",null,null,0,0,0,0,"",""]
[null,null,null,null,null," ",null,null,0,0,0,0,"",""]
[null,null,null,null,null," ",null,null,0,0,0,0,"",""]
[null,null,null,null,null," ",null,null,0,0,0,0,"",""]
[null,null,null,null,null," ",null,null,0,0,0,0,"",""]
[null,null,null,null,null," ",null,null,0,0,0,0,"",""]
[null,null,null,null,null," ",null,null,0,0,0,0,"",""]
[null,null,null,null,null," ",null,null,0,0,0,0,"",""]
[null,null,null,null,null," ",null,null,0,0,0,0,"",""]
[null,null,null,null,null," ",null,null,0,0,0,0,"",""]
[null,null,null,null,null," ",null,null,0,0,0,0,"",""]
[null,null,null,null,null," ",null,null,0,0,0,0,"",""]
[null,null,null,null,null," ",null,null,0,0,0,0,"",""]
[null,null,null,null,null," ",null,null,0,0,0,0,"",""]
[null,null,null,null,null," ",null,null,0,0,0,0,"",""]
[null,null,null,null,null," ",null,null,0,0,0,0,"",""]
[null,null,null,null,null," ",null,null,0,0,0,0,"",""]
[null,null,null,null,null," ",null,null,{"$f":"IF(H1031=0,0,D1031)","v":0},{"$f":"IF(H1031<>\"p\",0,D1031)","v":0},{"$f":"IF(H1031=0,0,E1031)","v":0},{"$f":"IF(H1031<>\"p\",0,E1031)","v":0},"",""]
[null,null,null,null,null," ",null,null,0,0,0,0,"",""]
[null,null,null,null,null," ",null,null,0,0,0,0,"",""]
[null,null,null,null,null," ",null,null,0,0,0,0,"",""]
[null,null,null,null,null," ",null,null,0,0,0,0,"",""]
[null,null,null,null,null," ",null,null,0,0,0,0,"",""]
[null,null,null,null,null," ",null,null,0,0,0,0,"",""]
[null,null,null,null,null," ",null,null,0,0,0,0,"",""]
[null,null,null,null,null,{"$f":"IF(D1039-E1039=0,\" \",F1038+D1039-E1039)","v":" "},null,null,0,0,0,0,"",""]
[null,null,null,null,null," ",null,null,0,0,0,0,{"$f":"IF(A1040=0,\"\",YEAR(A1040))","v":""},{"$f":"IF(A1040=0,\"\",MONTH(A1040))","v":""}]
[null,null,null,null,null," ",null,null,0,0,0,0,"",""]
[null,null,null,null,null," ",null,null,0,0,0,0,"",""]
[null,null,null,null,null," ",null,null,0,0,0,0,"",""]
[null,null,null,null,null," ",null,null,0,0,0,0,"",""]
[null,null,null,null,null," ",null,null,0,0,0,0,"",""]
[null,null,null,null,null," ",null,null,0,0,0,0,"",""]
[null,null,null,null,null," ",null,null,0,0,0,0,"",""]
[null,null,null,null,null," ",null,null,0,0,0,0,"",""]
[null,null,null,null,null," ",null,null,0,0,0,0,"",""]
[null,null,null,null,null," ",null,null,0,0,0,0,"",""]
[null,null,null,null,null," ",null,null,0,0,0,0,"",""]
[null,null,null,null,null," ",null,null,0,0,0,0,"",""]
[null,null,null,null,null," ",null,null,0,0,0,0,"",""]
[null,null,null,null,null," ",null,null,0,0,0,0,"",""]
[null,null,null,null,null," ",null,null,0,0,0,0,"",""]
[null,null,null,null,null," ",null,null,0,0,0,0,"",""]
[null,null,null,null,null," ",null,null,0,0,0,0,"",""]
[null,null,null,null,null," ",null,null,0,0,0,0,"",""]
[null,null,null,null,null," ",null,null,0,0,0,0,"",""]
[null,null,null,null,null," ",null,null,0,0,0,0,"",""]
[null,null,null,null,null," ",null,null,0,0,0,0,"",""]
[null,null,null,null,null," ",null,null,0,0,0,0,"",""]
[null,null,null,null,null," ",null,null,0,0,0,0,"",""]
[null,null,null,null,null," ",null,null,0,0,0,0,"",""]
[null,null,null,null,null," ",null,null,0,0,0,0,"",""]
[null,null,null,null,null," ",null,null,0,0,0,0,"",""]
[null,null,null,null,null," ",null,null,0,0,0,0,"",""]
[null,null,null,null,null," ",null,null,0,0,0,0,"",""]
[null,null,null,null,null," ",null,null,0,0,0,0,"",""]
[null,null,null,null,null," ",null,null,0,0,0,0,"",""]
[null,null,null,null,null," ",null,null,0,0,0,0,"",""]
[null,null,null,null,null," ",null,null,0,0,0,0,"",""]
[null,null,null,null,null," ",null,null,0,0,0,0,"",""]
[null,null,null,null,null," ",null,null,0,0,0,0,"",""]
[null,null,null,null,null," ",null,null,0,0,0,0,"",""]
[null,null,null,null,null," ",null,null,0,0,0,0,"",""]
[null,null,null,null,null," ",null,null,0,0,0,0,"",""]
[null,null,null,null,null," ",null,null,0,0,0,0,"",""]
[null,null,null,null,null," ",null,null,0,0,0,0,"",""]
[null,null,null,null,null," ",null,null,0,0,0,0,"",""]
[null,null,null,null,null," ",null,null,0,0,0,0,"",""]
[null,null,null,null,null," ",null,null,0,0,0,0,"",""]
[null,null,null,null,null," ",null,null,0,0,0,0,"",""]
[null,null,null,null,null," ",null,null,0,0,0,0,"",""]
[null,null,null,null,null," ",null,null,0,0,0,0,"",""]
[null,null,null,null,null," ",null,null,0,0,0,0,"",""]
[null,null,null,null,null," ",null,null,0,0,0,0,"",""]
[null,null,null,null,null," ",null,null,0,0,0,0,"",""]
[null,null,null,null,null," ",null,null,0,0,0,0,"",""]
[null,null,null,null,null," ",null,null,0,0,0,0,"",""]
[null,null,null,null,null," ",null,null,0,0,0,0,"",""]
[null,null,null,null,null," ",null,null,0,0,0,0,"",""]
[null,null,null,null,null," ",null,null,0,0,0,0,"",""]
[null,null,null,null,null," ",null,null,0,0,0,0,"",""]
[null,null,null,null,null," ",null,null,{"$f":"IF(H1095=0,0,D1095)","v":0},{"$f":"IF(H1095<>\"p\",0,D1095)","v":0},{"$f":"IF(H1095=0,0,E1095)","v":0},{"$f":"IF(H1095<>\"p\",0,E1095)","v":0},"",""]
[null,null,null,null,null," ",null,null,0,0,0,0,"",""]
[null,null,null,null,null," ",null,null,0,0,0,0,"",""]
[null,null,null,null,null," ",null,null,0,0,0,0,"",""]
[null,null,null,null,null," ",null,null,0,0,0,0,"",""]
[null,null,null,null,null," ",null,null,0,0,0,0,"",""]
[null,null,null,null,null," ",null,null,0,0,0,0,"",""]
[null,null,null,null,null," ",null,null,0,0,0,0,"",""]
[null,null,null,null,null,{"$f":"IF(D1103-E1103=0,\" \",F1102+D1103-E1103)","v":" "},null,null,0,0,0,0,"",""]
[null,null,null,null,null," ",null,null,0,0,0,0,{"$f":"IF(A1104=0,\"\",YEAR(A1104))","v":""},{"$f":"IF(A1104=0,\"\",MONTH(A1104))","v":""}]
[null,null,null,null,null," ",null,null,0,0,0,0,"",""]
[null,null,null,null,null," ",null,null,0,0,0,0,"",""]
[null,null,null,null,null," ",null,null,0,0,0,0,"",""]
[null,null,null,null,null," ",null,null,0,0,0,0,"",""]
[null,null,null,null,null," ",null,null,0,0,0,0,"",""]
[null,null,null,null,null," ",null,null,0,0,0,0,"",""]
[null,null,null,null,null," ",null,null,0,0,0,0,"",""]
[null,null,null,null,null," ",null,null,0,0,0,0,"",""]
[null,null,null,null,null," ",null,null,0,0,0,0,"",""]
[null,null,null,null,null," ",null,null,0,0,0,0,"",""]
[null,null,null,null,null," ",null,null,0,0,0,0,"",""]
[null,null,null,null,null," ",null,null,0,0,0,0,"",""]
[null,null,null,null,null," ",null,null,0,0,0,0,"",""]
[null,null,null,null,null," ",null,null,0,0,0,0,"",""]
[null,null,null,null,null," ",null,null,0,0,0,0,"",""]
[null,null,null,null,null," ",null,null,0,0,0,0,"",""]
[null,null,null,null,null," ",null,null,0,0,0,0,"",""]
[null,null,null,null,null," ",null,null,0,0,0,0,"",""]
[null,null,null,null,null," ",null,null,0,0,0,0,"",""]
[null,null,null,null,null," ",null,null,0,0,0,0,"",""]
[null,null,null,null,null," ",null,null,0,0,0,0,"",""]
[null,null,null,null,null," ",null,null,0,0,0,0,"",""]
[null,null,null,null,null," ",null,null,0,0,0,0,"",""]
[null,null,null,null,null," ",null,null,0,0,0,0,"",""]
[null,null,null,null,null," ",null,null,0,0,0,0,"",""]
[null,null,null,null,null," ",null,null,0,0,0,0,"",""]
[null,null,null,null,null," ",null,null,0,0,0,0,"",""]
[null,null,null,null,null," ",null,null,0,0,0,0,"",""]
[null,null,null,null,null," ",null,null,0,0,0,0,"",""]
[null,null,null,null,null," ",null,null,0,0,0,0,"",""]
[null,null,null,null,null," ",null,null,0,0,0,0,"",""]
[null,null,null,null,null," ",null,null,0,0,0,0,"",""]
[null,null,null,null,null," ",null,null,0,0,0,0,"",""]
[null,null,null,null,null," ",null,null,0,0,0,0,"",""]
[null,null,null,null,null," ",null,null,0,0,0,0,"",""]
[null,null,null,null,null," ",null,null,0,0,0,0,"",""]
[null,null,null,null,null," ",null,null,0,0,0,0,"",""]
[null,null,null,null,null," ",null,null,0,0,0,0,"",""]
[null,null,null,null,null," ",null,null,0,0,0,0,"",""]
[null,null,null,null,null," ",null,null,0,0,0,0,"",""]
[null,null,null,null,null," ",null,null,0,0,0,0,"",""]
[null,null,null,null,null," ",null,null,0,0,0,0,"",""]
[null,null,null,null,null," ",null,null,0,0,0,0,"",""]
[null,null,null,null,null," ",null,null,0,0,0,0,"",""]
[null,null,null,null,null," ",null,null,0,0,0,0,"",""]
[null,null,null,null,null," ",null,null,0,0,0,0,"",""]
[null,null,null,null,null," ",null,null,0,0,0,0,"",""]
[null,null,null,null,null," ",null,null,0,0,0,0,"",""]
[null,null,null,null,null," ",null,null,0,0,0,0,"",""]
[null,null,null,null,null," ",null,null,0,0,0,0,"",""]
[null,null,null,null,null," ",null,null,0,0,0,0,"",""]
[null,null,null,null,null," ",null,null,0,0,0,0,"",""]
[null,null,null,null,null," ",null,null,0,0,0,0,"",""]
[null,null,null,null,null," ",null,null,0,0,0,0,"",""]
[null,null,null,null,null," ",null,null,{"$f":"IF(H1159=0,0,D1159)","v":0},{"$f":"IF(H1159<>\"p\",0,D1159)","v":0},{"$f":"IF(H1159=0,0,E1159)","v":0},{"$f":"IF(H1159<>\"p\",0,E1159)","v":0},"",""]
[null,null,null,null,null," ",null,null,0,0,0,0,"",""]
[null,null,null,null,null," ",null,null,0,0,0,0,"",""]
[null,null,null,null,null," ",null,null,0,0,0,0,"",""]
[null,null,null,null,null," ",null,null,0,0,0,0,"",""]
[null,null,null,null,null," ",null,null,0,0,0,0,"",""]
[null,null,null,null,null," ",null,null,0,0,0,0,"",""]
[null,null,null,null,null," ",null,null,0,0,0,0,"",""]
[null,null,null,null,null,{"$f":"IF(D1167-E1167=0,\" \",F1166+D1167-E1167)","v":" "},null,null,0,0,0,0,"",""]
[null,null,null,null,null," ",null,null,0,0,0,0,{"$f":"IF(A1168=0,\"\",YEAR(A1168))","v":""},{"$f":"IF(A1168=0,\"\",MONTH(A1168))","v":""}]
[null,null,null,null,null," ",null,null,0,0,0,0,"",""]
[null,null,null,null,null," ",null,null,0,0,0,0,"",""]
[null,null,null,null,null," ",null,null,0,0,0,0,"",""]
[null,null,null,null,null," ",null,null,0,0,0,0,"",""]
[null,null,null,null,null," ",null,null,0,0,0,0,"",""]
[null,null,null,null,null," ",null,null,0,0,0,0,"",""]
[null,null,null,null,null," ",null,null,0,0,0,0,"",""]
[null,null,null,null,null," ",null,null,0,0,0,0,"",""]
[null,null,null,null,null," ",null,null,0,0,0,0,"",""]
[null,null,null,null,null," ",null,null,0,0,0,0,"",""]
[null,null,null,null,null," ",null,null,0,0,0,0,"",""]
[null,null,null,null,null," ",null,null,0,0,0,0,"",""]
[null,null,null,null,null," ",null,null,0,0,0,0,"",""]
[null,null,null,null,null," ",null,null,0,0,0,0,"",""]
[null,null,null,null,null," ",null,null,0,0,0,0,"",""]
[null,null,null,null,null," ",null,null,0,0,0,0,"",""]
[null,null,null,null,null," ",null,null,0,0,0,0,"",""]
[null,null,null,null,null," ",null,null,0,0,0,0,"",""]
[null,null,null,null,null," ",null,null,0,0,0,0,"",""]
[null,null,null,null,null," ",null,null,0,0,0,0,"",""]
[null,null,null,null,null," ",null,null,0,0,0,0,"",""]
[null,null,null,null,null," ",null,null,0,0,0,0,"",""]
[null,null,null,null,null," ",null,null,0,0,0,0,"",""]
[null,null,null,null,null," ",null,null,0,0,0,0,"",""]
[null,null,null,null,null," ",null,null,0,0,0,0,"",""]
[null,null,null,null,null," ",null,null,0,0,0,0,"",""]
[null,null,null,null,null," ",null,null,0,0,0,0,"",""]
[null,null,null,null,null," ",null,null,0,0,0,0,"",""]
[null,null,null,null,null," ",null,null,0,0,0,0,"",""]
[null,null,null,null,null," ",null,null,0,0,0,0,"",""]
[null,null,null,null,null," ",null,null,0,0,0,0,"",""]
[null,null,null,null,null," ",null,null,0,0,0,0,"",""]
[null,null,null,null,null," ",null,null,0,0,0,0,"",""]
[null,null,null,null,null," ",null,null,0,0,0,0,"",""]
[null,null,null,null,null," ",null,null,0,0,0,0,"",""]
[null,null,null,null,null," ",null,null,0,0,0,0,"",""]
[null,null,null,null,null," ",null,null,0,0,0,0,"",""]
[null,null,null,null,null," ",null,null,0,0,0,0,"",""]
[null,null,null,null,null," ",null,null,0,0,0,0,"",""]
[null,null,null,null,null," ",null,null,0,0,0,0,"",""]
[null,null,null,null,null," ",null,null,0,0,0,0,"",""]
[null,null,null,null,null," ",null,null,0,0,0,0,"",""]
[null,null,null,null,null," ",null,null,0,0,0,0,"",""]
[null,null,null,null,null," ",null,null,0,0,0,0,"",""]
[null,null,null,null,null," ",null,null,0,0,0,0,"",""]
[null,null,null,null,null," ",null,null,0,0,0,0,"",""]
[null,null,null,null,null," ",null,null,0,0,0,0,"",""]
[null,null,null,null,null," ",null,null,0,0,0,0,"",""]
[null,null,null,null,null," ",null,null,0,0,0,0,"",""]
[null,null,null,null,null," ",null,null,0,0,0,0,"",""]
[null,null,null,null,null," ",null,null,0,0,0,0,"",""]
[null,null,null,null,null," ",null,null,0,0,0,0,"",""]
[null,null,null,null,null," ",null,null,0,0,0,0,"",""]
[null,null,null,null,null," ",null,null,0,0,0,0,"",""]
[null,null,null,null,null," ",null,null,{"$f":"IF(H1223=0,0,D1223)","v":0},{"$f":"IF(H1223<>\"p\",0,D1223)","v":0},{"$f":"IF(H1223=0,0,E1223)","v":0},{"$f":"IF(H1223<>\"p\",0,E1223)","v":0},"",""]
[null,null,null,null,null," ",null,null,0,0,0,0,"",""]
[null,null,null,null,null," ",null,null,0,0,0,0,"",""]
[null,null,null,null,null," ",null,null,0,0,0,0,"",""]
[null,null,null,null,null," ",null,null,0,0,0,0,"",""]
[null,null,null,null,null," ",null,null,0,0,0,0,"",""]
[null,null,null,null,null," ",null,null,0,0,0,0,"",""]
[null,null,null,null,null," ",null,null,0,0,0,0,"",""]
[null,null,null,null,null,{"$f":"IF(D1231-E1231=0,\" \",F1230+D1231-E1231)","v":" "},null,null,0,0,0,0,"",""]
[null,null,null,null,null," ",null,null,0,0,0,0,{"$f":"IF(A1232=0,\"\",YEAR(A1232))","v":""},{"$f":"IF(A1232=0,\"\",MONTH(A1232))","v":""}]
[null,null,null,null,null," ",null,null,0,0,0,0,"",""]
[null,null,null,null,null," ",null,null,0,0,0,0,"",""]
[null,null,null,null,null," ",null,null,0,0,0,0,"",""]
[null,null,null,null,null," ",null,null,0,0,0,0,"",""]
[null,null,null,null,null," ",null,null,0,0,0,0,"",""]
[null,null,null,null,null," ",null,null,0,0,0,0,"",""]
[null,null,null,null,null," ",null,null,0,0,0,0,"",""]
[null,null,null,null,null," ",null,null,0,0,0,0,"",""]
[null,null,null,null,null," ",null,null,0,0,0,0,"",""]
[null,null,null,null,null," ",null,null,0,0,0,0,"",""]
[null,null,null,null,null," ",null,null,0,0,0,0,"",""]
[null,null,null,null,null," ",null,null,0,0,0,0,"",""]
[null,null,null,null,null," ",null,null,0,0,0,0,"",""]
[null,null,null,null,null," ",null,null,0,0,0,0,"",""]
[null,null,null,null,null," ",null,null,0,0,0,0,"",""]
[null,null,null,null,null," ",null,null,0,0,0,0,"",""]
[null,null,null,null,null," ",null,null,0,0,0,0,"",""]
[null,null,null,null,null," ",null,null,0,0,0,0,"",""]
[null,null,null,null,null," ",null,null,0,0,0,0,"",""]
[null,null,null,null,null," ",null,null,0,0,0,0,"",""]
[null,null,null,null,null," ",null,null,0,0,0,0,"",""]
[null,null,null,null,null," ",null,null,0,0,0,0,"",""]
[null,null,null,null,null," ",null,null,0,0,0,0,"",""]
[null,null,null,null,null," ",null,null,0,0,0,0,"",""]
[null,null,null,null,null," ",null,null,0,0,0,0,"",""]
[null,null,null,null,null," ",null,null,0,0,0,0,"",""]
[null,null,null,null,null," ",null,null,0,0,0,0,"",""]
[null,null,null,null,null," ",null,null,0,0,0,0,"",""]
[null,null,null,null,null," ",null,null,0,0,0,0,"",""]
[null,null,null,null,null," ",null,null,0,0,0,0,"",""]
[null,null,null,null,null," ",null,null,0,0,0,0,"",""]
[null,null,null,null,null," ",null,null,0,0,0,0,"",""]
[null,null,null,null,null," ",null,null,0,0,0,0,"",""]
[null,null,null,null,null," ",null,null,0,0,0,0,"",""]
[null,null,null,null,null," ",null,null,0,0,0,0,"",""]
[null,null,null,null,null," ",null,null,0,0,0,0,"",""]
[null,null,null,null,null," ",null,null,0,0,0,0,"",""]
[null,null,null,null,null," ",null,null,0,0,0,0,"",""]
[null,null,null,null,null," ",null,null,0,0,0,0,"",""]
[null,null,null,null,null," ",null,null,0,0,0,0,"",""]
[null,null,null,null,null," ",null,null,0,0,0,0,"",""]
[null,null,null,null,null," ",null,null,0,0,0,0,"",""]
[null,null,null,null,null," ",null,null,0,0,0,0,"",""]
[null,null,null,null,null," ",null,null,0,0,0,0,"",""]
[null,null,null,null,null," ",null,null,0,0,0,0,"",""]
[null,null,null,null,null," ",null,null,0,0,0,0,"",""]
[null,null,null,null,null," ",null,null,0,0,0,0,"",""]
[null,null,null,null,null," ",null,null,0,0,0,0,"",""]
[null,null,null,null,null," ",null,null,0,0,0,0,"",""]
[null,null,null,null,null," ",null,null,0,0,0,0,"",""]
[null,null,null,null,null," ",null,null,0,0,0,0,"",""]
[null,null,null,null,null," ",null,null,0,0,0,0,"",""]
[null,null,null,null,null," ",null,null,0,0,0,0,"",""]
[null,null,null,null,null," ",null,null,0,0,0,0,"",""]
[null,null,null,null,null," ",null,null,{"$f":"IF(H1287=0,0,D1287)","v":0},{"$f":"IF(H1287<>\"p\",0,D1287)","v":0},{"$f":"IF(H1287=0,0,E1287)","v":0},{"$f":"IF(H1287<>\"p\",0,E1287)","v":0},"",""]
[null,null,null,null,null," ",null,null,0,0,0,0,"",""]
[null,null,null,null,null," ",null,null,0,0,0,0,"",""]
[null,null,null,null,null," ",null,null,0,0,0,0,"",""]
[null,null,null,null,null," ",null,null,0,0,0,0,"",""]
[null,null,null,null,null," ",null,null,0,0,0,0,"",""]
[null,null,null,null,null," ",null,null,0,0,0,0,"",""]
[null,null,null,null,null," ",null,null,0,0,0,0,"",""]
[null,null,null,null,null,{"$f":"IF(D1295-E1295=0,\" \",F1294+D1295-E1295)","v":" "},null,null,0,0,0,0,"",""]
[null,null,null,null,null," ",null,null,0,0,0,0,{"$f":"IF(A1296=0,\"\",YEAR(A1296))","v":""},{"$f":"IF(A1296=0,\"\",MONTH(A1296))","v":""}]
[null,null,null,null,null," ",null,null,0,0,0,0,"",""]
[null,null,null,null,null," ",null,null,0,0,0,0,"",""]
[null,null,null,null,null," ",null,null,0,0,0,0,"",""]
[null,null,null,null,null," ",null,null,0,0,0,0,"",""]
[null,null,null,null,null," ",null,null,0,0,0,0,"",""]
[null,null,null,null,null," ",null,null,0,0,0,0,"",""]
[null,null,null,null,null," ",null,null,0,0,0,0,"",""]
[null,null,null,null,null," ",null,null,0,0,0,0,"",""]
[null,null,null,null,null," ",null,null,0,0,0,0,"",""]
[null,null,null,null,null," ",null,null,0,0,0,0,"",""]
[null,null,null,null,null," ",null,null,0,0,0,0,"",""]
[null,null,null,null,null," ",null,null,0,0,0,0,"",""]
[null,null,null,null,null," ",null,null,0,0,0,0,"",""]
[null,null,null,null,null," ",null,null,0,0,0,0,"",""]
[null,null,null,null,null," ",null,null,0,0,0,0,"",""]
[null,null,null,null,null," ",null,null,0,0,0,0,"",""]
[null,null,null,null,null," ",null,null,0,0,0,0,"",""]
[null,null,null,null,null," ",null,null,0,0,0,0,"",""]
[null,null,null,null,null," ",null,null,0,0,0,0,"",""]
[null,null,null,null,null," ",null,null,0,0,0,0,"",""]
[null,null,null,null,null," ",null,null,0,0,0,0,"",""]
[null,null,null,null,null," ",null,null,0,0,0,0,"",""]
[null,null,null,null,null," ",null,null,0,0,0,0,"",""]
[null,null,null,null,null," ",null,null,0,0,0,0,"",""]
[null,null,null,null,null," ",null,null,0,0,0,0,"",""]
[null,null,null,null,null," ",null,null,0,0,0,0,"",""]
[null,null,null,null,null," ",null,null,0,0,0,0,"",""]
[null,null,null,null,null," ",null,null,0,0,0,0,"",""]
[null,null,null,null,null," ",null,null,0,0,0,0,"",""]
[null,null,null,null,null," ",null,null,0,0,0,0,"",""]
[null,null,null,null,null," ",null,null,0,0,0,0,"",""]
[null,null,null,null,null," ",null,null,0,0,0,0,"",""]
[null,null,null,null,null," ",null,null,0,0,0,0,"",""]
[null,null,null,null,null," ",null,null,0,0,0,0,"",""]
[null,null,null,null,null," ",null,null,0,0,0,0,"",""]
[null,null,null,null,null," ",null,null,0,0,0,0,"",""]
[null,null,null,null,null," ",null,null,0,0,0,0,"",""]
[null,null,null,null,null," ",null,null,0,0,0,0,"",""]
[null,null,null,null,null," ",null,null,0,0,0,0,"",""]
[null,null,null,null,null," ",null,null,0,0,0,0,"",""]
[null,null,null,null,null," ",null,null,0,0,0,0,"",""]
[null,null,null,null,null," ",null,null,0,0,0,0,"",""]
[null,null,null,null,null," ",null,null,0,0,0,0,"",""]
[null,null,null,null,null," ",null,null,0,0,0,0,"",""]
[null,null,null,null,null," ",null,null,0,0,0,0,"",""]
[null,null,null,null,null," ",null,null,0,0,0,0,"",""]
[null,null,null,null,null," ",null,null,0,0,0,0,"",""]
[null,null,null,null,null," ",null,null,0,0,0,0,"",""]
[null,null,null,null,null," ",null,null,0,0,0,0,"",""]
[null,null,null,null,null," ",null,null,0,0,0,0,"",""]
[null,null,null,null,null," ",null,null,0,0,0,0,"",""]
[null,null,null,null,null," ",null,null,0,0,0,0,"",""]
[null,null,null,null,null," ",null,null,0,0,0,0,"",""]
[null,null,null,null,null," ",null,null,0,0,0,0,"",""]
[null,null,null,null,null," ",null,null,{"$f":"IF(H1351=0,0,D1351)","v":0},{"$f":"IF(H1351<>\"p\",0,D1351)","v":0},{"$f":"IF(H1351=0,0,E1351)","v":0},{"$f":"IF(H1351<>\"p\",0,E1351)","v":0},"",""]
[null,null,null,null,null," ",null,null,0,0,0,0,"",""]
[null,null,null,null,null," ",null,null,0,0,0,0,"",""]
[null,null,null,null,null," ",null,null,0,0,0,0,"",""]
[null,null,null,null,null," ",null,null,0,0,0,0,"",""]
[null,null,null,null,null," ",null,null,0,0,0,0,"",""]
[null,null,null,null,null," ",null,null,0,0,0,0,"",""]
[null,null,null,null,null," ",null,null,0,0,0,0,"",""]
[null,null,null,null,null,{"$f":"IF(D1359-E1359=0,\" \",F1358+D1359-E1359)","v":" "},null,null,0,0,0,0,"",""]
[null,null,null,null,null," ",null,null,0,0,0,0,{"$f":"IF(A1360=0,\"\",YEAR(A1360))","v":""},{"$f":"IF(A1360=0,\"\",MONTH(A1360))","v":""}]
[null,null,null,null,null," ",null,null,0,0,0,0,"",""]
[null,null,null,null,null," ",null,null,0,0,0,0,"",""]
[null,null,null,null,null," ",null,null,0,0,0,0,"",""]
[null,null,null,null,null," ",null,null,0,0,0,0,"",""]
[null,null,null,null,null," ",null,null,0,0,0,0,"",""]
[null,null,null,null,null," ",null,null,0,0,0,0,"",""]
[null,null,null,null,null," ",null,null,0,0,0,0,"",""]
[null,null,null,null,null," ",null,null,0,0,0,0,"",""]
[null,null,null,null,null," ",null,null,0,0,0,0,"",""]
[null,null,null,null,null," ",null,null,0,0,0,0,"",""]
[null,null,null,null,null," ",null,null,0,0,0,0,"",""]
[null,null,null,null,null," ",null,null,0,0,0,0,"",""]
[null,null,null,null,null," ",null,null,0,0,0,0,"",""]
[null,null,null,null,null," ",null,null,0,0,0,0,"",""]
[null,null,null,null,null," ",null,null,0,0,0,0,"",""]
[null,null,null,null,null," ",null,null,0,0,0,0,"",""]
[null,null,null,null,null," ",null,null,0,0,0,0,"",""]
[null,null,null,null,null," ",null,null,0,0,0,0,"",""]
[null,null,null,null,null," ",null,null,0,0,0,0,"",""]
[null,null,null,null,null," ",null,null,0,0,0,0,"",""]
[null,null,null,null,null," ",null,null,0,0,0,0,"",""]
[null,null,null,null,null," ",null,null,0,0,0,0,"",""]
[null,null,null,null,null," ",null,null,0,0,0,0,"",""]
[null,null,null,null,null," ",null,null,0,0,0,0,"",""]
[null,null,null,null,null," ",null,null,0,0,0,0,"",""]
[null,null,null,null,null," ",null,null,0,0,0,0,"",""]
[null,null,null,null,null," ",null,null,0,0,0,0,"",""]
[null,null,null,null,null," ",null,null,0,0,0,0,"",""]
[null,null,null,null,null," ",null,null,0,0,0,0,"",""]
[null,null,null,null,null," ",null,null,0,0,0,0,"",""]
[null,null,null,null,null," ",null,null,0,0,0,0,"",""]
[null,null,null,null,null," ",null,null,0,0,0,0,"",""]
[null,null,null,null,null," ",null,null,0,0,0,0,"",""]
[null,null,null,null,null," ",null,null,0,0,0,0,"",""]
[null,null,null,null,null," ",null,null,0,0,0,0,"",""]
[null,null,null,null,null," ",null,null,0,0,0,0,"",""]
[null,null,null,null,null," ",null,null,0,0,0,0,"",""]
[null,null,null,null,null," ",null,null,0,0,0,0,"",""]
[null,null,null,null,null," ",null,null,0,0,0,0,"",""]
[null,null,null,null,null," ",null,null,0,0,0,0,"",""]
[null,null,null,null,null," ",null,null,0,0,0,0,"",""]
[null,null,null,null,null," ",null,null,0,0,0,0,"",""]
[null,null,null,null,null," ",null,null,0,0,0,0,"",""]
[null,null,null,null,null," ",null,null,0,0,0,0,"",""]
[null,null,null,null,null," ",null,null,0,0,0,0,"",""]
[null,null,null,null,null," ",null,null,0,0,0,0,"",""]
[null,null,null,null,null," ",null,null,0,0,0,0,"",""]
[null,null,null,null,null," ",null,null,0,0,0,0,"",""]
[null,null,null,null,null," ",null,null,0,0,0,0,"",""]
[null,null,null,null,null," ",null,null,0,0,0,0,"",""]
[null,null,null,null,null," ",null,null,0,0,0,0,"",""]
[null,null,null,null,null," ",null,null,0,0,0,0,"",""]
[null,null,null,null,null," ",null,null,0,0,0,0,"",""]
[null,null,null,null,null," ",null,null,0,0,0,0,"",""]
[null,null,null,null,null," ",null,null,{"$f":"IF(H1415=0,0,D1415)","v":0},{"$f":"IF(H1415<>\"p\",0,D1415)","v":0},{"$f":"IF(H1415=0,0,E1415)","v":0},{"$f":"IF(H1415<>\"p\",0,E1415)","v":0},"",""]
[null,null,null,null,null," ",null,null,0,0,0,0,"",""]
[null,null,null,null,null," ",null,null,0,0,0,0,"",""]
[null,null,null,null,null," ",null,null,0,0,0,0,"",""]
[null,null,null,null,null," ",null,null,0,0,0,0,"",""]
[null,null,null,null,null," ",null,null,0,0,0,0,"",""]
[null,null,null,null,null," ",null,null,0,0,0,0,"",""]
[null,null,null,null,null," ",null,null,0,0,0,0,"",""]
[null,null,null,null,null,{"$f":"IF(D1423-E1423=0,\" \",F1422+D1423-E1423)","v":" "},null,null,0,0,0,0,"",""]
[null,null,null,null,null," ",null,null,0,0,0,0,{"$f":"IF(A1424=0,\"\",YEAR(A1424))","v":""},{"$f":"IF(A1424=0,\"\",MONTH(A1424))","v":""}]
[null,null,null,null,null," ",null,null,0,0,0,0,"",""]
[null,null,null,null,null," ",null,null,0,0,0,0,"",""]
[null,null,null,null,null," ",null,null,0,0,0,0,"",""]
[null,null,null,null,null," ",null,null,0,0,0,0,"",""]
[null,null,null,null,null," ",null,null,0,0,0,0,"",""]
[null,null,null,null,null," ",null,null,0,0,0,0,"",""]
[null,null,null,null,null," ",null,null,0,0,0,0,"",""]
[null,null,null,null,null," ",null,null,0,0,0,0,"",""]
[null,null,null,null,null," ",null,null,0,0,0,0,"",""]
[null,null,null,null,null," ",null,null,0,0,0,0,"",""]
[null,null,null,null,null," ",null,null,0,0,0,0,"",""]
[null,null,null,null,null," ",null,null,0,0,0,0,"",""]
[null,null,null,null,null," ",null,null,0,0,0,0,"",""]
[null,null,null,null,null," ",null,null,0,0,0,0,"",""]
[null,null,null,null,null," ",null,null,0,0,0,0,"",""]
[null,null,null,null,null," ",null,null,0,0,0,0,"",""]
[null,null,null,null,null," ",null,null,0,0,0,0,"",""]
[null,null,null,null,null," ",null,null,0,0,0,0,"",""]
[null,null,null,null,null," ",null,null,0,0,0,0,"",""]
[null,null,null,null,null," ",null,null,0,0,0,0,"",""]
[null,null,null,null,null," ",null,null,0,0,0,0,"",""]
[null,null,null,null,null," ",null,null,0,0,0,0,"",""]
[null,null,null,null,null," ",null,null,0,0,0,0,"",""]
[null,null,null,null,null," ",null,null,0,0,0,0,"",""]
[null,null,null,null,null," ",null,null,0,0,0,0,"",""]
[null,null,null,null,null," ",null,null,0,0,0,0,"",""]
[null,null,null,null,null," ",null,null,0,0,0,0,"",""]
[null,null,null,null,null," ",null,null,0,0,0,0,"",""]
[null,null,null,null,null," ",null,null,0,0,0,0,"",""]
[null,null,null,null,null," ",null,null,0,0,0,0,"",""]
[null,null,null,null,null," ",null,null,0,0,0,0,"",""]
[null,null,null,null,null," ",null,null,0,0,0,0,"",""]
[null,null,null,null,null," ",null,null,0,0,0,0,"",""]
[null,null,null,null,null," ",null,null,0,0,0,0,"",""]
[null,null,null,null,null," ",null,null,0,0,0,0,"",""]
[null,null,null,null,null," ",null,null,0,0,0,0,"",""]
[null,null,null,null,null," ",null,null,0,0,0,0,"",""]
[null,null,null,null,null," ",null,null,0,0,0,0,"",""]
[null,null,null,null,null," ",null,null,0,0,0,0,"",""]
[null,null,null,null,null," ",null,null,0,0,0,0,"",""]
[null,null,null,null,null," ",null,null,0,0,0,0,"",""]
[null,null,null,null,null," ",null,null,0,0,0,0,"",""]
[null,null,null,null,null," ",null,null,0,0,0,0,"",""]
[null,null,null,null,null," ",null,null,0,0,0,0,"",""]
[null,null,null,null,null," ",null,null,0,0,0,0,"",""]
[null,null,null,null,null," ",null,null,0,0,0,0,"",""]
[null,null,null,null,null," ",null,null,0,0,0,0,"",""]
[null,null,null,null,null," ",null,null,0,0,0,0,"",""]
[null,null,null,null,null," ",null,null,0,0,0,0,"",""]
[null,null,null,null,null," ",null,null,0,0,0,0,"",""]
[null,null,null,null,null," ",null,null,0,0,0,0,"",""]
[null,null,null,null,null," ",null,null,0,0,0,0,"",""]
[null,null,null,null,null," ",null,null,0,0,0,0,"",""]
[null,null,null,null,null," ",null,null,0,0,0,0,"",""]
[null,null,null,null,null," ",null,null,{"$f":"IF(H1479=0,0,D1479)","v":0},{"$f":"IF(H1479<>\"p\",0,D1479)","v":0},{"$f":"IF(H1479=0,0,E1479)","v":0},{"$f":"IF(H1479<>\"p\",0,E1479)","v":0},"",""]
[null,null,null,null,null," ",null,null,0,0,0,0,"",""]
[null,null,null,null,null," ",null,null,0,0,0,0,"",""]
[null,null,null,null,null," ",null,null,0,0,0,0,"",""]
[null,null,null,null,null," ",null,null,0,0,0,0,"",""]
[null,null,null,null,null," ",null,null,0,0,0,0,"",""]
[null,null,null,null,null," ",null,null,0,0,0,0,"",""]
[null,null,null,null,null," ",null,null,0,0,0,0,"",""]
[null,null,null,null,null,{"$f":"IF(D1487-E1487=0,\" \",F1486+D1487-E1487)","v":" "},null,null,0,0,0,0,"",""]
[null,null,null,null,null," ",null,null,0,0,0,0,{"$f":"IF(A1488=0,\"\",YEAR(A1488))","v":""},{"$f":"IF(A1488=0,\"\",MONTH(A1488))","v":""}]
[null,null,null,null,null," ",null,null,0,0,0,0,"",""]
[null,null,null,null,null," ",null,null,0,0,0,0,"",""]
[null,null,null,null,null," ",null,null,0,0,0,0,"",""]
[null,null,null,null,null," ",null,null,0,0,0,0,"",""]
[null,null,null,null,null," ",null,null,0,0,0,0,"",""]
[null,null,null,null,null," ",null,null,0,0,0,0,"",""]
[null,null,null,null,null," ",null,null,0,0,0,0,"",""]
[null,null,null,null,null," ",null,null,0,0,0,0,"",""]
[null,null,null,null,null," ",null,null,0,0,0,0,"",""]
[null,null,null,null,null," ",null,null,0,0,0,0,"",""]
[null,null,null,null,null," ",null,null,0,0,0,0,"",""]
[null,null,null,null,null," ",null,null,0,0,0,0,"",""]
[null,null,null,null,null," ",null,null,0,0,0,0,"",""]
[null,null,null,null,null," ",null,null,0,0,0,0,"",""]
[null,null,null,null,null," ",null,null,0,0,0,0,"",""]
[null,null,null,null,null," ",null,null,0,0,0,0,"",""]
[null,null,null,null,null," ",null,null,0,0,0,0,"",""]
[null,null,null,null,null," ",null,null,0,0,0,0,"",""]
[null,null,null,null,null," ",null,null,0,0,0,0,"",""]
[null,null,null,null,null," ",null,null,0,0,0,0,"",""]
[null,null,null,null,null," ",null,null,0,0,0,0,"",""]
[null,null,null,null,null," ",null,null,0,0,0,0,"",""]
[null,null,null,null,null," ",null,null,0,0,0,0,"",""]
[null,null,null,null,null," ",null,null,0,0,0,0,"",""]
[null,null,null,null,null," ",null,null,0,0,0,0,"",""]
[null,null,null,null,null," ",null,null,0,0,0,0,"",""]
[null,null,null,null,null," ",null,null,0,0,0,0,"",""]
[null,null,null,null,null," ",null,null,0,0,0,0,"",""]
[null,null,null,null,null," ",null,null,0,0,0,0,"",""]
[null,null,null,null,null," ",null,null,0,0,0,0,"",""]
[null,null,null,null,null," ",null,null,0,0,0,0,"",""]
[null,null,null,null,null," ",null,null,0,0,0,0,"",""]
[null,null,null,null,null," ",null,null,0,0,0,0,"",""]
[null,null,null,null,null," ",null,null,0,0,0,0,"",""]
[null,null,null,null,null," ",null,null,0,0,0,0,"",""]
[null,null,null,null,null," ",null,null,0,0,0,0,"",""]
[null,null,null,null,null," ",null,null,0,0,0,0,"",""]
[null,null,null,null,null," ",null,null,0,0,0,0,"",""]
[null,null,null,null,null," ",null,null,0,0,0,0,"",""]
[null,null,null,null,null," ",null,null,0,0,0,0,"",""]
[null,null,null,null,null," ",null,null,0,0,0,0,"",""]
[null,null,null,null,null," ",null,null,0,0,0,0,"",""]
[null,null,null,null,null," ",null,null,0,0,0,0,"",""]
[null,null,null,null,null," ",null,null,0,0,0,0,"",""]
[null,null,null,null,null," ",null,null,0,0,0,0,"",""]
[null,null,null,null,null," ",null,null,0,0,0,0,"",""]
[null,null,null,null,null," ",null,null,0,0,0,0,"",""]
[null,null,null,null,null," ",null,null,0,0,0,0,"",""]
[null,null,null,null,null," ",null,null,0,0,0,0,"",""]
[null,null,null,null,null," ",null,null,0,0,0,0,"",""]
[null,null,null,null,null," ",null,null,0,0,0,0,"",""]
[null,null,null,null,null," ",null,null,0,0,0,0,"",""]
[null,null,null,null,null," ",null,null,0,0,0,0,"",""]
[null,null,null,null,null," ",null,null,0,0,0,0,"",""]
[null,null,null,null,null," ",null,null,{"$f":"IF(H1543=0,0,D1543)","v":0},{"$f":"IF(H1543<>\"p\",0,D1543)","v":0},{"$f":"IF(H1543=0,0,E1543)","v":0},{"$f":"IF(H1543<>\"p\",0,E1543)","v":0},"",""]
[null,null,null,null,null," ",null,null,0,0,0,0,"",""]
[null,null,null,null,null," ",null,null,0,0,0,0,"",""]
[null,null,null,null,null," ",null,null,0,0,0,0,"",""]
[null,null,null,null,null," ",null,null,0,0,0,0,"",""]
[null,null,null,null,null," ",null,null,0,0,0,0,"",""]
[null,null,null,null,null," ",null,null,0,0,0,0,"",""]
[null,null,null,null,null," ",null,null,0,0,0,0,"",""]
[null,null,null,null,null,{"$f":"IF(D1551-E1551=0,\" \",F1550+D1551-E1551)","v":" "},null,null,0,0,0,0,"",""]
[null,null,null,null,null," ",null,null,0,0,0,0,{"$f":"IF(A1552=0,\"\",YEAR(A1552))","v":""},{"$f":"IF(A1552=0,\"\",MONTH(A1552))","v":""}]
[null,null,null,null,null," ",null,null,0,0,0,0,"",""]
[null,null,null,null,null," ",null,null,0,0,0,0,"",""]
[null,null,null,null,null," ",null,null,0,0,0,0,"",""]
[null,null,null,null,null," ",null,null,0,0,0,0,"",""]
[null,null,null,null,null," ",null,null,0,0,0,0,"",""]
[null,null,null,null,null," ",null,null,0,0,0,0,"",""]
[null,null,null,null,null," ",null,null,0,0,0,0,"",""]
[null,null,null,null,null," ",null,null,0,0,0,0,"",""]
[null,null,null,null,null," ",null,null,0,0,0,0,"",""]
[null,null,null,null,null," ",null,null,0,0,0,0,"",""]
[null,null,null,null,null," ",null,null,0,0,0,0,"",""]
[null,null,null,null,null," ",null,null,0,0,0,0,"",""]
[null,null,null,null,null," ",null,null,0,0,0,0,"",""]
[null,null,null,null,null," ",null,null,0,0,0,0,"",""]
[null,null,null,null,null," ",null,null,0,0,0,0,"",""]
[null,null,null,null,null," ",null,null,0,0,0,0,"",""]
[null,null,null,null,null," ",null,null,0,0,0,0,"",""]
[null,null,null,null,null," ",null,null,0,0,0,0,"",""]
[null,null,null,null,null," ",null,null,0,0,0,0,"",""]
[null,null,null,null,null," ",null,null,0,0,0,0,"",""]
[null,null,null,null,null," ",null,null,0,0,0,0,"",""]
[null,null,null,null,null," ",null,null,0,0,0,0,"",""]
[null,null,null,null,null," ",null,null,0,0,0,0,"",""]
[null,null,null,null,null," ",null,null,0,0,0,0,"",""]
[null,null,null,null,null," ",null,null,0,0,0,0,"",""]
[null,null,null,null,null," ",null,null,0,0,0,0,"",""]
[null,null,null,null,null," ",null,null,0,0,0,0,"",""]
[null,null,null,null,null," ",null,null,0,0,0,0,"",""]
[null,null,null,null,null," ",null,null,0,0,0,0,"",""]
[null,null,null,null,null," ",null,null,0,0,0,0,"",""]
[null,null,null,null,null," ",null,null,0,0,0,0,"",""]
[null,null,null,null,null," ",null,null,0,0,0,0,"",""]
[null,null,null,null,null," ",null,null,0,0,0,0,"",""]
[null,null,null,null,null," ",null,null,0,0,0,0,"",""]
[null,null,null,null,null," ",null,null,0,0,0,0,"",""]
[null,null,null,null,null," ",null,null,0,0,0,0,"",""]
[null,null,null,null,null," ",null,null,0,0,0,0,"",""]
[null,null,null,null,null," ",null,null,0,0,0,0,"",""]
[null,null,null,null,null," ",null,null,0,0,0,0,"",""]
[null,null,null,null,null," ",null,null,0,0,0,0,"",""]
[null,null,null,null,null," ",null,null,0,0,0,0,"",""]
[null,null,null,null,null," ",null,null,0,0,0,0,"",""]
[null,null,null,null,null," ",null,null,0,0,0,0,"",""]
[null,null,null,null,null," ",null,null,0,0,0,0,"",""]
[null,null,null,null,null," ",null,null,0,0,0,0,"",""]
[null,null,null,null,null," ",null,null,0,0,0,0,"",""]
[null,null,null,null,null," ",null,null,0,0,0,0,"",""]
[null,null,null,null,null," ",null,null,0,0,0,0,"",""]
[null,null,null,null,null," ",null,null,0,0,0,0,"",""]
[null,null,null,null,null," ",null,null,0,0,0,0,"",""]
[null,null,null,null,null," ",null,null,0,0,0,0,"",""]
[null,null,null,null,null," ",null,null,0,0,0,0,"",""]
[null,null,null,null,null," ",null,null,0,0,0,0,"",""]
[null,null,null,null,null," ",null,null,0,0,0,0,"",""]
[null,null,null,null,null," ",null,null,{"$f":"IF(H1607=0,0,D1607)","v":0},{"$f":"IF(H1607<>\"p\",0,D1607)","v":0},{"$f":"IF(H1607=0,0,E1607)","v":0},{"$f":"IF(H1607<>\"p\",0,E1607)","v":0},"",""]
[null,null,null,null,null," ",null,null,0,0,0,0,"",""]
[null,null,null,null,null," ",null,null,0,0,0,0,"",""]
[null,null,null,null,null," ",null,null,0,0,0,0,"",""]
[null,null,null,null,null," ",null,null,0,0,0,0,"",""]
[null,null,null,null,null," ",null,null,0,0,0,0,"",""]
[null,null,null,null,null," ",null,null,0,0,0,0,"",""]
[null,null,null,null,null," ",null,null,0,0,0,0,"",""]
[null,null,null,null,null,{"$f":"IF(D1615-E1615=0,\" \",F1614+D1615-E1615)","v":" "},null,null,0,0,0,0,"",""]
[null,null,null,null,null," ",null,null,0,0,0,0,{"$f":"IF(A1616=0,\"\",YEAR(A1616))","v":""},{"$f":"IF(A1616=0,\"\",MONTH(A1616))","v":""}]
[null,null,null,null,null," ",null,null,0,0,0,0,"",""]
[null,null,null,null,null," ",null,null,0,0,0,0,"",""]
[null,null,null,null,null," ",null,null,0,0,0,0,"",""]
[null,null,null,null,null," ",null,null,0,0,0,0,"",""]
[null,null,null,null,null," ",null,null,0,0,0,0,"",""]
[null,null,null,null,null," ",null,null,0,0,0,0,"",""]
[null,null,null,null,null," ",null,null,0,0,0,0,"",""]
[null,null,null,null,null," ",null,null,0,0,0,0,"",""]
[null,null,null,null,null," ",null,null,0,0,0,0,"",""]
[null,null,null,null,null," ",null,null,0,0,0,0,"",""]
[null,null,null,null,null," ",null,null,0,0,0,0,"",""]
[null,null,null,null,null," ",null,null,0,0,0,0,"",""]
[null,null,null,null,null," ",null,null,0,0,0,0,"",""]
[null,null,null,null,null," ",null,null,0,0,0,0,"",""]
[null,null,null,null,null," ",null,null,0,0,0,0,"",""]
[null,null,null,null,null," ",null,null,0,0,0,0,"",""]
[null,null,null,null,null," ",null,null,0,0,0,0,"",""]
[null,null,null,null,null," ",null,null,0,0,0,0,"",""]
[null,null,null,null,null," ",null,null,0,0,0,0,"",""]
[null,null,null,null,null," ",null,null,0,0,0,0,"",""]
[null,null,null,null,null," ",null,null,0,0,0,0,"",""]
[null,null,null,null,null," ",null,null,0,0,0,0,"",""]
[null,null,null,null,null," ",null,null,0,0,0,0,"",""]
[null,null,null,null,null," ",null,null,0,0,0,0,"",""]
[null,null,null,null,null," ",null,null,0,0,0,0,"",""]
[null,null,null,null,null," ",null,null,0,0,0,0,"",""]
[null,null,null,null,null," ",null,null,0,0,0,0,"",""]
[null,null,null,null,null," ",null,null,0,0,0,0,"",""]
[null,null,null,null,null," ",null,null,0,0,0,0,"",""]
[null,null,null,null,null," ",null,null,0,0,0,0,"",""]
[null,null,null,null,null," ",null,null,0,0,0,0,"",""]
[null,null,null,null,null," ",null,null,0,0,0,0,"",""]
[null,null,null,null,null," ",null,null,0,0,0,0,"",""]
[null,null,null,null,null," ",null,null,0,0,0,0,"",""]
[null,null,null,null,null," ",null,null,0,0,0,0,"",""]
[null,null,null,null,null," ",null,null,0,0,0,0,"",""]
[null,null,null,null,null," ",null,null,0,0,0,0,"",""]
[null,null,null,null,null," ",null,null,0,0,0,0,"",""]
[null,null,null,null,null," ",null,null,0,0,0,0,"",""]
[null,null,null,null,null," ",null,null,0,0,0,0,"",""]
[null,null,null,null,null," ",null,null,0,0,0,0,"",""]
[null,null,null,null,null," ",null,null,0,0,0,0,"",""]
[null,null,null,null,null," ",null,null,0,0,0,0,"",""]
[null,null,null,null,null," ",null,null,0,0,0,0,"",""]
[null,null,null,null,null," ",null,null,0,0,0,0,"",""]
[null,null,null,null,null," ",null,null,0,0,0,0,"",""]
[null,null,null,null,null," ",null,null,0,0,0,0,"",""]
[null,null,null,null,null," ",null,null,0,0,0,0,"",""]
[null,null,null,null,null," ",null,null,0,0,0,0,"",""]
[null,null,null,null,null," ",null,null,0,0,0,0,"",""]
[null,null,null,null,null," ",null,null,0,0,0,0,"",""]
[null,null,null,null,null," ",null,null,0,0,0,0,"",""]
[null,null,null,null,null," ",null,null,0,0,0,0,"",""]
[null,null,null,null,null," ",null,null,0,0,0,0,"",""]
[null,null,null,null,null," ",null,null,{"$f":"IF(H1671=0,0,D1671)","v":0},{"$f":"IF(H1671<>\"p\",0,D1671)","v":0},{"$f":"IF(H1671=0,0,E1671)","v":0},{"$f":"IF(H1671<>\"p\",0,E1671)","v":0},"",""]
[null,null,null,null,null," ",null,null,0,0,0,0,"",""]
[null,null,null,null,null," ",null,null,0,0,0,0,"",""]
[null,null,null,null,null," ",null,null,0,0,0,0,"",""]
[null,null,null,null,null," ",null,null,0,0,0,0,"",""]
[null,null,null,null,null," ",null,null,0,0,0,0,"",""]
[null,null,null,null,null," ",null,null,0,0,0,0,"",""]
[null,null,null,null,null," ",null,null,0,0,0,0,"",""]
[null,null,null,null,null,{"$f":"IF(D1679-E1679=0,\" \",F1678+D1679-E1679)","v":" "},null,null,0,0,0,0,"",""]
[null,null,null,null,null," ",null,null,0,0,0,0,{"$f":"IF(A1680=0,\"\",YEAR(A1680))","v":""},{"$f":"IF(A1680=0,\"\",MONTH(A1680))","v":""}]
[null,null,null,null,null," ",null,null,0,0,0,0,"",""]
[null,null,null,null,null," ",null,null,0,0,0,0,"",""]
[null,null,null,null,null," ",null,null,0,0,0,0,"",""]
[null,null,null,null,null," ",null,null,0,0,0,0,"",""]
[null,null,null,null,null," ",null,null,0,0,0,0,"",""]
[null,null,null,null,null," ",null,null,0,0,0,0,"",""]
[null,null,null,null,null," ",null,null,0,0,0,0,"",""]
[null,null,null,null,null," ",null,null,0,0,0,0,"",""]
[null,null,null,null,null," ",null,null,0,0,0,0,"",""]
[null,null,null,null,null," ",null,null,0,0,0,0,"",""]
[null,null,null,null,null," ",null,null,0,0,0,0,"",""]
[null,null,null,null,null," ",null,null,0,0,0,0,"",""]
[null,null,null,null,null," ",null,null,0,0,0,0,"",""]
[null,null,null,null,null," ",null,null,0,0,0,0,"",""]
[null,null,null,null,null," ",null,null,0,0,0,0,"",""]
[null,null,null,null,null," ",null,null,0,0,0,0,"",""]
[null,null,null,null,null," ",null,null,0,0,0,0,"",""]
[null,null,null,null,null," ",null,null,0,0,0,0,"",""]
[null,null,null,null,null," ",null,null,0,0,0,0,"",""]
[null,null,null,null,null," ",null,null,0,0,0,0,"",""]
[null,null,null,null,null," ",null,null,0,0,0,0,"",""]
[null,null,null,null,null," ",null,null,0,0,0,0,"",""]
[null,null,null,null,null," ",null,null,0,0,0,0,"",""]
[null,null,null,null,null," ",null,null,0,0,0,0,"",""]
[null,null,null,null,null," ",null,null,0,0,0,0,"",""]
[null,null,null,null,null," ",null,null,0,0,0,0,"",""]
[null,null,null,null,null," ",null,null,0,0,0,0,"",""]
[null,null,null,null,null," ",null,null,0,0,0,0,"",""]
[null,null,null,null,null," ",null,null,0,0,0,0,"",""]
[null,null,null,null,null," ",null,null,0,0,0,0,"",""]
[null,null,null,null,null," ",null,null,0,0,0,0,"",""]
[null,null,null,null,null," ",null,null,0,0,0,0,"",""]
[null,null,null,null,null," ",null,null,0,0,0,0,"",""]
[null,null,null,null,null," ",null,null,0,0,0,0,"",""]
[null,null,null,null,null," ",null,null,0,0,0,0,"",""]
[null,null,null,null,null," ",null,null,0,0,0,0,"",""]
[null,null,null,null,null," ",null,null,0,0,0,0,"",""]
[null,null,null,null,null," ",null,null,0,0,0,0,"",""]
[null,null,null,null,null," ",null,null,0,0,0,0,"",""]
[null,null,null,null,null," ",null,null,0,0,0,0,"",""]
[null,null,null,null,null," ",null,null,0,0,0,0,"",""]
[null,null,null,null,null," ",null,null,0,0,0,0,"",""]
[null,null,null,null,null," ",null,null,0,0,0,0,"",""]
[null,null,null,null,null," ",null,null,0,0,0,0,"",""]
[null,null,null,null,null," ",null,null,0,0,0,0,"",""]
[null,null,null,null,null," ",null,null,0,0,0,0,"",""]
[null,null,null,null,null," ",null,null,0,0,0,0,"",""]
[null,null,null,null,null," ",null,null,0,0,0,0,"",""]
[null,null,null,null,null," ",null,null,0,0,0,0,"",""]
[null,null,null,null,null," ",null,null,0,0,0,0,"",""]
[null,null,null,null,null," ",null,null,0,0,0,0,"",""]
[null,null,null,null,null," ",null,null,0,0,0,0,"",""]
[null,null,null,null,null," ",null,null,0,0,0,0,"",""]
[null,null,null,null,null," ",null,null,0,0,0,0,"",""]
[null,null,null,null,null," ",null,null,{"$f":"IF(H1735=0,0,D1735)","v":0},{"$f":"IF(H1735<>\"p\",0,D1735)","v":0},{"$f":"IF(H1735=0,0,E1735)","v":0},{"$f":"IF(H1735<>\"p\",0,E1735)","v":0},"",""]
[null,null,null,null,null," ",null,null,0,0,0,0,"",""]
[null,null,null,null,null," ",null,null,0,0,0,0,"",""]
[null,null,null,null,null," ",null,null,0,0,0,0,"",""]
[null,null,null,null,null," ",null,null,0,0,0,0,"",""]
[null,null,null,null,null," ",null,null,0,0,0,0,"",""]
[null,null,null,null,null," ",null,null,0,0,0,0,"",""]
[null,null,null,null,null," ",null,null,0,0,0,0,"",""]
[null,null,null,null,null,{"$f":"IF(D1743-E1743=0,\" \",F1742+D1743-E1743)","v":" "},null,null,0,0,0,0,"",""]
[null,null,null,null,null," ",null,null,0,0,0,0,{"$f":"IF(A1744=0,\"\",YEAR(A1744))","v":""},{"$f":"IF(A1744=0,\"\",MONTH(A1744))","v":""}]
[null,null,null,null,null," ",null,null,0,0,0,0,"",""]
[null,null,null,null,null," ",null,null,0,0,0,0,"",""]
[null,null,null,null,null," ",null,null,0,0,0,0,"",""]
[null,null,null,null,null," ",null,null,0,0,0,0,"",""]
[null,null,null,null,null," ",null,null,0,0,0,0,"",""]
[null,null,null,null,null," ",null,null,0,0,0,0,"",""]
[null,null,null,null,null," ",null,null,0,0,0,0,"",""]
[null,null,null,null,null," ",null,null,0,0,0,0,"",""]
[null,null,null,null,null," ",null,null,0,0,0,0,"",""]
[null,null,null,null,null," ",null,null,0,0,0,0,"",""]
[null,null,null,null,null," ",null,null,0,0,0,0,"",""]
[null,null,null,null,null," ",null,null,0,0,0,0,"",""]
[null,null,null,null,null," ",null,null,0,0,0,0,"",""]
[null,null,null,null,null," ",null,null,0,0,0,0,"",""]
[null,null,null,null,null," ",null,null,0,0,0,0,"",""]
[null,null,null,null,null," ",null,null,0,0,0,0,"",""]
[null,null,null,null,null," ",null,null,0,0,0,0,"",""]
[null,null,null,null,null," ",null,null,0,0,0,0,"",""]
[null,null,null,null,null," ",null,null,0,0,0,0,"",""]
[null,null,null,null,null," ",null,null,0,0,0,0,"",""]
[null,null,null,null,null," ",null,null,0,0,0,0,"",""]
[null,null,null,null,null," ",null,null,0,0,0,0,"",""]
[null,null,null,null,null," ",null,null,0,0,0,0,"",""]
[null,null,null,null,null," ",null,null,0,0,0,0,"",""]
[null,null,null,null,null," ",null,null,0,0,0,0,"",""]
[null,null,null,null,null," ",null,null,0,0,0,0,"",""]
[null,null,null,null,null," ",null,null,0,0,0,0,"",""]
[null,null,null,null,null," ",null,null,0,0,0,0,"",""]
[null,null,null,null,null," ",null,null,0,0,0,0,"",""]
[null,null,null,null,null," ",null,null,0,0,0,0,"",""]
[null,null,null,null,null," ",null,null,0,0,0,0,"",""]
[null,null,null,null,null," ",null,null,0,0,0,0,"",""]
[null,null,null,null,null," ",null,null,0,0,0,0,"",""]
[null,null,null,null,null," ",null,null,0,0,0,0,"",""]
[null,null,null,null,null," ",null,null,0,0,0,0,"",""]
[null,null,null,null,null," ",null,null,0,0,0,0,"",""]
[null,null,null,null,null," ",null,null,0,0,0,0,"",""]
[null,null,null,null,null," ",null,null,0,0,0,0,"",""]
[null,null,null,null,null," ",null,null,0,0,0,0,"",""]
[null,null,null,null,null," ",null,null,0,0,0,0,"",""]
[null,null,null,null,null," ",null,null,0,0,0,0,"",""]
[null,null,null,null,null," ",null,null,0,0,0,0,"",""]
[null,null,null,null,null," ",null,null,0,0,0,0,"",""]
[null,null,null,null,null," ",null,null,0,0,0,0,"",""]
[null,null,null,null,null," ",null,null,0,0,0,0,"",""]
[null,null,null,null,null," ",null,null,0,0,0,0,"",""]
[null,null,null,null,null," ",null,null,0,0,0,0,"",""]
[null,null,null,null,null," ",null,null,0,0,0,0,"",""]
[null,null,null,null,null," ",null,null,0,0,0,0,"",""]
[null,null,null,null,null," ",null,null,0,0,0,0,"",""]
[null,null,null,null,null," ",null,null,0,0,0,0,"",""]
[null,null,null,null,null," ",null,null,0,0,0,0,"",""]
[null,null,null,null,null," ",null,null,0,0,0,0,"",""]
[null,null,null,null,null," ",null,null,0,0,0,0,"",""]
[null,null,null,null,null," ",null,null,{"$f":"IF(H1799=0,0,D1799)","v":0},{"$f":"IF(H1799<>\"p\",0,D1799)","v":0},{"$f":"IF(H1799=0,0,E1799)","v":0},{"$f":"IF(H1799<>\"p\",0,E1799)","v":0},"",""]
[null,null,null,null,null," ",null,null,0,0,0,0,"",""]
[null,null,null,null,null," ",null,null,0,0,0,0,"",""]
[null,null,null,null,null," ",null,null,0,0,0,0,"",""]
[null,null,null,null,null," ",null,null,0,0,0,0,"",""]
[null,null,null,null,null," ",null,null,0,0,0,0,"",""]
[null,null,null,null,null," ",null,null,0,0,0,0,"",""]
[null,null,null,null,null," ",null,null,0,0,0,0,"",""]
[null,null,null,null,null,{"$f":"IF(D1807-E1807=0,\" \",F1806+D1807-E1807)","v":" "},null,null,0,0,0,0,"",""]
[null,null,null,null,null," ",null,null,0,0,0,0,{"$f":"IF(A1808=0,\"\",YEAR(A1808))","v":""},{"$f":"IF(A1808=0,\"\",MONTH(A1808))","v":""}]
[null,null,null,null,null," ",null,null,0,0,0,0,"",""]
[null,null,null,null,null," ",null,null,0,0,0,0,"",""]
[null,null,null,null,null," ",null,null,0,0,0,0,"",""]
[null,null,null,null,null," ",null,null,0,0,0,0,"",""]
[null,null,null,null,null," ",null,null,0,0,0,0,"",""]
[null,null,null,null,null," ",null,null,0,0,0,0,"",""]
[null,null,null,null,null," ",null,null,0,0,0,0,"",""]
[null,null,null,null,null," ",null,null,0,0,0,0,"",""]
[null,null,null,null,null," ",null,null,0,0,0,0,"",""]
[null,null,null,null,null," ",null,null,0,0,0,0,"",""]
[null,null,null,null,null," ",null,null,0,0,0,0,"",""]
[null,null,null,null,null," ",null,null,0,0,0,0,"",""]
[null,null,null,null,null," ",null,null,0,0,0,0,"",""]
[null,null,null,null,null," ",null,null,0,0,0,0,"",""]
[null,null,null,null,null," ",null,null,0,0,0,0,"",""]
[null,null,null,null,null," ",null,null,0,0,0,0,"",""]
[null,null,null,null,null," ",null,null,0,0,0,0,"",""]
[null,null,null,null,null," ",null,null,0,0,0,0,"",""]
[null,null,null,null,null," ",null,null,0,0,0,0,"",""]
[null,null,null,null,null," ",null,null,0,0,0,0,"",""]
[null,null,null,null,null," ",null,null,0,0,0,0,"",""]
[null,null,null,null,null," ",null,null,0,0,0,0,"",""]
[null,null,null,null,null," ",null,null,0,0,0,0,"",""]
[null,null,null,null,null," ",null,null,0,0,0,0,"",""]
[null,null,null,null,null," ",null,null,0,0,0,0,"",""]
[null,null,null,null,null," ",null,null,0,0,0,0,"",""]
[null,null,null,null,null," ",null,null,0,0,0,0,"",""]
[null,null,null,null,null," ",null,null,0,0,0,0,"",""]
[null,null,null,null,null," ",null,null,0,0,0,0,"",""]
[null,null,null,null,null," ",null,null,0,0,0,0,"",""]
[null,null,null,null,null," ",null,null,0,0,0,0,"",""]
[null,null,null,null,null," ",null,null,0,0,0,0,"",""]
[null,null,null,null,null," ",null,null,0,0,0,0,"",""]
[null,null,null,null,null," ",null,null,0,0,0,0,"",""]
[null,null,null,null,null," ",null,null,0,0,0,0,"",""]
[null,null,null,null,null," ",null,null,0,0,0,0,"",""]
[null,null,null,null,null," ",null,null,0,0,0,0,"",""]
[null,null,null,null,null," ",null,null,0,0,0,0,"",""]
[null,null,null,null,null," ",null,null,0,0,0,0,"",""]
[null,null,null,null,null," ",null,null,0,0,0,0,"",""]
[null,null,null,null,null," ",null,null,0,0,0,0,"",""]
[null,null,null,null,null," ",null,null,0,0,0,0,"",""]
[null,null,null,null,null," ",null,null,0,0,0,0,"",""]
[null,null,null,null,null," ",null,null,0,0,0,0,"",""]
[null,null,null,null,null," ",null,null,0,0,0,0,"",""]
[null,null,null,null,null," ",null,null,0,0,0,0,"",""]
[null,null,null,null,null," ",null,null,0,0,0,0,"",""]
[null,null,null,null,null," ",null,null,0,0,0,0,"",""]
[null,null,null,null,null," ",null,null,0,0,0,0,"",""]
[null,null,null,null,null," ",null,null,0,0,0,0,"",""]
[null,null,null,null,null," ",null,null,0,0,0,0,"",""]
[null,null,null,null,null," ",null,null,0,0,0,0,"",""]
[null,null,null,null,null," ",null,null,0,0,0,0,"",""]
[null,null,null,null,null," ",null,null,0,0,0,0,"",""]
[null,null,null,null,null," ",null,null,{"$f":"IF(H1863=0,0,D1863)","v":0},{"$f":"IF(H1863<>\"p\",0,D1863)","v":0},{"$f":"IF(H1863=0,0,E1863)","v":0},{"$f":"IF(H1863<>\"p\",0,E1863)","v":0},"",""]
[null,null,null,null,null," ",null,null,0,0,0,0,"",""]
[null,null,null,null,null," ",null,null,0,0,0,0,"",""]
[null,null,null,null,null," ",null,null,0,0,0,0,"",""]
[null,null,null,null,null," ",null,null,0,0,0,0,"",""]
[null,null,null,null,null," ",null,null,0,0,0,0,"",""]
[null,null,null,null,null," ",null,null,0,0,0,0,"",""]
[null,null,null,null,null," ",null,null,0,0,0,0,"",""]
[null,null,null,null,null,{"$f":"IF(D1871-E1871=0,\" \",F1870+D1871-E1871)","v":" "},null,null,0,0,0,0,"",""]
[null,null,null,null,null," ",null,null,0,0,0,0,{"$f":"IF(A1872=0,\"\",YEAR(A1872))","v":""},{"$f":"IF(A1872=0,\"\",MONTH(A1872))","v":""}]
[null,null,null,null,null," ",null,null,0,0,0,0,"",""]
[null,null,null,null,null," ",null,null,0,0,0,0,"",""]
[null,null,null,null,null," ",null,null,0,0,0,0,"",""]
[null,null,null,null,null," ",null,null,0,0,0,0,"",""]
[null,null,null,null,null," ",null,null,0,0,0,0,"",""]
[null,null,null,null,null," ",null,null,0,0,0,0,"",""]
[null,null,null,null,null," ",null,null,0,0,0,0,"",""]
[null,null,null,null,null," ",null,null,0,0,0,0,"",""]
[null,null,null,null,null," ",null,null,0,0,0,0,"",""]
[null,null,null,null,null," ",null,null,0,0,0,0,"",""]
[null,null,null,null,null," ",null,null,0,0,0,0,"",""]
[null,null,null,null,null," ",null,null,0,0,0,0,"",""]
[null,null,null,null,null," ",null,null,0,0,0,0,"",""]
[null,null,null,null,null," ",null,null,0,0,0,0,"",""]
[null,null,null,null,null," ",null,null,0,0,0,0,"",""]
[null,null,null,null,null," ",null,null,0,0,0,0,"",""]
[null,null,null,null,null," ",null,null,0,0,0,0,"",""]
[null,null,null,null,null," ",null,null,0,0,0,0,"",""]
[null,null,null,null,null," ",null,null,0,0,0,0,"",""]
[null,null,null,null,null," ",null,null,0,0,0,0,"",""]
[null,null,null,null,null," ",null,null,0,0,0,0,"",""]
[null,null,null,null,null," ",null,null,0,0,0,0,"",""]
[null,null,null,null,null," ",null,null,0,0,0,0,"",""]
[null,null,null,null,null," ",null,null,0,0,0,0,"",""]
[null,null,null,null,null," ",null,null,0,0,0,0,"",""]
[null,null,null,null,null," ",null,null,0,0,0,0,"",""]
[null,null,null,null,null," ",null,null,0,0,0,0,"",""]
[null,null,null,null,null," ",null,null,0,0,0,0,"",""]
[null,null,null,null,null," ",null,null,0,0,0,0,"",""]
[null,null,null,null,null," ",null,null,0,0,0,0,"",""]
[null,null,null,null,null," ",null,null,0,0,0,0,"",""]
[null,null,null,null,null," ",null,null,0,0,0,0,"",""]
[null,null,null,null,null," ",null,null,0,0,0,0,"",""]
[null,null,null,null,null," ",null,null,0,0,0,0,"",""]
[null,null,null,null,null," ",null,null,0,0,0,0,"",""]
[null,null,null,null,null," ",null,null,0,0,0,0,"",""]
[null,null,null,null,null," ",null,null,0,0,0,0,"",""]
[null,null,null,null,null," ",null,null,0,0,0,0,"",""]
[null,null,null,null,null," ",null,null,0,0,0,0,"",""]
[null,null,null,null,null," ",null,null,0,0,0,0,"",""]
[null,null,null,null,null," ",null,null,0,0,0,0,"",""]
[null,null,null,null,null," ",null,null,0,0,0,0,"",""]
[null,null,null,null,null," ",null,null,0,0,0,0,"",""]
[null,null,null,null,null," ",null,null,0,0,0,0,"",""]
[null,null,null,null,null," ",null,null,0,0,0,0,"",""]
[null,null,null,null,null," ",null,null,0,0,0,0,"",""]
[null,null,null,null,null," ",null,null,0,0,0,0,"",""]
[null,null,null,null,null," ",null,null,0,0,0,0,"",""]
[null,null,null,null,null," ",null,null,0,0,0,0,"",""]
[null,null,null,null,null," ",null,null,0,0,0,0,"",""]
[null,null,null,null,null," ",null,null,0,0,0,0,"",""]
[null,null,null,null,null," ",null,null,0,0,0,0,"",""]
[null,null,null,null,null," ",null,null,0,0,0,0,"",""]
[null,null,null,null,null," ",null,null,0,0,0,0,"",""]
[null,null,null,null,null," ",null,null,{"$f":"IF(H1927=0,0,D1927)","v":0},{"$f":"IF(H1927<>\"p\",0,D1927)","v":0},{"$f":"IF(H1927=0,0,E1927)","v":0},{"$f":"IF(H1927<>\"p\",0,E1927)","v":0},"",""]
[null,null,null,null,null," ",null,null,0,0,0,0,"",""]
[null,null,null,null,null," ",null,null,0,0,0,0,"",""]
[null,null,null,null,null," ",null,null,0,0,0,0,"",""]
[null,null,null,null,null," ",null,null,0,0,0,0,"",""]
[null,null,null,null,null," ",null,null,0,0,0,0,"",""]
[null,null,null,null,null," ",null,null,0,0,0,0,"",""]
[null,null,null,null,null," ",null,null,0,0,0,0,"",""]
[null,null,null,null,null,{"$f":"IF(D1935-E1935=0,\" \",F1934+D1935-E1935)","v":" "},null,null,0,0,0,0,"",""]
[null,null,null,null,null," ",null,null,0,0,0,0,{"$f":"IF(A1936=0,\"\",YEAR(A1936))","v":""},{"$f":"IF(A1936=0,\"\",MONTH(A1936))","v":""}]
[null,null,null,null,null," ",null,null,0,0,0,0,"",""]
[null,null,null,null,null," ",null,null,0,0,0,0,"",""]
[null,null,null,null,null," ",null,null,0,0,0,0,"",""]
[null,null,null,null,null," ",null,null,0,0,0,0,"",""]
[null,null,null,null,null," ",null,null,0,0,0,0,"",""]
[null,null,null,null,null," ",null,null,0,0,0,0,"",""]
[null,null,null,null,null," ",null,null,0,0,0,0,"",""]
[null,null,null,null,null," ",null,null,0,0,0,0,"",""]
[null,null,null,null,null," ",null,null,0,0,0,0,"",""]
[null,null,null,null,null," ",null,null,0,0,0,0,"",""]
[null,null,null,null,null," ",null,null,0,0,0,0,"",""]
[null,null,null,null,null," ",null,null,0,0,0,0,"",""]
[null,null,null,null,null," ",null,null,0,0,0,0,"",""]
[null,null,null,null,null," ",null,null,0,0,0,0,"",""]
[null,null,null,null,null," ",null,null,0,0,0,0,"",""]
[null,null,null,null,null," ",null,null,0,0,0,0,"",""]
[null,null,null,null,null," ",null,null,0,0,0,0,"",""]
[null,null,null,null,null," ",null,null,0,0,0,0,"",""]
[null,null,null,null,null," ",null,null,0,0,0,0,"",""]
[null,null,null,null,null," ",null,null,0,0,0,0,"",""]
[null,null,null,null,null," ",null,null,0,0,0,0,"",""]
[null,null,null,null,null," ",null,null,0,0,0,0,"",""]
[null,null,null,null,null," ",null,null,0,0,0,0,"",""]
[null,null,null,null,null," ",null,null,0,0,0,0,"",""]
[null,null,null,null,null," ",null,null,0,0,0,0,"",""]
[null,null,null,null,null," ",null,null,0,0,0,0,"",""]
[null,null,null,null,null," ",null,null,0,0,0,0,"",""]
[null,null,null,null,null," ",null,null,0,0,0,0,"",""]
[null,null,null,null,null," ",null,null,0,0,0,0,"",""]
[null,null,null,null,null," ",null,null,0,0,0,0,"",""]
[null,null,null,null,null," ",null,null,0,0,0,0,"",""]
[null,null,null,null,null," ",null,null,0,0,0,0,"",""]
[null,null,null,null,null," ",null,null,0,0,0,0,"",""]
[null,null,null,null,null," ",null,null,0,0,0,0,"",""]
[null,null,null,null,null," ",null,null,0,0,0,0,"",""]
[null,null,null,null,null," ",null,null,0,0,0,0,"",""]
[null,null,null,null,null," ",null,null,0,0,0,0,"",""]
[null,null,null,null,null," ",null,null,0,0,0,0,"",""]
[null,null,null,null,null," ",null,null,0,0,0,0,"",""]
[null,null,null,null,null," ",null,null,0,0,0,0,"",""]
[null,null,null,null,null," ",null,null,0,0,0,0,"",""]
[null,null,null,null,null," ",null,null,0,0,0,0,"",""]
[null,null,null,null,null," ",null,null,0,0,0,0,"",""]
[null,null,null,null,null," ",null,null,0,0,0,0,"",""]
[null,null,null,null,null," ",null,null,0,0,0,0,"",""]
[null,null,null,null,null," ",null,null,0,0,0,0,"",""]
[null,null,null,null,null," ",null,null,0,0,0,0,"",""]
[null,null,null,null,null," ",null,null,0,0,0,0,"",""]
[null,null,null,null,null," ",null,null,0,0,0,0,"",""]
[null,null,null,null,null," ",null,null,0,0,0,0,"",""]
[null,null,null,null,null," ",null,null,0,0,0,0,"",""]
[null,null,null,null,null," ",null,null,0,0,0,0,"",""]
[null,null,null,null,null," ",null,null,0,0,0,0,"",""]
[null,null,null,null,null," ",null,null,0,0,0,0,"",""]
[null,null,null,null,null," ",null,null,{"$f":"IF(H1991=0,0,D1991)","v":0},{"$f":"IF(H1991<>\"p\",0,D1991)","v":0},{"$f":"IF(H1991=0,0,E1991)","v":0},{"$f":"IF(H1991<>\"p\",0,E1991)","v":0},"",""]
[null,null,null,null,null," ",null,null,0,0,0,0,"",""]
[null,null,null,null,null," ",null,null,0,0,0,0,"",""]
[null,null,null,null,null," ",null,null,0,0,0,0,"",""]
[null,null,null,null,null," ",null,null,0,0,0,0,"",""]
[null,null,null,null,null," ",null,null,0,0,0,0,"",""]
[null,null,null,null,null," ",null,null,0,0,0,0,"",""]
[null,null,null,null,null," ",null,null,0,0,0,0,"",""]
[null,null,null,null,null,{"$f":"IF(D1999-E1999=0,\" \",F1998+D1999-E1999)","v":" "},null,null,0,0,0,0,"",""]
[null,null,null,null,null," ",null,null,0,0,0,0,{"$f":"IF(A2000=0,\"\",YEAR(A2000))","v":""},{"$f":"IF(A2000=0,\"\",MONTH(A2000))","v":""}]
[null,null,null,null,null," ",null,null,0,0,0,0,"",""]
[null,null,null,null,null," ",null,null,0,0,0,0,"",""]
[null,null,null,null,null," ",null,null,0,0,0,0,"",""]
[null,null,null,null,null," ",null,null,0,0,0,0,"",""]
[null,null,null,null,null," ",null,null,0,0,0,0,"",""]
[null,null,null,null,null," ",null,null,0,0,0,0,"",""]
[null,null,null,null,null," ",null,null,0,0,0,0,"",""]
[null,null,null,null,null," ",null,null,0,0,0,0,"",""]
[null,null,null,null,null," ",null,null,0,0,0,0,"",""]
[null,null,null,null,null," ",null,null,0,0,0,0,"",""]
[null,null,null,null,null," ",null,null,0,0,0,0,"",""]
[null,null,null,null,null," ",null,null,0,0,0,0,"",""]
[null,null,null,null,null," ",null,null,0,0,0,0,"",""]
[null,null,null,null,null," ",null,null,0,0,0,0,"",""]
[null,null,null,null,null," ",null,null,0,0,0,0,"",""]
[null,null,null,null,null," ",null,null,0,0,0,0,"",""]
[null,null,null,null,null," ",null,null,0,0,0,0,"",""]
[null,null,null,null,null," ",null,null,0,0,0,0,"",""]
[null,null,null,null,null," ",null,null,0,0,0,0,"",""]
[null,null,null,null,null," ",null,null,0,0,0,0,"",""]
[null,null,null,null,null," ",null,null,0,0,0,0,"",""]
[null,null,null,null,null," ",null,null,0,0,0,0,"",""]
[null,null,null,null,null," ",null,null,0,0,0,0,"",""]
[null,null,null,null,null," ",null,null,0,0,0,0,"",""]
[null,null,null,null,null," ",null,null,0,0,0,0,"",""]
[null,null,null,null,null," ",null,null,0,0,0,0,"",""]
[null,null,null,null,null," ",null,null,0,0,0,0,"",""]
[null,null,null,null,null," ",null,null,0,0,0,0,"",""]
[null,null,null,null,null," ",null,null,0,0,0,0,"",""]
[null,null,null,null,null," ",null,null,0,0,0,0,"",""]
[null,null,null,null,null," ",null,null,0,0,0,0,"",""]
[null,null,null,null,null," ",null,null,0,0,0,0,"",""]
[null,null,null,null,null," ",null,null,0,0,0,0,"",""]
[null,null,null,null,null," ",null,null,0,0,0,0,"",""]
[null,null,null,null,null," ",null,null,0,0,0,0,"",""]
[null,null,null,null,null," ",null,null,0,0,0,0,"",""]
[null,null,null,null,null," ",null,null,0,0,0,0,"",""]
[null,null,null,null,null," ",null,null,0,0,0,0,"",""]
[null,null,null,null,null," ",null,null,0,0,0,0,"",""]
[null,null,null,null,null," ",null,null,0,0,0,0,"",""]
[null,null,null,null,null," ",null,null,0,0,0,0,"",""]
[null,null,null,null,null," ",null,null,0,0,0,0,"",""]
[null,null,null,null,null," ",null,null,0,0,0,0,"",""]
[null,null,null,null,null," ",null,null,0,0,0,0,"",""]
[null,null,null,null,null," ",null,null,0,0,0,0,"",""]
[null,null,null,null,null," ",null,null,0,0,0,0,"",""]
[null,null,null,null,null," ",null,null,0,0,0,0,"",""]
[null,null,null,null,null," ",null,null,0,0,0,0,"",""]
[null,null,null,null,null," ",null,null,0,0,0,0,"",""]
[null,null,null,null,null," ",null,null,0,0,0,0,"",""]
[null,null,null,null,null,{"$f":"IF(D2191-E2191=0,\" \",F2190+D2191-E2191)","v":" "},null,null,0,0,0,0,"",""]
[null,null,null,null,null," ",null,null,0,0,0,0,{"$f":"IF(A2192=0,\"\",YEAR(A2192))","v":""},{"$f":"IF(A2192=0,\"\",MONTH(A2192))","v":""}]
[null,null,null,null,null," ",null,null,0,0,0,0,"",""]
[null,null,null,null,null," ",null,null,0,0,0,0,"",""]
[null,null,null,null,null," ",null,null,0,0,0,0,"",""]
[null,null,null,null,null," ",null,null,0,0,0,0,"",""]
[null,null,null,null,null," ",null,null,0,0,0,0,"",""]
[null,null,null,null,null," ",null,null,0,0,0,0,"",""]
[null,null,null,null,null," ",null,null,0,0,0,0,"",""]
[null,null,null,null,null," ",null,null,0,0,0,0,"",""]
[null,null,null,null,null," ",null,null,0,0,0,0,"",""]
[null,null,null,null,null," ",null,null,0,0,0,0,"",""]
[null,null,null,null,null," ",null,null,0,0,0,0,"",""]
[null,null,null,null,null," ",null,null,0,0,0,0,"",""]
[null,null,null,null,null," ",null,null,0,0,0,0,"",""]
[null,null,null,null,null," ",null,null,0,0,0,0,"",""]
[null,null,null,null,null," ",null,null,0,0,0,0,"",""]
[null,null,null,null,null," ",null,null,0,0,0,0,"",""]
[null,null,null,null,null," ",null,null,0,0,0,0,"",""]
[null,null,null,null,null," ",null,null,0,0,0,0,"",""]
[null,null,null,null,null," ",null,null,0,0,0,0,"",""]
[null,null,null,null,null," ",null,null,0,0,0,0,"",""]
[null,null,null,null,null," ",null,null,0,0,0,0,"",""]
[null,null,null,null,null," ",null,null,0,0,0,0,"",""]
[null,null,null,null,null," ",null,null,0,0,0,0,"",""]
[null,null,null,null,null," ",null,null,0,0,0,0,"",""]
[null,null,null,null,null," ",null,null,0,0,0,0,"",""]
[null,null,null,null,null," ",null,null,0,0,0,0,"",""]
[null,null,null,null,null," ",null,null,0,0,0,0,"",""]
[null,null,null,null,null," ",null,null,0,0,0,0,"",""]
[null,null,null,null,null," ",null,null,0,0,0,0,"",""]
[null,null,null,null,null," ",null,null,0,0,0,0,"",""]
[null,null,null,null,null," ",null,null,{"$f":"IF(H2311=0,0,D2311)","v":0},{"$f":"IF(H2311<>\"p\",0,D2311)","v":0},{"$f":"IF(H2311=0,0,E2311)","v":0},{"$f":"IF(H2311<>\"p\",0,E2311)","v":0},"",""]
[null,null,null,null,null," ",null,null,0,0,0,0,"",""]
[null,null,null,null,null," ",null,null,0,0,0,0,"",""]
[null,null,null,null,null," ",null,null,0,0,0,0,{"$f":"IF(A2320=0,\"\",YEAR(A2320))","v":""},{"$f":"IF(A2320=0,\"\",MONTH(A2320))","v":""}]
[null,null,null,null,null," ",null,null,0,0,0,0,"",""]
[null,null,null,null,null," ",null,null,0,0,0,0,"",""]
[null,null,null,null,null," ",null,null,0,0,0,0,"",""]
[null,null,null,null,null," ",null,null,0,0,0,0,"",""]
[null,null,null,null,null," ",null,null,0,0,0,0,"",""]
[null,null,null,null,null," ",null,null,0,0,0,0,"",""]
[null,null,null,null,null," ",null,null,0,0,0,0,"",""]
[null,null,null,null,null," ",null,null,0,0,0,0,"",""]
[null,null,null,null,null," ",null,null,0,0,0,0,"",""]
[null,null,null,null,null," ",null,null,0,0,0,0,"",""]
[null,null,null,null,null," ",null,null,0,0,0,0,"",""]
[null,null,null,null,null," ",null,null,0,0,0,0,"",""]
[null,null,null,null,null," ",null,null,0,0,0,0,"",""]
[null,null,null,null,null," ",null,null,0,0,0,0,"",""]
[null,null,null,null,null," ",null,null,0,0,0,0,"",""]
[null,null,null,null,null," ",null,null,0,0,0,0,"",""]
[null,null,null,null,null," ",null,null,0,0,0,0,"",""]
[null,null,null,null,null," ",null,null,0,0,0,0,"",""]
[null,null,null,null,null," ",null,null,0,0,0,0,"",""]
[null,null,null,null,null," ",null,null,0,0,0,0,"",""]
[null,null,null,null,null," ",null,null,0,0,0,0,"",""]
[null,null,null,null,null," ",null,null,0,0,0,0,"",""]
[null,null,null,null,null," ",null,null,0,0,0,0,"",""]
[null,null,null,null,null," ",null,null,0,0,0,0,"",""]
[null,null,null,null,null," ",null,null,0,0,0,0,"",""]
[null,null,null,null,null," ",null,null,0,0,0,0,"",""]
[null,null,null,null,null," ",null,null,0,0,0,0,"",""]
[null,null,null,null,null," ",null,null,0,0,0,0,"",""]
[null,null,null,null,null," ",null,null,0,0,0,0,"",""]
[null,null,null,null,null," ",null,null,0,0,0,0,"",""]
[null,null,null,null,null," ",null,null,0,0,0,0,"",""]
[null,null,null,null,null," ",null,null,0,0,0,0,"",""]
[null,null,null,null,null," ",null,null,0,0,0,0,"",""]
[null,null,null,null,null,{"$f":"IF(D2447-E2447=0,\" \",F2446+D2447-E2447)","v":" "},null,null,0,0,0,0,"",""]
[null,null,null,null,null," ",null,null,0,0,0,0,"",""]
[null,null,null,null,null," ",null,null,0,0,0,0,"",""]
[null,null,null,null,null," ",null,null,0,0,0,0,"",""]
[null,null,null,null,null," ",null,null,0,0,0,0,"",""]
[null,null,null,null,null," ",null,null,0,0,0,0,"",""]
[null,null,null,null,null," ",null,null,0,0,0,0,"",""]
[null,null,null,null,null," ",null,null,0,0,0,0,"",""]
[null,null,null,null,null," ",null,null,0,0,0,0,"",""]
[null,null,null,null,null," ",null,null,0,0,0,0,"",""]
[null,null,null,null,null," ",null,null,0,0,0,0,"",""]
[null,null,null,null,null," ",null,null,0,0,0,0,"",""]
[null,null,null,null,null," ",null,null,0,0,0,0,"",""]
[null,null,null,null,null," ",null,null,0,0,0,0,"",""]
[null,null,null,null,null," ",null,null,0,0,0,0,"",""]
[null,null,null,null,null," ",null,null,0,0,0,0,"",""]
[null,null,null,null,null," ",null,null,0,0,0,0,"",""]
[null,null,null,null,null," ",null,null,0,0,0,0,{"$f":"IF(A2512=0,\"\",YEAR(A2512))","v":""},{"$f":"IF(A2512=0,\"\",MONTH(A2512))","v":""}]
[null,null,null,null,null," ",null,null,0,0,0,0,"",""]
[null,null,null,null,null," ",null,null,0,0,0,0,"",""]
[null,null,null,null,null," ",null,null,0,0,0,0,"",""]
[null,null,null,null,null," ",null,null,0,0,0,0,"",""]
[null,null,null,null,null," ",null,null,0,0,0,0,"",""]
[null,null,null,null,null," ",null,null,0,0,0,0,"",""]
[null,null,null,null,null," ",null,null,0,0,0,0,"",""]
[null,null,null,null,null," ",null,null,0,0,0,0,"",""]
[null,null,null,null,null," ",null,null,0,0,0,0,"",""]
[null,null,null,null,null," ",null,null,0,0,0,0,"",""]
[null,null,null,null,null," ",null,null,0,0,0,0,"",""]
[null,null,null,null,null," ",null,null,0,0,0,0,"",""]
[null,null,null,null,null," ",null,null,0,0,0,0,"",""]
[null,null,null,null,null," ",null,null,0,0,0,0,"",""]
[null,null,null,null,null," ",null,null,{"$f":"IF(H2567=0,0,D2567)","v":0},{"$f":"IF(H2567<>\"p\",0,D2567)","v":0},{"$f":"IF(H2567=0,0,E2567)","v":0},{"$f":"IF(H2567<>\"p\",0,E2567)","v":0},"",""]
[null,null,null,null,null," ",null,null,0,0,0,0,"",""]
[null,null,null,null,null," ",null,null,0,0,0,0,"",""]
[null,null,null,null,null," ",null,null,0,0,0,0,"",""]
[null,null,null,null,null," ",null,null,0,0,0,0,"",""]
[null,null,null,null,null," ",null,null,0,0,0,0,"",""]
[null,null,null,null,null," ",null,null,0,0,0,0,"",""]
[null,null,null,null,null," ",null,null,0,0,0,0,"",""]
[null,null,null,null,null," ",null,null,0,0,0,0,"",""]
[null,null,null,null,null," ",null,null,0,0,0,0,"",""]
[null,null,null,null,null," ",null,null,0,0,0,0,"",""]
[null,null,null,null,null," ",null,null,0,0,0,0,"",""]
[null,null,null,null,null," ",null,null,0,0,0,0,"",""]
[null,null,null,null,null," ",null,null,0,0,0,0,"",""]
[null,null,null,null,null," ",null,null,0,0,0,0,"",""]
[null,null,null,null,null," ",null,null,0,0,0,0,"",""]
[null,null,null,null,null," ",null,null,0,0,0,0,"",""]
[null,null,null,null,null," ",null,null,0,0,0,0,"",""]
[null,null,null,null,null," ",null,null,0,0,0,0,"",""]
[null,null,null,null,null," ",null,null,0,0,0,0,"",""]
[null,null,null,null,null," ",null,null,0,0,0,0,"",""]
[null,null,null,null,null," ",null,null,0,0,0,0,"",""]
[null,null,null,null,null," ",null,null,0,0,0,0,"",""]
[null,null,null,null,null," ",null,null,0,0,0,0,"",""]
[null,null,null,null,null," ",null,null,0,0,0,0,"",""]
[null,null,null,null,null," ",null,null,0,0,0,0,"",""]
[null,null,null,null,null," ",null,null,0,0,0,0,"",""]
[null,null,null,null,null," ",null,null,0,0,0,0,"",""]
[null,null,null,null,null," ",null,null,0,0,0,0,"",""]
[null,null,null,null,null," ",null,null,0,0,0,0,"",""]
[null,null,null,null,null," ",null,null,0,0,0,0,"",""]
[null,null,null,null,null," ",null,null,0,0,0,0,"",""]
[null,null,null,null,null," ",null,null,0,0,0,0,"",""]
[null,null,null,null,null," ",null,null,0,0,0,0,"",""]
[null,null,null,null,null," ",null,null,0,0,0,0,"",""]
[null,null,null,null,null," ",null,null,0,0,0,0,"",""]
[null,null,null,null,null," ",null,null,0,0,0,0,"",""]
[null,null,null,null,null," ",null,null,0,0,0,0,"",""]
[null,null,null,null,null," ",null,null,0,0,0,0,"",""]
[null,null,null,null,null," ",null,null,0,0,0,0,"",""]
[null,null,null,null,null," ",null,null,0,0,0,0,"",""]
[null,null,null,null,null," ",null,null,0,0,0,0,"",""]
[null,null,null,null,null," ",null,null,0,0,0,0,"",""]
[null,null,null,null,null," ",null,null,0,0,0,0,"",""]
[null,null,null,null,null," ",null,null,0,0,0,0,"",""]
[null,null,null,null,null," ",null,null,0,0,0,0,"",""]
[null,null,null,null,null," ",null,null,0,0,0,0,"",""]
[null,null,null,null,null," ",null,null,0,0,0,0,"",""]
[null,null,null,null,null," ",null,null,0,0,0,0,"",""]
[null,null,null,null,null," ",null,null,0,0,0,0,"",""]
[null,null,null,null,null," ",null,null,0,0,0,0,"",""]
[null,null,null,null,null," ",null,null,{"$f":"IF(H2759=0,0,D2759)","v":0},{"$f":"IF(H2759<>\"p\",0,D2759)","v":0},{"$f":"IF(H2759=0,0,E2759)","v":0},{"$f":"IF(H2759<>\"p\",0,E2759)","v":0},"",""]
[null,null,null,null,null," ",null,null,0,0,0,0,"",""]
[null,null,null,null,null,{"$f":"IF(D2767-E2767=0,\" \",F2766+D2767-E2767)","v":" "},null,null,0,0,0,0,"",""]
[null,null,null,null,null," ",null,null,0,0,0,0,"",""]
[null,null,null,null,null," ",null,null,0,0,0,0,"",""]
[null,null,null,null,null," ",null,null,0,0,0,0,"",""]
[null,null,null,null,null," ",null,null,0,0,0,0,"",""]
[null,null,null,null,null," ",null,null,0,0,0,0,"",""]
[null,null,null,null,null," ",null,null,0,0,0,0,"",""]
[null,null,null,null,null," ",null,null,0,0,0,0,"",""]
[null,null,null,null,null," ",null,null,0,0,0,0,"",""]
[null,null,null,null,null," ",null,null,0,0,0,0,"",""]
[null,null,null,null,null," ",null,null,0,0,0,0,"",""]
[null,null,null,null,null," ",null,null,0,0,0,0,"",""]
[null,null,null,null,null," ",null,null,0,0,0,0,"",""]
[null,null,null,null,null," ",null,null,0,0,0,0,"",""]
[null,null,null,null,null," ",null,null,0,0,0,0,"",""]
[null,null,null,null,null," ",null,null,0,0,0,0,"",""]
[null,null,null,null,null," ",null,null,0,0,0,0,"",""]
[null,null,null,null,null," ",null,null,0,0,0,0,{"$f":"IF(A2832=0,\"\",YEAR(A2832))","v":""},{"$f":"IF(A2832=0,\"\",MONTH(A2832))","v":""}]
[null,null,null,null,null," ",null,null,0,0,0,0,"",""]
[null,null,null,null,null," ",null,null,0,0,0,0,"",""]
[null,null,null,null,null," ",null,null,0,0,0,0,"",""]
[null,null,null,null,null," ",null,null,0,0,0,0,"",""]
[null,null,null,null,null," ",null,null,0,0,0,0,"",""]
[null,null,null,null,null," ",null,null,0,0,0,0,"",""]
[null,null,null,null,null," ",null,null,0,0,0,0,"",""]
[null,null,null,null,null," ",null,null,0,0,0,0,"",""]
[null,null,null,null,null," ",null,null,0,0,0,0,"",""]
[null,null,null,null,null," ",null,null,0,0,0,0,"",""]
[null,null,null,null,null," ",null,null,0,0,0,0,"",""]
[null,null,null,null,null," ",null,null,0,0,0,0,"",""]
[null,null,null,null,null," ",null,null,0,0,0,0,"",""]
[null,null,null,null,null," ",null,null,0,0,0,0,"",""]
[null,null,null,null,null," ",null,null,{"$f":"IF(H2887=0,0,D2887)","v":0},{"$f":"IF(H2887<>\"p\",0,D2887)","v":0},{"$f":"IF(H2887=0,0,E2887)","v":0},{"$f":"IF(H2887<>\"p\",0,E2887)","v":0},"",""]
[null,null,null,null,null," ",null,null,0,0,0,0,"",""]
[null,null,null,null,null,{"$f":"IF(D2895-E2895=0,\" \",F2894+D2895-E2895)","v":" "},null,null,0,0,0,0,"",""]
[null,null,null,null,null," ",null,null,0,0,0,0,"",""]
[null,null,null,null,null," ",null,null,0,0,0,0,"",""]
[null,null,null,null,null," ",null,null,0,0,0,0,"",""]
[null,null,null,null,null," ",null,null,0,0,0,0,"",""]
[null,null,null,null,null," ",null,null,0,0,0,0,"",""]
[null,null,null,null,null," ",null,null,0,0,0,0,"",""]
[null,null,null,null,null," ",null,null,0,0,0,0,"",""]
[null,null,null,null,null," ",null,null,0,0,0,0,"",""]
[null,null,null,null,null," ",null,null,0,0,0,0,"",""]
[null,null,null,null,null," ",null,null,0,0,0,0,"",""]
[null,null,null,null,null," ",null,null,0,0,0,0,"",""]
[null,null,null,null,null," ",null,null,0,0,0,0,"",""]
[null,null,null,null,null," ",null,null,0,0,0,0,"",""]
[null,null,null,null,null," ",null,null,0,0,0,0,"",""]
[null,null,null,null,null," ",null,null,0,0,0,0,"",""]
[null,null,null,null,null," ",null,null,0,0,0,0,"",""]
[null,null,null,null,null," ",null,null,0,0,0,0,{"$f":"IF(A2960=0,\"\",YEAR(A2960))","v":""},{"$f":"IF(A2960=0,\"\",MONTH(A2960))","v":""}]
[null,null,null,null,null," ",null,null,0,0,0,0,"",""]
[null,null,null,null,null," ",null,null,0,0,0,0,"",""]
[null,null,null,null,null," ",null,null,0,0,0,0,"",""]
[null,null,null,null,null," ",null,null,0,0,0,0,"",""]
[null,null,null,null,null," ",null,null,0,0,0,0,"",""]
[null,null,null,null,null," ",null,null,0,0,0,0,"",""]
[null,null,null,null,null," ",null,null,0,0,0,0,"",""]
[null,null,null,null,null," ",null,null,0,0,0,0,"",""]
[null,null,null,null,null," ",null,null,0,0,0,0,"",""]
[null,null,null,null,null," ",null,null,0,0,0,0,"",""]
[null,null,null,null,null," ",null,null,0,0,0,0,"",""]
[null,null,null,null,null," ",null,null,0,0,0,0,"",""]
[null,null,null,null,null," ",null,null,0,0,0,0,"",""]
[null,null,null,null,null," ",null,null,0,0,0,0,"",""]
[null,null,null,null,null," ",null,null,0,0,0,0,"",""]
[null,null,null,null,null," ",null,null,0,0,0,0,"",""]
[null,null,null,null,null," ",null,null,0,0,0,0,"",""]
[null,null,null,null,null," ",null,null,0,0,0,0,"",""]
[null,null,null,null,null," ",null,null,0,0,0,0,"",""]
[null,null,null,null,null," ",null,null,0,0,0,0,"",""]
[null,null,null,null,null," ",null,null,0,0,0,0,"",""]
[null,null,null,null,null," ",null,null,0,0,0,0,"",""]
[null,null,null,null,null," ",null,null,0,0,0,0,"",""]
[null,null,null,null,null," ",null,null,0,0,0,0,"",""]
[null,null,null,null,null," ",null,null,0,0,0,0,"",""]
[null,null,null,null,null," ",null,null,0,0,0,0,"",""]
[null,null,null,null,null," ",null,null,0,0,0,0,"",""]
[null,null,null,null,null," ",null,null,0,0,0,0,"",""]
[null,null,null,null,null," ",null,null,0,0,0,0,"",""]
[null,null,null,null,null," ",null,null,0,0,0,0,"",""]
[null,null,null,null,null," ",null,null,0,0,0,0,"",""]
[null,null,null,null,null," ",null,null,0,0,0,0,"",""]
[null,null,null,null,null," ",null,null,0,0,0,0,"",""]
[null,null,null,null,null,{"$f":"IF(D3087-E3087=0,\" \",F3086+D3087-E3087)","v":" "},null,null,0,0,0,0,"",""]
[null,null,null,null,null," ",null,null,0,0,0,0,"",""]
[null,null,null,null,null," ",null,null,0,0,0,0,"",""]
[null,null,null,null,null," ",null,null,0,0,0,0,"",""]
[null,null,null,null,null," ",null,null,0,0,0,0,"",""]
[null,null,null,null,null," ",null,null,0,0,0,0,"",""]
[null,null,null,null,null," ",null,null,0,0,0,0,"",""]
[null,null,null,null,null," ",null,null,0,0,0,0,"",""]
[null,null,null,null,null," ",null,null,0,0,0,0,"",""]
[null,null,null,null,null," ",null,null,0,0,0,0,"",""]
[null,null,null,null,null," ",null,null,0,0,0,0,"",""]
[null,null,null,null,null," ",null,null,0,0,0,0,"",""]
[null,null,null,null,null," ",null,null,0,0,0,0,"",""]
[null,null,null,null,null," ",null,null,0,0,0,0,"",""]
[null,null,null,null,null," ",null,null,0,0,0,0,"",""]
[null,null,null,null,null," ",null,null,0,0,0,0,"",""]
[null,null,null,null,null," ",null,null,0,0,0,0,"",""]
[null,null,null,null,null," ",null,null,0,0,0,0,{"$f":"IF(A3152=0,\"\",YEAR(A3152))","v":""},{"$f":"IF(A3152=0,\"\",MONTH(A3152))","v":""}]
[null,null,null,null,null," ",null,null,0,0,0,0,"",""]
[null,null,null,null,null," ",null,null,0,0,0,0,"",""]
[null,null,null,null,null," ",null,null,0,0,0,0,"",""]
[null,null,null,null,null," ",null,null,0,0,0,0,"",""]
[null,null,null,null,null," ",null,null,0,0,0,0,"",""]
[null,null,null,null,null," ",null,null,0,0,0,0,"",""]
[null,null,null,null,null," ",null,null,0,0,0,0,"",""]
[null,null,null,null,null," ",null,null,0,0,0,0,"",""]
[null,null,null,null,null," ",null,null,0,0,0,0,"",""]
[null,null,null,null,null," ",null,null,0,0,0,0,"",""]
[null,null,null,null,null," ",null,null,0,0,0,0,"",""]
[null,null,null,null,null," ",null,null,0,0,0,0,"",""]
[null,null,null,null,null," ",null,null,0,0,0,0,"",""]
[null,null,null,null,null," ",null,null,0,0,0,0,"",""]
[null,null,null,null,null," ",null,null,{"$f":"IF(H3207=0,0,D3207)","v":0},{"$f":"IF(H3207<>\"p\",0,D3207)","v":0},{"$f":"IF(H3207=0,0,E3207)","v":0},{"$f":"IF(H3207<>\"p\",0,E3207)","v":0},"",""]
[null,null,null,null,null," ",null,null,0,0,0,0,"",""]
[null,null,null,null,null," ",null,null,0,0,0,0,"",""]
[null,null,null,null,null," ",null,null,0,0,0,0,"",""]
[null,null,null,null,null," ",null,null,0,0,0,0,"",""]
[null,null,null,null,null," ",null,null,0,0,0,0,"",""]
[null,null,null,null,null," ",null,null,0,0,0,0,"",""]
[null,null,null,null,null," ",null,null,0,0,0,0,"",""]
[null,null,null,null,null," ",null,null,0,0,0,0,"",""]
[null,null,null,null,null," ",null,null,0,0,0,0,"",""]
[null,null,null,null,null," ",null,null,0,0,0,0,"",""]
[null,null,null,null,null," ",null,null,0,0,0,0,"",""]
[null,null,null,null,null," ",null,null,0,0,0,0,"",""]
[null,null,null,null,null," ",null,null,0,0,0,0,"",""]
[null,null,null,null,null," ",null,null,0,0,0,0,"",""]
[null,null,null,null,null," ",null,null,0,0,0,0,"",""]
[null,null,null,null,null," ",null,null,0,0,0,0,"",""]
[null,null,null,null,null," ",null,null,0,0,0,0,"",""]
[null,null,null,null,null," ",null,null,0,0,0,0,"",""]
[null,null,null,null,null," ",null,null,0,0,0,0,"",""]
[null,null,null,null,null," ",null,null,0,0,0,0,"",""]
[null,null,null,null,null," ",null,null,0,0,0,0,"",""]
[null,null,null,null,null," ",null,null,0,0,0,0,"",""]
[null,null,null,null,null," ",null,null,0,0,0,0,"",""]
[null,null,null,null,null," ",null,null,0,0,0,0,"",""]
[null,null,null,null,null," ",null,null,0,0,0,0,"",""]
[null,null,null,null,null," ",null,null,0,0,0,0,"",""]
[null,null,null,null,null," ",null,null,0,0,0,0,"",""]
[null,null,null,null,null," ",null,null,0,0,0,0,"",""]
[null,null,null,null,null," ",null,null,0,0,0,0,"",""]
[null,null,null,null,null," ",null,null,0,0,0,0,"",""]
[null,null,null,null,null," ",null,null,0,0,0,0,"",""]
[null,null,null,null,null," ",null,null,0,0,0,0,"",""]
[null,null,null,null,null," ",null,null,0,0,0,0,"",""]
[null,null,null,null,null," ",null,null,0,0,0,0,"",""]
[null,null,null,null,null," ",null,null,0,0,0,0,"",""]
[null,null,null,null,null," ",null,null,0,0,0,0,"",""]
[null,null,null,null,null," ",null,null,0,0,0,0,"",""]
[null,null,null,null,null," ",null,null,0,0,0,0,"",""]
[null,null,null,null,null," ",null,null,0,0,0,0,"",""]
[null,null,null,null,null," ",null,null,0,0,0,0,"",""]
[null,null,null,null,null," ",null,null,0,0,0,0,"",""]
[null,null,null,null,null," ",null,null,0,0,0,0,"",""]
[null,null,null,null,null," ",null,null,0,0,0,0,"",""]
[null,null,null,null,null," ",null,null,0,0,0,0,"",""]
[null,null,null,null,null," ",null,null,0,0,0,0,"",""]
[null,null,null,null,null," ",null,null,0,0,0,0,"",""]
[null,null,null,null,null," ",null,null,0,0,0,0,"",""]
[null,null,null,null,null," ",null,null,0,0,0,0,"",""]
[null,null,null,null,null," ",null,null,0,0,0,0,"",""]
[null,null,null,null,null," ",null,null,0,0,0,0,"",""]
[null,null,null,null,null," ",null,null,{"$f":"IF(H3399=0,0,D3399)","v":0},{"$f":"IF(H3399<>\"p\",0,D3399)","v":0},{"$f":"IF(H3399=0,0,E3399)","v":0},{"$f":"IF(H3399<>\"p\",0,E3399)","v":0},"",""]
[null,null,null,null,null," ",null,null,0,0,0,0,"",""]
[null,null,null,null,null,{"$f":"IF(D3407-E3407=0,\" \",F3406+D3407-E3407)","v":" "},null,null,0,0,0,0,"",""]
[null,null,null,null,null," ",null,null,0,0,0,0,{"$f":"IF(A3408=0,\"\",YEAR(A3408))","v":""},{"$f":"IF(A3408=0,\"\",MONTH(A3408))","v":""}]
[null,null,null,null,null," ",null,null,0,0,0,0,"",""]
[null,null,null,null,null," ",null,null,0,0,0,0,"",""]
[null,null,null,null,null," ",null,null,0,0,0,0,"",""]
[null,null,null,null,null," ",null,null,0,0,0,0,"",""]
[null,null,null,null,null," ",null,null,0,0,0,0,"",""]
[null,null,null,null,null," ",null,null,0,0,0,0,"",""]
[null,null,null,null,null," ",null,null,0,0,0,0,"",""]
[null,null,null,null,null," ",null,null,0,0,0,0,"",""]
[null,null,null,null,null," ",null,null,0,0,0,0,"",""]
[null,null,null,null,null," ",null,null,0,0,0,0,"",""]
[null,null,null,null,null," ",null,null,0,0,0,0,"",""]
[null,null,null,null,null," ",null,null,0,0,0,0,"",""]
[null,null,null,null,null," ",null,null,0,0,0,0,"",""]
[null,null,null,null,null," ",null,null,0,0,0,0,"",""]
[null,null,null,null,null," ",null,null,0,0,0,0,"",""]
[null,null,null,null,null," ",null,null,0,0,0,0,"",""]
[null,null,null,null,null," ",null,null,0,0,0,0,{"$f":"IF(A3472=0,\"\",YEAR(A3472))","v":""},{"$f":"IF(A3472=0,\"\",MONTH(A3472))","v":""}]
[null,null,null,null,null," ",null,null,0,0,0,0,"",""]
[null,null,null,null,null," ",null,null,0,0,0,0,"",""]
[null,null,null,null,null," ",null,null,0,0,0,0,"",""]
[null,null,null,null,null," ",null,null,0,0,0,0,"",""]
[null,null,null,null,null," ",null,null,0,0,0,0,"",""]
[null,null,null,null,null," ",null,null,0,0,0,0,"",""]
[null,null,null,null,null," ",null,null,0,0,0,0,"",""]
[null,null,null,null,null," ",null,null,0,0,0,0,"",""]
[null,null,null,null,null," ",null,null,0,0,0,0,"",""]
[null,null,null,null,null," ",null,null,0,0,0,0,"",""]
[null,null,null,null,null," ",null,null,0,0,0,0,"",""]
[null,null,null,null,null," ",null,null,0,0,0,0,"",""]
[null,null,null,null,null," ",null,null,0,0,0,0,"",""]
[null,null,null,null,null," ",null,null,{"$f":"IF(H3527=0,0,D3527)","v":0},{"$f":"IF(H3527<>\"p\",0,D3527)","v":0},{"$f":"IF(H3527=0,0,E3527)","v":0},{"$f":"IF(H3527<>\"p\",0,E3527)","v":0},"",""]
[null,null,null,null,null," ",null,null,0,0,0,0,"",""]
[null,null,null,null,null," ",null,null,0,0,0,0,"",""]
[null,null,null,null,null," ",null,null,0,0,0,0,"",""]
[null,null,null,null,null," ",null,null,0,0,0,0,"",""]
[null,null,null,null,null," ",null,null,0,0,0,0,"",""]
[null,null,null,null,null," ",null,null,0,0,0,0,"",""]
[null,null,null,null,null," ",null,null,0,0,0,0,"",""]
[null,null,null,null,null," ",null,null,0,0,0,0,"",""]
[null,null,null,null,null," ",null,null,0,0,0,0,"",""]
[null,null,null,null,null," ",null,null,0,0,0,0,"",""]
[null,null,null,null,null," ",null,null,0,0,0,0,"",""]
[null,null,null,null,null," ",null,null,0,0,0,0,"",""]
[null,null,null,null,null," ",null,null,0,0,0,0,"",""]
[null,null,null,null,null," ",null,null,0,0,0,0,"",""]
[null,null,null,null,null," ",null,null,0,0,0,0,"",""]
[null,null,null,null,null," ",null,null,0,0,0,0,"",""]
[null,null,null,null,null," ",null,null,0,0,0,0,"",""]
[null,null,null,null,null," ",null,null,0,0,0,0,"",""]
[null,null,null,null,null," ",null,null,0,0,0,0,"",""]
[null,null,null,null,null," ",null,null,0,0,0,0,"",""]
[null,null,null,null,null," ",null,null,0,0,0,0,"",""]
[null,null,null,null,null," ",null,null,0,0,0,0,"",""]
[null,null,null,null,null," ",null,null,0,0,0,0,"",""]
[null,null,null,null,null," ",null,null,0,0,0,0,"",""]
[null,null,null,null,null," ",null,null,0,0,0,0,"",""]
[null,null,null,null,null," ",null,null,0,0,0,0,"",""]
[null,null,null,null,null," ",null,null,0,0,0,0,"",""]
[null,null,null,null,null," ",null,null,0,0,0,0,"",""]
[null,null,null,null,null," ",null,null,0,0,0,0,"",""]
[null,null,null,null,null," ",null,null,0,0,0,0,"",""]
[null,null,null,null,null," ",null,null,0,0,0,0,"",""]
[null,null,null,null,null," ",null,null,0,0,0,0,"",""]
[null,null,null,null,null," ",null,null,0,0,0,0,"",""]
[null,null,null,null,null," ",null,null,0,0,0,0,"",""]
[null,null,null,null,null," ",null,null,0,0,0,0,"",""]
[null,null,null,null,null," ",null,null,0,0,0,0,"",""]
[null,null,null,null,null,{"$f":"IF(D3663-E3663=0,\" \",F3662+D3663-E3663)","v":" "},null,null,0,0,0,0,"",""]
[null,null,null,null,null," ",null,null,0,0,0,0,"",""]
[null,null,null,null,null," ",null,null,0,0,0,0,"",""]
[null,null,null,null,null," ",null,null,0,0,0,0,"",""]
[null,null,null,null,null," ",null,null,0,0,0,0,"",""]
[null,null,null,null,null," ",null,null,0,0,0,0,"",""]
[null,null,null,null,null," ",null,null,0,0,0,0,"",""]
[null,null,null,null,null," ",null,null,0,0,0,0,"",""]
[null,null,null,null,null," ",null,null,0,0,0,0,"",""]
[null,null,null,null,null," ",null,null,0,0,0,0,"",""]
[null,null,null,null,null," ",null,null,0,0,0,0,"",""]
[null,null,null,null,null," ",null,null,0,0,0,0,"",""]
[null,null,null,null,null," ",null,null,0,0,0,0,"",""]
[null,null,null,null,null," ",null,null,0,0,0,0,"",""]
[null,null,null,null,null," ",null,null,0,0,0,0,"",""]
[null,null,null,null,null," ",null,null,0,0,0,0,"",""]
[null,null,null,null,null," ",null,null,0,0,0,0,"",""]
[null,null,null,null,null," ",null,null,0,0,0,0,{"$f":"IF(A3728=0,\"\",YEAR(A3728))","v":""},{"$f":"IF(A3728=0,\"\",MONTH(A3728))","v":""}]
[null,null,null,null,null," ",null,null,0,0,0,0,"",""]
[null,null,null,null,null," ",null,null,0,0,0,0,"",""]
[null,null,null,null,null," ",null,null,0,0,0,0,"",""]
[null,null,null,null,null," ",null,null,0,0,0,0,"",""]
[null,null,null,null,null," ",null,null,0,0,0,0,"",""]
[null,null,null,null,null," ",null,null,0,0,0,0,"",""]
[null,null,null,null,null," ",null,null,0,0,0,0,"",""]
[null,null,null,null,null," ",null,null,0,0,0,0,"",""]
[null,null,null,null,null," ",null,null,0,0,0,0,"",""]
[null,null,null,null,null," ",null,null,0,0,0,0,"",""]
[null,null,null,null,null," ",null,null,0,0,0,0,"",""]
[null,null,null,null,null," ",null,null,0,0,0,0,"",""]
[null,null,null,null,null," ",null,null,0,0,0,0,"",""]
[null,null,null,null,null," ",null,null,0,0,0,0,"",""]
[null,null,null,null,null," ",null,null,{"$f":"IF(H3783=0,0,D3783)","v":0},{"$f":"IF(H3783<>\"p\",0,D3783)","v":0},{"$f":"IF(H3783=0,0,E3783)","v":0},{"$f":"IF(H3783<>\"p\",0,E3783)","v":0},"",""]
[null,null,null,null,null," ",null,null,0,0,0,0,"",""]
[null,null,null,null,null,{"$f":"IF(D3791-E3791=0,\" \",F3790+D3791-E3791)","v":" "},null,null,0,0,0,0,"",""]
[null,null,null,null,null," ",null,null,0,0,0,0,"",""]
[null,null,null,null,null," ",null,null,0,0,0,0,"",""]
[null,null,null,null,null," ",null,null,0,0,0,0,"",""]
[null,null,null,null,null," ",null,null,0,0,0,0,"",""]
[null,null,null,null,null," ",null,null,0,0,0,0,"",""]
[null,null,null,null,null," ",null,null,0,0,0,0,"",""]
[null,null,null,null,null," ",null,null,0,0,0,0,"",""]
[null,null,null,null,null," ",null,null,0,0,0,0,"",""]
[null,null,null,null,null," ",null,null,0,0,0,0,"",""]
[null,null,null,null,null," ",null,null,0,0,0,0,"",""]
[null,null,null,null,null," ",null,null,0,0,0,0,"",""]
[null,null,null,null,null," ",null,null,0,0,0,0,"",""]
[null,null,null,null,null," ",null,null,0,0,0,0,"",""]
[null,null,null,null,null," ",null,null,0,0,0,0,"",""]
[null,null,null,null,null," ",null,null,0,0,0,0,"",""]
[null,null,null,null,null," ",null,null,0,0,0,0,"",""]
[null,null,null,null,null," ",null,null,0,0,0,0,"",""]
[null,null,null,null,null," ",null,null,0,0,0,0,"",""]
[null,null,null,null,null," ",null,null,0,0,0,0,"",""]
[null,null,null,null,null," ",null,null,0,0,0,0,"",""]
[null,null,null,null,null," ",null,null,0,0,0,0,"",""]
[null,null,null,null,null," ",null,null,0,0,0,0,"",""]
[null,null,null,null,null," ",null,null,0,0,0,0,"",""]
[null,null,null,null,null," ",null,null,0,0,0,0,"",""]
[null,null,null,null,null," ",null,null,0,0,0,0,"",""]
[null,null,null,null,null," ",null,null,0,0,0,0,"",""]
[null,null,null,null,null," ",null,null,0,0,0,0,"",""]
[null,null,null,null,null," ",null,null,0,0,0,0,"",""]
[null,null,null,null,null," ",null,null,0,0,0,0,"",""]
[null,null,null,null,null," ",null,null,0,0,0,0,"",""]
[null,null,null,null,null," ",null,null,0,0,0,0,"",""]
[null,null,null,null,null," ",null,null,0,0,0,0,"",""]
[null,null,null,null,null," ",null,null,0,0,0,0,"",""]
[null,null,null,null,null," ",null,null,0,0,0,0,"",""]
[null,null,null,null,null," ",null,null,0,0,0,0,"",""]
[null,null,null,null,null," ",null,null,0,0,0,0,"",""]
[null,null,null,null,null," ",null,null,0,0,0,0,"",""]
[null,null,null,null,null," ",null,null,0,0,0,0,"",""]
[null,null,null,null,null," ",null,null,0,0,0,0,"",""]
[null,null,null,null,null," ",null,null,0,0,0,0,"",""]
[null,null,null,null,null," ",null,null,0,0,0,0,"",""]
[null,null,null,null,null," ",null,null,0,0,0,0,"",""]
[null,null,null,null,null," ",null,null,0,0,0,0,"",""]
[null,null,null,null,null," ",null,null,0,0,0,0,"",""]
[null,null,null,null,null," ",null,null,0,0,0,0,"",""]
[null,null,null,null,null," ",null,null,0,0,0,0,"",""]
[null,null,null,null,null," ",null,null,0,0,0,0,"",""]
[null,null,null,null,null," ",null,null,0,0,0,0,"",""]
[null,null,null,null,null," ",null,null,{"$f":"IF(H3975=0,0,D3975)","v":0},{"$f":"IF(H3975<>\"p\",0,D3975)","v":0},{"$f":"IF(H3975=0,0,E3975)","v":0},{"$f":"IF(H3975<>\"p\",0,E3975)","v":0},"",""]
[null,null,null,null,null," ",null,null,0,0,0,0,"",""]
[null,null,null,null,null,{"$f":"IF(D3983-E3983=0,\" \",F3982+D3983-E3983)","v":" "},null,null,0,0,0,0,"",""]
[null,null,null,null,null," ",null,null,0,0,0,0,"",""]
[null,null,null,null,null," ",null,null,0,0,0,0,"",""]
[null,null,null,null,null," ",null,null,0,0,0,0,"",""]
[null,null,null,null,null," ",null,null,0,0,0,0,"",""]
[null,null,null,null,null," ",null,null,0,0,0,0,"",""]
[null,null,null,null,null," ",null,null,0,0,0,0,"",""]
[null,null,null,null,null," ",null,null,0,0,0,0,"",""]
[null,null,null,null,null," ",null,null,0,0,0,0,"",""]
[null,null,null,null,null," ",null,null,0,0,0,0,"",""]
[null,null,null,null,null," ",null,null,0,0,0,0,"",""]
[null,null,null,null,null," ",null,null,0,0,0,0,"",""]
[null,null,null,null,null," ",null,null,0,0,0,0,"",""]
[null,null,null,null,null," ",null,null,0,0,0,0,"",""]
[null,null,null,null,null," ",null,null,0,0,0,0,"",""]
[null,null,null,null,null," ",null,null,0,0,0,0,"",""]
[null,null,null,null,null," ",null,null,0,0,0,0,"",""]
[null,null,null,null,null," ",null,null,0,0,0,0,{"$f":"IF(A4048=0,\"\",YEAR(A4048))","v":""},{"$f":"IF(A4048=0,\"\",MONTH(A4048))","v":""}]
[null,null,null,null,null," ",null,null,0,0,0,0,"",""]
[null,null,null,null,null," ",null,null,0,0,0,0,"",""]
[null,null,null,null,null," ",null,null,0,0,0,0,"",""]
[null,null,null,null,null," ",null,null,0,0,0,0,"",""]
[null,null,null,null,null," ",null,null,0,0,0,0,"",""]
[null,null,null,null,null," ",null,null,0,0,0,0,"",""]
[null,null,null,null,null," ",null,null,0,0,0,0,"",""]
[null,null,null,null,null," ",null,null,0,0,0,0,"",""]
[null,null,null,null,null," ",null,null,0,0,0,0,"",""]
[null,null,null,null,null," ",null,null,0,0,0,0,"",""]
[null,null,null,null,null," ",null,null,0,0,0,0,"",""]
[null,null,null,null,null," ",null,null,0,0,0,0,"",""]
[null,null,null,null,null," ",null,null,0,0,0,0,"",""]
[null,null,null,null,null," ",null,null,0,0,0,0,"",""]
[null,null,null,null,null," ",null,null,{"$f":"IF(H4103=0,0,D4103)","v":0},{"$f":"IF(H4103<>\"p\",0,D4103)","v":0},{"$f":"IF(H4103=0,0,E4103)","v":0},{"$f":"IF(H4103<>\"p\",0,E4103)","v":0},"",""]
[null,null,null,null,null," ",null,null,0,0,0,0,"",""]
[null,null,null,null,null," ",null,null,0,0,0,0,{"$f":"IF(A4112=0,\"\",YEAR(A4112))","v":""},{"$f":"IF(A4112=0,\"\",MONTH(A4112))","v":""}]
[null,null,null,null,null," ",null,null,0,0,0,0,"",""]
[null,null,null,null,null," ",null,null,0,0,0,0,"",""]
[null,null,null,null,null," ",null,null,0,0,0,0,"",""]
[null,null,null,null,null," ",null,null,0,0,0,0,"",""]
[null,null,null,null,null," ",null,null,0,0,0,0,"",""]
[null,null,null,null,null," ",null,null,0,0,0,0,"",""]
[null,null,null,null,null," ",null,null,0,0,0,0,"",""]
[null,null,null,null,null," ",null,null,0,0,0,0,"",""]
[null,null,null,null,null," ",null,null,0,0,0,0,"",""]
[null,null,null,null,null," ",null,null,0,0,0,0,"",""]
[null,null,null,null,null," ",null,null,0,0,0,0,"",""]
[null,null,null,null,null," ",null,null,0,0,0,0,"",""]
[null,null,null,null,null," ",null,null,0,0,0,0,"",""]
[null,null,null,null,null," ",null,null,0,0,0,0,"",""]
[null,null,null,null,null," ",null,null,0,0,0,0,"",""]
[null,null,null,null,null," ",null,null,0,0,0,0,"",""]
[null,null,null,null,null," ",null,null,0,0,0,0,"",""]
[null,null,null,null,null," ",null,null,0,0,0,0,"",""]
[null,null,null,null,null," ",null,null,0,0,0,0,"",""]
[null,null,null,null,null," ",null,null,0,0,0,0,"",""]
[null,null,null,null,null," ",null,null,0,0,0,0,"",""]
[null,null,null,null,null," ",null,null,0,0,0,0,"",""]
[null,null,null,null,null," ",null,null,0,0,0,0,"",""]
[null,null,null,null,null," ",null,null,0,0,0,0,"",""]
[null,null,null,null,null," ",null,null,0,0,0,0,"",""]
[null,null,null,null,null," ",null,null,0,0,0,0,"",""]
[null,null,null,null,null," ",null,null,0,0,0,0,"",""]
[null,null,null,null,null," ",null,null,0,0,0,0,"",""]
[null,null,null,null,null," ",null,null,0,0,0,0,"",""]
[null,null,null,null,null," ",null,null,0,0,0,0,"",""]
[null,null,null,null,null," ",null,null,0,0,0,0,"",""]
[null,null,null,null,null," ",null,null,0,0,0,0,"",""]
[null,null,null,null,null," ",null,null,0,0,0,0,"",""]
[null,null,null,null,null," ",null,null,0,0,0,0,"",""]
[null,null,null,null,null," ",null,null,0,0,0,0,"",""]
[null,null,null,null,null," ",null,null,0,0,0,0,"",""]
[null,null,null,null,null," ",null,null,0,0,0,0,"",""]
[null,null,null,null,null," ",null,null,0,0,0,0,"",""]
[null,null,null,null,null," ",null,null,0,0,0,0,"",""]
[null,null,null,null,null," ",null,null,0,0,0,0,"",""]
[null,null,null,null,null," ",null,null,0,0,0,0,"",""]
[null,null,null,null,null," ",null,null,0,0,0,0,"",""]
[null,null,null,null,null," ",null,null,0,0,0,0,"",""]
[null,null,null,null,null," ",null,null,0,0,0,0,"",""]
[null,null,null,null,null," ",null,null,0,0,0,0,"",""]
[null,null,null,null,null," ",null,null,0,0,0,0,"",""]
[null,null,null,null,null," ",null,null,0,0,0,0,"",""]
[null,null,null,null,null," ",null,null,0,0,0,0,"",""]
[null,null,null,null,null," ",null,null,0,0,0,0,"",""]
[null,null,null,null,null," ",null,null,0,0,0,0,"",""]
[null,null,null,null,null,{"$f":"IF(D4303-E4303=0,\" \",F4302+D4303-E4303)","v":" "},null,null,0,0,0,0,"",""]
[null,null,null,null,null," ",null,null,0,0,0,0,"",""]
[null,null,null,null,null," ",null,null,0,0,0,0,"",""]
[null,null,null,null,null," ",null,null,0,0,0,0,"",""]
[null,null,null,null,null," ",null,null,0,0,0,0,"",""]
[null,null,null,null,null," ",null,null,0,0,0,0,"",""]
[null,null,null,null,null," ",null,null,0,0,0,0,"",""]
[null,null,null,null,null," ",null,null,0,0,0,0,"",""]
[null,null,null,null,null," ",null,null,0,0,0,0,"",""]
[null,null,null,null,null," ",null,null,0,0,0,0,"",""]
[null,null,null,null,null," ",null,null,0,0,0,0,"",""]
[null,null,null,null,null," ",null,null,0,0,0,0,"",""]
[null,null,null,null,null," ",null,null,0,0,0,0,"",""]
[null,null,null,null,null," ",null,null,0,0,0,0,"",""]
[null,null,null,null,null," ",null,null,0,0,0,0,"",""]
[null,null,null,null,null," ",null,null,0,0,0,0,"",""]
[null,null,null,null,null," ",null,null,0,0,0,0,"",""]
[null,null,null,null,null," ",null,null,0,0,0,0,{"$f":"IF(A4368=0,\"\",YEAR(A4368))","v":""},{"$f":"IF(A4368=0,\"\",MONTH(A4368))","v":""}]
[null,null,null,null,null," ",null,null,0,0,0,0,"",""]
[null,null,null,null,null," ",null,null,0,0,0,0,"",""]
[null,null,null,null,null," ",null,null,0,0,0,0,"",""]
[null,null,null,null,null," ",null,null,0,0,0,0,"",""]
[null,null,null,null,null," ",null,null,0,0,0,0,"",""]
[null,null,null,null,null," ",null,null,0,0,0,0,"",""]
[null,null,null,null,null," ",null,null,0,0,0,0,"",""]
[null,null,null,null,null," ",null,null,0,0,0,0,"",""]
[null,null,null,null,null," ",null,null,0,0,0,0,"",""]
[null,null,null,null,null," ",null,null,0,0,0,0,"",""]
[null,null,null,null,null," ",null,null,0,0,0,0,"",""]
[null,null,null,null,null," ",null,null,0,0,0,0,"",""]
[null,null,null,null,null," ",null,null,0,0,0,0,"",""]
[null,null,null,null,null," ",null,null,0,0,0,0,"",""]
[null,null,null,null,null," ",null,null,{"$f":"IF(H4423=0,0,D4423)","v":0},{"$f":"IF(H4423<>\"p\",0,D4423)","v":0},{"$f":"IF(H4423=0,0,E4423)","v":0},{"$f":"IF(H4423<>\"p\",0,E4423)","v":0},"",""]
[null,null,null,null,null," ",null,null,0,0,0,0,"",""]
[null,null,null,null,null,{"$f":"IF(D4431-E4431=0,\" \",F4430+D4431-E4431)","v":" "},null,null,0,0,0,0,"",""]
[null,null,null,null,null," ",null,null,0,0,0,0,"",""]
[null,null,null,null,null," ",null,null,0,0,0,0,"",""]
[null,null,null,null,null," ",null,null,0,0,0,0,"",""]
[null,null,null,null,null," ",null,null,0,0,0,0,"",""]
[null,null,null,null,null," ",null,null,0,0,0,0,"",""]
[null,null,null,null,null," ",null,null,0,0,0,0,"",""]
[null,null,null,null,null," ",null,null,0,0,0,0,"",""]
[null,null,null,null,null," ",null,null,0,0,0,0,"",""]
[null,null,null,null,null," ",null,null,0,0,0,0,"",""]
[null,null,null,null,null," ",null,null,0,0,0,0,"",""]
[null,null,null,null,null," ",null,null,0,0,0,0,"",""]
[null,null,null,null,null," ",null,null,0,0,0,0,"",""]
[null,null,null,null,null," ",null,null,0,0,0,0,"",""]
[null,null,null,null,null," ",null,null,0,0,0,0,"",""]
[null,null,null,null,null," ",null,null,0,0,0,0,"",""]
[null,null,null,null,null," ",null,null,0,0,0,0,"",""]
[null,null,null,null,null," ",null,null,0,0,0,0,"",""]
[null,null,null,null,null," ",null,null,0,0,0,0,"",""]
[null,null,null,null,null," ",null,null,0,0,0,0,"",""]
[null,null,null,null,null," ",null,null,0,0,0,0,"",""]
[null,null,null,null,null," ",null,null,0,0,0,0,"",""]
[null,null,null,null,null," ",null,null,0,0,0,0,"",""]
[null,null,null,null,null," ",null,null,0,0,0,0,"",""]
[null,null,null,null,null," ",null,null,0,0,0,0,"",""]
[null,null,null,null,null," ",null,null,0,0,0,0,"",""]
[null,null,null,null,null," ",null,null,0,0,0,0,"",""]
[null,null,null,null,null," ",null,null,0,0,0,0,"",""]
[null,null,null,null,null," ",null,null,0,0,0,0,"",""]
[null,null,null,null,null," ",null,null,0,0,0,0,"",""]
[null,null,null,null,null," ",null,null,0,0,0,0,"",""]
[null,null,null,null,null," ",null,null,0,0,0,0,"",""]
[null,null,null,null,null," ",null,null,0,0,0,0,"",""]
[null,null,null,null,null," ",null,null,0,0,0,0,"",""]
[null,null,null,null,null," ",null,null,0,0,0,0,"",""]
[null,null,null,null,null," ",null,null,0,0,0,0,"",""]
[null,null,null,null,null," ",null,null,0,0,0,0,"",""]
[null,null,null,null,null," ",null,null,0,0,0,0,"",""]
[null,null,null,null,null," ",null,null,0,0,0,0,"",""]
[null,null,null,null,null," ",null,null,0,0,0,0,"",""]
[null,null,null,null,null," ",null,null,0,0,0,0,"",""]
[null,null,null,null,null," ",null,null,0,0,0,0,"",""]
[null,null,null,null,null," ",null,null,0,0,0,0,"",""]
[null,null,null,null,null," ",null,null,0,0,0,0,"",""]
[null,null,null,null,null," ",null,null,0,0,0,0,"",""]
[null,null,null,null,null," ",null,null,0,0,0,0,"",""]
[null,null,null,null,null," ",null,null,0,0,0,0,"",""]
[null,null,null,null,null," ",null,null,0,0,0,0,"",""]
[null,null,null,null,null," ",null,null,0,0,0,0,"",""]
[null,null,null,null,null," ",null,null,{"$f":"IF(H4615=0,0,D4615)","v":0},{"$f":"IF(H4615<>\"p\",0,D4615)","v":0},{"$f":"IF(H4615=0,0,E4615)","v":0},{"$f":"IF(H4615<>\"p\",0,E4615)","v":0},"",""]
[null,null,null,null,null," ",null,null,0,0,0,0,"",""]
[null,null,null,null,null,{"$f":"IF(D4623-E4623=0,\" \",F4622+D4623-E4623)","v":" "},null,null,0,0,0,0,"",""]
[null,null,null,null,null," ",null,null,0,0,0,0,{"$f":"IF(A4624=0,\"\",YEAR(A4624))","v":""},{"$f":"IF(A4624=0,\"\",MONTH(A4624))","v":""}]
[null,null,null,null,null," ",null,null,0,0,0,0,"",""]
[null,null,null,null,null," ",null,null,0,0,0,0,"",""]
[null,null,null,null,null," ",null,null,0,0,0,0,"",""]
[null,null,null,null,null," ",null,null,0,0,0,0,"",""]
[null,null,null,null,null," ",null,null,0,0,0,0,"",""]
[null,null,null,null,null," ",null,null,0,0,0,0,"",""]
[null,null,null,null,null," ",null,null,0,0,0,0,"",""]
[null,null,null,null,null," ",null,null,0,0,0,0,"",""]
[null,null,null,null,null," ",null,null,0,0,0,0,"",""]
[null,null,null,null,null," ",null,null,0,0,0,0,"",""]
[null,null,null,null,null," ",null,null,0,0,0,0,"",""]
[null,null,null,null,null," ",null,null,0,0,0,0,"",""]
[null,null,null,null,null," ",null,null,0,0,0,0,"",""]
[null,null,null,null,null," ",null,null,0,0,0,0,"",""]
[null,null,null,null,null," ",null,null,0,0,0,0,"",""]
[null,null,null,null,null," ",null,null,0,0,0,0,"",""]
[null,null,null,null,null," ",null,null,0,0,0,0,"",""]
[null,null,null,null,null," ",null,null,0,0,0,0,"",""]
[null,null,null,null,null," ",null,null,0,0,0,0,"",""]
[null,null,null,null,null," ",null,null,0,0,0,0,"",""]
[null,null,null,null,null," ",null,null,0,0,0,0,"",""]
[null,null,null,null,null," ",null,null,0,0,0,0,"",""]
[null,null,null,null,null," ",null,null,0,0,0,0,"",""]
[null,null,null,null,null," ",null,null,0,0,0,0,"",""]
[null,null,null,null,null," ",null,null,0,0,0,0,"",""]
[null,null,null,null,null," ",null,null,0,0,0,0,"",""]
[null,null,null,null,null," ",null,null,0,0,0,0,"",""]
[null,null,null,null,null," ",null,null,0,0,0,0,"",""]
[null,null,null,null,null," ",null,null,0,0,0,0,"",""]
[null,null,null,null,null," ",null,null,0,0,0,0,"",""]
[null,null,null,null,null," ",null,null,{"$f":"IF(H4743=0,0,D4743)","v":0},{"$f":"IF(H4743<>\"p\",0,D4743)","v":0},{"$f":"IF(H4743=0,0,E4743)","v":0},{"$f":"IF(H4743<>\"p\",0,E4743)","v":0},"",""]
[null,null,null,null,null," ",null,null,0,0,0,0,"",""]
[null,null,null,null,null," ",null,null,0,0,0,0,"",""]
[null,null,null,null,null," ",null,null,0,0,0,0,"",""]
[null,null,null,null,null," ",null,null,0,0,0,0,"",""]
[null,null,null,null,null," ",null,null,0,0,0,0,"",""]
[null,null,null,null,null," ",null,null,0,0,0,0,"",""]
[null,null,null,null,null," ",null,null,0,0,0,0,"",""]
[null,null,null,null,null," ",null,null,0,0,0,0,"",""]
[null,null,null,null,null," ",null,null,0,0,0,0,"",""]
[null,null,null,null,null," ",null,null,0,0,0,0,"",""]
[null,null,null,null,null," ",null,null,0,0,0,0,"",""]
[null,null,null,null,null," ",null,null,0,0,0,0,"",""]
[null,null,null,null,null," ",null,null,0,0,0,0,"",""]
[null,null,null,null,null," ",null,null,0,0,0,0,"",""]
[null,null,null,null,null," ",null,null,0,0,0,0,"",""]
[null,null,null,null,null," ",null,null,0,0,0,0,"",""]
[null,null,null,null,null," ",null,null,0,0,0,0,"",""]
[null,null,null,null,null," ",null,null,0,0,0,0,"",""]
[null,null,null,null,null," ",null,null,0,0,0,0,"",""]
[null,null,null,null,null," ",null,null,0,0,0,0,"",""]
[null,null,null,null,null," ",null,null,0,0,0,0,"",""]
[null,null,null,null,null," ",null,null,0,0,0,0,"",""]
[null,null,null,null,null," ",null,null,0,0,0,0,"",""]
[null,null,null,null,null," ",null,null,0,0,0,0,"",""]
[null,null,null,null,null," ",null,null,0,0,0,0,"",""]
[null,null,null,null,null," ",null,null,0,0,0,0,"",""]
[null,null,null,null,null," ",null,null,0,0,0,0,"",""]
[null,null,null,null,null," ",null,null,0,0,0,0,"",""]
[null,null,null,null,null," ",null,null,0,0,0,0,"",""]
[null,null,null,null,null," ",null,null,0,0,0,0,"",""]
[null,null,null,null,null," ",null,null,0,0,0,0,"",""]
[null,null,null,null,null," ",null,null,0,0,0,0,"",""]
[null,null,null,null,null," ",null,null,0,0,0,0,"",""]
[null,null,null,null,null," ",null,null,0,0,0,0,"",""]
[null,null,null,null,null," ",null,null,0,0,0,0,"",""]
[null,null,null,null,null," ",null,null,0,0,0,0,"",""]
[null,null,null,null,null,{"$f":"IF(D4879-E4879=0,\" \",F4878+D4879-E4879)","v":" "},null,null,0,0,0,0,"",""]
[null,null,null,null,null," ",null,null,0,0,0,0,"",""]
[null,null,null,null,null," ",null,null,0,0,0,0,"",""]
[null,null,null,null,null," ",null,null,0,0,0,0,"",""]
[null,null,null,null,null," ",null,null,0,0,0,0,"",""]
[null,null,null,null,null," ",null,null,0,0,0,0,"",""]
[null,null,null,null,null," ",null,null,0,0,0,0,"",""]
[null,null,null,null,null," ",null,null,0,0,0,0,"",""]
[null,null,null,null,null," ",null,null,0,0,0,0,"",""]
[null,null,null,null,null," ",null,null,0,0,0,0,"",""]
[null,null,null,null,null," ",null,null,0,0,0,0,"",""]
[null,null,null,null,null," ",null,null,0,0,0,0,"",""]
[null,null,null,null,null," ",null,null,0,0,0,0,"",""]
[null,null,null,null,null," ",null,null,0,0,0,0,"",""]
[null,null,null,null,null," ",null,null,0,0,0,0,"",""]
[null,null,null,null,null," ",null,null,0,0,0,0,"",""]
[null,null,null,null,null," ",null,null,0,0,0,0,"",""]
[null,null,null,null,null," ",null,null,0,0,0,0,{"$f":"IF(A4944=0,\"\",YEAR(A4944))","v":""},{"$f":"IF(A4944=0,\"\",MONTH(A4944))","v":""}]
[null,null,null,null,null," ",null,null,0,0,0,0,"",""]
[null,null,null,null,null," ",null,null,0,0,0,0,"",""]
[null,null,null,null,null," ",null,null,0,0,0,0,"",""]
[null,null,null,null,null," ",null,null,0,0,0,0,"",""]
[null,null,null,null,null," ",null,null,0,0,0,0,"",""]
[null,null,null,null,null," ",null,null,0,0,0,0,"",""]
[null,null,null,null,null," ",null,null,0,0,0,0,"",""]
[null,null,null,null,null," ",null,null,0,0,0,0,"",""]
[null,null,null,null,null," ",null,null,0,0,0,0,"",""]
[null,null,null,null,null," ",null,null,0,0,0,0,"",""]
[null,null,null,null,null," ",null,null,0,0,0,0,"",""]
[null,null,null,null,null," ",null,null,0,0,0,0,"",""]
[null,null,null,null,null," ",null,null,0,0,0,0,"",""]
[null,null,null,null,null," ",null,null,0,0,0,0,"",""]
[null,null,null,null,null," ",null,null,{"$f":"IF(H4999=0,0,D4999)","v":0},{"$f":"IF(H4999<>\"p\",0,D4999)","v":0},{"$f":"IF(H4999=0,0,E4999)","v":0},{"$f":"IF(H4999<>\"p\",0,E4999)","v":0},"",""]
[null,null,null,null,null," ",null,null,0,0,0,0,"",""]
[null,null,null,null,null,{"$f":"IF(D5007-E5007=0,\" \",F5006+D5007-E5007)","v":" "},null,null,0,0,0,0,"",""]
[null,null,null,null,null," ",null,null,0,0,0,0,"",""]
[null,null,null,null,null," ",null,null,0,0,0,0,"",""]
[null,null,null,null,null," ",null,null,0,0,0,0,"",""]
[null,null,null,null,null," ",null,null,0,0,0,0,"",""]
[null,null,null,null,null," ",null,null,0,0,0,0,"",""]
[null,null,null,null,null," ",null,null,0,0,0,0,"",""]
[null,null,null,null,null," ",null,null,0,0,0,0,"",""]
[null,null,null,null,null," ",null,null,0,0,0,0,"",""]
[null,null,null,null,null," ",null,null,0,0,0,0,"",""]
[null,null,null,null,null," ",null,null,0,0,0,0,"",""]
[null,null,null,null,null," ",null,null,0,0,0,0,"",""]
[null,null,null,null,null," ",null,null,0,0,0,0,"",""]
[null,null,null,null,null," ",null,null,0,0,0,0,"",""]
[null,null,null,null,null," ",null,null,0,0,0,0,"",""]
[null,null,null,null,null," ",null,null,0,0,0,0,"",""]
[null,null,null,null,null," ",null,null,0,0,0,0,"",""]
[null,null,null,null,null," ",null,null,0,0,0,0,"",""]
[null,null,null,null,null," ",null,null,0,0,0,0,"",""]
[null,null,null,null,null," ",null,null,0,0,0,0,"",""]
[null,null,null,null,null," ",null,null,0,0,0,0,"",""]
[null,null,null,null,null," ",null,null,0,0,0,0,"",""]
[null,null,null,null,null," ",null,null,0,0,0,0,"",""]
[null,null,null,null,null," ",null,null,0,0,0,0,"",""]
[null,null,null,null,null," ",null,null,0,0,0,0,"",""]
[null,null,null,null,null," ",null,null,0,0,0,0,"",""]
[null,null,null,null,null," ",null,null,0,0,0,0,"",""]
[null,null,null,null,null," ",null,null,0,0,0,0,"",""]
[null,null,null,null,null," ",null,null,0,0,0,0,"",""]
[null,null,null,null,null," ",null,null,0,0,0,0,"",""]
[null,null,null,null,null," ",null,null,0,0,0,0,"",""]
[null,null,null,null,null," ",null,null,0,0,0,0,"",""]
[null,null,null,null,null," ",null,null,0,0,0,0,"",""]
[null,null,null,null,null," ",null,null,0,0,0,0,"",""]
[null,null,null,null,null," ",null,null,0,0,0,0,"",""]
[null,null,null,null,null," ",null,null,0,0,0,0,"",""]
[null,null,null,null,null," ",null,null,0,0,0,0,"",""]
[null,null,null,null,null," ",null,null,0,0,0,0,"",""]
[null,null,null,null,null," ",null,null,0,0,0,0,"",""]
[null,null,null,null,null," ",null,null,0,0,0,0,"",""]
[null,null,null,null,null," ",null,null,0,0,0,0,"",""]
[null,null,null,null,null," ",null,null,0,0,0,0,"",""]
[null,null,null,null,null," ",null,null,0,0,0,0,"",""]
[null,null,null,null,null," ",null,null,0,0,0,0,"",""]
[null,null,null,null,null," ",null,null,0,0,0,0,"",""]
[null,null,null,null,null," ",null,null,0,0,0,0,"",""]
[null,null,null,null,null," ",null,null,0,0,0,0,"",""]
[null,null,null,null,null," ",null,null,0,0,0,0,"",""]
[null,null,null,null,null," ",null,null,0,0,0,0,"",""]
[null,null,null,null,null," ",null,null,0,0,0,0,"",""]
[null,null,null,null,null," ",null,null,0,0,0,0,"",""]
[null,null,null,null,null,{"$f":"IF(D5199-E5199=0,\" \",F5198+D5199-E5199)","v":" "},null,null,0,0,0,0,"",""]
[null,null,null,null,null," ",null,null,0,0,0,0,"",""]
[null,null,null,null,null," ",null,null,0,0,0,0,"",""]
[null,null,null,null,null," ",null,null,0,0,0,0,"",""]
[null,null,null,null,null," ",null,null,0,0,0,0,"",""]
[null,null,null,null,null," ",null,null,0,0,0,0,"",""]
[null,null,null,null,null," ",null,null,0,0,0,0,"",""]
[null,null,null,null,null," ",null,null,0,0,0,0,"",""]
[null,null,null,null,null," ",null,null,0,0,0,0,"",""]
[null,null,null,null,null," ",null,null,0,0,0,0,"",""]
[null,null,null,null,null," ",null,null,0,0,0,0,"",""]
[null,null,null,null,null," ",null,null,0,0,0,0,"",""]
[null,null,null,null,null," ",null,null,0,0,0,0,"",""]
[null,null,null,null,null," ",null,null,0,0,0,0,"",""]
[null,null,null,null,null," ",null,null,0,0,0,0,"",""]
[null,null,null,null,null," ",null,null,0,0,0,0,"",""]
[null,null,null,null,null," ",null,null,0,0,0,0,"",""]
[null,null,null,null,null," ",null,null,0,0,0,0,{"$f":"IF(A5264=0,\"\",YEAR(A5264))","v":""},{"$f":"IF(A5264=0,\"\",MONTH(A5264))","v":""}]
[null,null,null,null,null," ",null,null,0,0,0,0,"",""]
[null,null,null,null,null," ",null,null,0,0,0,0,"",""]
[null,null,null,null,null," ",null,null,0,0,0,0,"",""]
[null,null,null,null,null," ",null,null,0,0,0,0,"",""]
[null,null,null,null,null," ",null,null,0,0,0,0,"",""]
[null,null,null,null,null," ",null,null,0,0,0,0,"",""]
[null,null,null,null,null," ",null,null,0,0,0,0,"",""]
[null,null,null,null,null," ",null,null,0,0,0,0,"",""]
[null,null,null,null,null," ",null,null,0,0,0,0,"",""]
[null,null,null,null,null," ",null,null,0,0,0,0,"",""]
[null,null,null,null,null," ",null,null,0,0,0,0,"",""]
[null,null,null,null,null," ",null,null,0,0,0,0,"",""]
[null,null,null,null,null," ",null,null,0,0,0,0,"",""]
[null,null,null,null,null," ",null,null,0,0,0,0,"",""]
[null,null,null,null,null," ",null,null,{"$f":"IF(H5319=0,0,D5319)","v":0},{"$f":"IF(H5319<>\"p\",0,D5319)","v":0},{"$f":"IF(H5319=0,0,E5319)","v":0},{"$f":"IF(H5319<>\"p\",0,E5319)","v":0},"",""]
[null,null,null,null,null," ",null,null,0,0,0,0,"",""]
[null,null,null,null,null," ",null,null,0,0,0,0,"",""]
[null,null,null,null,null," ",null,null,0,0,0,0,"",""]
[null,null,null,null,null," ",null,null,0,0,0,0,"",""]
[null,null,null,null,null," ",null,null,0,0,0,0,"",""]
[null,null,null,null,null," ",null,null,0,0,0,0,"",""]
[null,null,null,null,null," ",null,null,0,0,0,0,"",""]
[null,null,null,null,null," ",null,null,0,0,0,0,"",""]
[null,null,null,null,null," ",null,null,0,0,0,0,"",""]
[null,null,null,null,null," ",null,null,0,0,0,0,"",""]
[null,null,null,null,null," ",null,null,0,0,0,0,"",""]
[null,null,null,null,null," ",null,null,0,0,0,0,"",""]
[null,null,null,null,null," ",null,null,0,0,0,0,"",""]
[null,null,null,null,null," ",null,null,0,0,0,0,"",""]
[null,null,null,null,null," ",null,null,0,0,0,0,"",""]
[null,null,null,null,null," ",null,null,0,0,0,0,"",""]
[null,null,null,null,null," ",null,null,0,0,0,0,"",""]
[null,null,null,null,null," ",null,null,0,0,0,0,"",""]
[null,null,null,null,null," ",null,null,0,0,0,0,"",""]
[null,null,null,null,null," ",null,null,0,0,0,0,"",""]
[null,null,null,null,null," ",null,null,0,0,0,0,"",""]
[null,null,null,null,null," ",null,null,0,0,0,0,"",""]
[null,null,null,null,null," ",null,null,0,0,0,0,"",""]
[null,null,null,null,null," ",null,null,0,0,0,0,"",""]
[null,null,null,null,null," ",null,null,0,0,0,0,"",""]
[null,null,null,null,null," ",null,null,0,0,0,0,"",""]
[null,null,null,null,null," ",null,null,0,0,0,0,"",""]
[null,null,null,null,null," ",null,null,0,0,0,0,"",""]
[null,null,null,null,null," ",null,null,0,0,0,0,"",""]
[null,null,null,null,null," ",null,null,0,0,0,0,"",""]
[null,null,null,null,null," ",null,null,0,0,0,0,"",""]
[null,null,null,null,null," ",null,null,0,0,0,0,"",""]
[null,null,null,null,null," ",null,null,0,0,0,0,"",""]
[null,null,null,null,null," ",null,null,0,0,0,0,"",""]
[null,null,null,null,null," ",null,null,0,0,0,0,"",""]
[null,null,null,null,null," ",null,null,0,0,0,0,"",""]
[null,null,null,null,null," ",null,null,0,0,0,0,"",""]
[null,null,null,null,null," ",null,null,0,0,0,0,"",""]
[null,null,null,null,null," ",null,null,0,0,0,0,"",""]
[null,null,null,null,null," ",null,null,0,0,0,0,"",""]
[null,null,null,null,null," ",null,null,0,0,0,0,"",""]
[null,null,null,null,null," ",null,null,0,0,0,0,"",""]
[null,null,null,null,null," ",null,null,0,0,0,0,"",""]
[null,null,null,null,null," ",null,null,0,0,0,0,"",""]
[null,null,null,null,null," ",null,null,0,0,0,0,"",""]
[null,null,null,null,null," ",null,null,0,0,0,0,"",""]
[null,null,null,null,null," ",null,null,0,0,0,0,"",""]
[null,null,null,null,null," ",null,null,0,0,0,0,"",""]
[null,null,null,null,null," ",null,null,0,0,0,0,"",""]
[null,null,null,null,null," ",null,null,0,0,0,0,"",""]
[null,null,null,null,null," ",null,null,{"$f":"IF(H5511=0,0,D5511)","v":0},{"$f":"IF(H5511<>\"p\",0,D5511)","v":0},{"$f":"IF(H5511=0,0,E5511)","v":0},{"$f":"IF(H5511<>\"p\",0,E5511)","v":0},"",""]
[null,null,null,null,null," ",null,null,0,0,0,0,"",""]
[null,null,null,null,null,{"$f":"IF(D5519-E5519=0,\" \",F5518+D5519-E5519)","v":" "},null,null,0,0,0,0,"",""]
[null,null,null,null,null," ",null,null,0,0,0,0,"",""]
[null,null,null,null,null," ",null,null,0,0,0,0,"",""]
[null,null,null,null,null," ",null,null,0,0,0,0,"",""]
[null,null,null,null,null," ",null,null,0,0,0,0,"",""]
[null,null,null,null,null," ",null,null,0,0,0,0,"",""]
[null,null,null,null,null," ",null,null,0,0,0,0,"",""]
[null,null,null,null,null," ",null,null,0,0,0,0,"",""]
[null,null,null,null,null," ",null,null,0,0,0,0,"",""]
[null,null,null,null,null," ",null,null,0,0,0,0,"",""]
[null,null,null,null,null," ",null,null,0,0,0,0,"",""]
[null,null,null,null,null," ",null,null,0,0,0,0,"",""]
[null,null,null,null,null," ",null,null,0,0,0,0,"",""]
[null,null,null,null,null," ",null,null,0,0,0,0,"",""]
[null,null,null,null,null," ",null,null,0,0,0,0,"",""]
[null,null,null,null,null," ",null,null,0,0,0,0,"",""]
[null,null,null,null,null," ",null,null,0,0,0,0,"",""]
[null,null,null,null,null," ",null,null,0,0,0,0,{"$f":"IF(A5584=0,\"\",YEAR(A5584))","v":""},{"$f":"IF(A5584=0,\"\",MONTH(A5584))","v":""}]
[null,null,null,null,null," ",null,null,0,0,0,0,"",""]
[null,null,null,null,null," ",null,null,0,0,0,0,"",""]
[null,null,null,null,null," ",null,null,0,0,0,0,"",""]
[null,null,null,null,null," ",null,null,0,0,0,0,"",""]
[null,null,null,null,null," ",null,null,0,0,0,0,"",""]
[null,null,null,null,null," ",null,null,0,0,0,0,"",""]
[null,null,null,null,null," ",null,null,0,0,0,0,"",""]
[null,null,null,null,null," ",null,null,0,0,0,0,"",""]
[null,null,null,null,null," ",null,null,0,0,0,0,"",""]
[null,null,null,null,null," ",null,null,0,0,0,0,"",""]
[null,null,null,null,null," ",null,null,0,0,0,0,"",""]
[null,null,null,null,null," ",null,null,0,0,0,0,"",""]
[null,null,null,null,null," ",null,null,0,0,0,0,"",""]
[null,null,null,null,null," ",null,null,0,0,0,0,"",""]
[null,null,null,null,null," ",null,null,{"$f":"IF(H5639=0,0,D5639)","v":0},{"$f":"IF(H5639<>\"p\",0,D5639)","v":0},{"$f":"IF(H5639=0,0,E5639)","v":0},{"$f":"IF(H5639<>\"p\",0,E5639)","v":0},"",""]
[null,null,null,null,null," ",null,null,0,0,0,0,"",""]
[null,null,null,null,null,{"$f":"IF(D5647-E5647=0,\" \",F5646+D5647-E5647)","v":" "},null,null,0,0,0,0,"",""]
[null,null,null,null,null," ",null,null,0,0,0,0,"",""]
[null,null,null,null,null," ",null,null,0,0,0,0,"",""]
[null,null,null,null,null," ",null,null,0,0,0,0,"",""]
[null,null,null,null,null," ",null,null,0,0,0,0,"",""]
[null,null,null,null,null," ",null,null,0,0,0,0,"",""]
[null,null,null,null,null," ",null,null,0,0,0,0,"",""]
[null,null,null,null,null," ",null,null,0,0,0,0,"",""]
[null,null,null,null,null," ",null,null,0,0,0,0,"",""]
[null,null,null,null,null," ",null,null,0,0,0,0,"",""]
[null,null,null,null,null," ",null,null,0,0,0,0,"",""]
[null,null,null,null,null," ",null,null,0,0,0,0,"",""]
[null,null,null,null,null," ",null,null,0,0,0,0,"",""]
[null,null,null,null,null," ",null,null,0,0,0,0,"",""]
[null,null,null,null,null," ",null,null,0,0,0,0,"",""]
[null,null,null,null,null," ",null,null,0,0,0,0,"",""]
[null,null,null,null,null," ",null,null,0,0,0,0,"",""]
[null,null,null,null,null," ",null,null,0,0,0,0,"",""]
[null,null,null,null,null," ",null,null,0,0,0,0,"",""]
[null,null,null,null,null," ",null,null,0,0,0,0,"",""]
[null,null,null,null,null," ",null,null,0,0,0,0,"",""]
[null,null,null,null,null," ",null,null,0,0,0,0,"",""]
[null,null,null,null,null," ",null,null,0,0,0,0,"",""]
[null,null,null,null,null," ",null,null,0,0,0,0,"",""]
[null,null,null,null,null," ",null,null,0,0,0,0,"",""]
[null,null,null,null,null," ",null,null,0,0,0,0,"",""]
[null,null,null,null,null," ",null,null,0,0,0,0,"",""]
[null,null,null,null,null," ",null,null,0,0,0,0,"",""]
[null,null,null,null,null," ",null,null,0,0,0,0,"",""]
[null,null,null,null,null," ",null,null,0,0,0,0,"",""]
[null,null,null,null,null," ",null,null,0,0,0,0,"",""]
[null,null,null,null,null," ",null,null,0,0,0,0,"",""]
[null,null,null,null,null," ",null,null,0,0,0,0,"",""]
[null,null,null,null,null," ",null,null,0,0,0,0,"",""]
[null,null,null,null,null," ",null,null,0,0,0,0,"",""]
[null,null,null,null,null," ",null,null,0,0,0,0,"",""]
[null,null,null,null,null," ",null,null,0,0,0,0,"",""]
[null,null,null,null,null," ",null,null,0,0,0,0,"",""]
[null,null,null,null,null," ",null,null,0,0,0,0,"",""]
[null,null,null,null,null," ",null,null,0,0,0,0,"",""]
[null,null,null,null,null," ",null,null,0,0,0,0,"",""]
[null,null,null,null,null," ",null,null,0,0,0,0,"",""]
[null,null,null,null,null," ",null,null,0,0,0,0,"",""]
[null,null,null,null,null," ",null,null,0,0,0,0,"",""]
[null,null,null,null,null," ",null,null,0,0,0,0,"",""]
[null,null,null,null,null," ",null,null,0,0,0,0,"",""]
[null,null,null,null,null," ",null,null,0,0,0,0,"",""]
[null,null,null,null,null," ",null,null,0,0,0,0,"",""]
[null,null,null,null,null," ",null,null,0,0,0,0,"",""]
[null,null,null,null,null," ",null,null,0,0,0,0,"",""]
[null,null,null,null,null," ",null,null,0,0,0,0,"",""]
[null,null,null,null,null,{"$f":"IF(D5839-E5839=0,\" \",F5838+D5839-E5839)","v":" "},null,null,0,0,0,0,"",""]
[null,null,null,null,null," ",null,null,0,0,0,0,{"$f":"IF(A5840=0,\"\",YEAR(A5840))","v":""},{"$f":"IF(A5840=0,\"\",MONTH(A5840))","v":""}]
[null,null,null,null,null," ",null,null,0,0,0,0,"",""]
[null,null,null,null,null," ",null,null,0,0,0,0,"",""]
[null,null,null,null,null," ",null,null,0,0,0,0,"",""]
[null,null,null,null,null," ",null,null,0,0,0,0,"",""]
[null,null,null,null,null," ",null,null,0,0,0,0,"",""]
[null,null,null,null,null," ",null,null,0,0,0,0,"",""]
[null,null,null,null,null," ",null,null,0,0,0,0,"",""]
[null,null,null,null,null," ",null,null,0,0,0,0,"",""]
[null,null,null,null,null," ",null,null,0,0,0,0,"",""]
[null,null,null,null,null," ",null,null,0,0,0,0,"",""]
[null,null,null,null,null," ",null,null,0,0,0,0,"",""]
[null,null,null,null,null," ",null,null,0,0,0,0,"",""]
[null,null,null,null,null," ",null,null,0,0,0,0,"",""]
[null,null,null,null,null," ",null,null,0,0,0,0,"",""]
[null,null,null,null,null," ",null,null,0,0,0,0,"",""]
[null,null,null,null,null," ",null,null,0,0,0,0,"",""]
[null,null,null,null,null," ",null,null,0,0,0,0,"",""]
[null,null,null,null,null," ",null,null,0,0,0,0,"",""]
[null,null,null,null,null," ",null,null,0,0,0,0,"",""]
[null,null,null,null,null," ",null,null,0,0,0,0,"",""]
[null,null,null,null,null," ",null,null,0,0,0,0,"",""]
[null,null,null,null,null," ",null,null,0,0,0,0,"",""]
[null,null,null,null,null," ",null,null,0,0,0,0,"",""]
[null,null,null,null,null," ",null,null,0,0,0,0,"",""]
[null,null,null,null,null," ",null,null,0,0,0,0,"",""]
[null,null,null,null,null," ",null,null,0,0,0,0,"",""]
[null,null,null,null,null," ",null,null,0,0,0,0,"",""]
[null,null,null,null,null," ",null,null,0,0,0,0,"",""]
[null,null,null,null,null," ",null,null,0,0,0,0,"",""]
[null,null,null,null,null," ",null,null,0,0,0,0,"",""]
[null,null,null,null,null," ",null,null,{"$f":"IF(H5959=0,0,D5959)","v":0},{"$f":"IF(H5959<>\"p\",0,D5959)","v":0},{"$f":"IF(H5959=0,0,E5959)","v":0},{"$f":"IF(H5959<>\"p\",0,E5959)","v":0},"",""]
[null,null,null,null,null," ",null,null,0,0,0,0,"",""]
[null,null,null,null,null," ",null,null,0,0,0,0,"",""]
[null,null,null,null,null," ",null,null,0,0,0,0,"",""]
[null,null,null,null,null," ",null,null,0,0,0,0,"",""]
[null,null,null,null,null," ",null,null,0,0,0,0,"",""]
[null,null,null,null,null," ",null,null,0,0,0,0,"",""]
[null,null,null,null,null," ",null,null,0,0,0,0,"",""]
[null,null,null,null,null," ",null,null,0,0,0,0,"",""]
[null,null,null,null,null," ",null,null,0,0,0,0,"",""]
[null,null,null,null,null," ",null,null,0,0,0,0,"",""]
[null,null,null,null,null," ",null,null,0,0,0,0,"",""]
[null,null,null,null,null," ",null,null,0,0,0,0,"",""]
[null,null,null,null,null," ",null,null,0,0,0,0,"",""]
[null,null,null,null,null," ",null,null,0,0,0,0,"",""]
[null,null,null,null,null," ",null,null,0,0,0,0,"",""]
[null,null,null,null,null," ",null,null,0,0,0,0,"",""]
[null,null,null,null,null," ",null,null,0,0,0,0,"",""]
[null,null,null,null,null," ",null,null,0,0,0,0,"",""]
[null,null,null,null,null," ",null,null,0,0,0,0,"",""]
[null,null,null,null,null," ",null,null,0,0,0,0,"",""]
[null,null,null,null,null," ",null,null,0,0,0,0,"",""]
[null,null,null,null,null," ",null,null,0,0,0,0,"",""]
[null,null,null,null,null," ",null,null,0,0,0,0,"",""]
[null,null,null,null,null," ",null,null,0,0,0,0,"",""]
[null,null,null,null,null," ",null,null,0,0,0,0,"",""]
[null,null,null,null,null," ",null,null,0,0,0,0,"",""]
[null,null,null,null,null," ",null,null,0,0,0,0,"",""]
[null,null,null,null,null," ",null,null,0,0,0,0,"",""]
[null,null,null,null,null," ",null,null,0,0,0,0,"",""]
[null,null,null,null,null," ",null,null,0,0,0,0,"",""]
[null,null,null,null,null," ",null,null,0,0,0,0,"",""]
[null,null,null,null,null," ",null,null,0,0,0,0,"",""]
[null,null,null,null,null," ",null,null,0,0,0,0,"",""]
[null,null,null,null,null," ",null,null,0,0,0,0,"",""]
[null,null,null,null,null," ",null,null,0,0,0,0,"",""]
[null,null,null,null,null," ",null,null,0,0,0,0,"",""]
[null,null,null,null,null,{"$f":"IF(D6095-E6095=0,\" \",F6094+D6095-E6095)","v":" "},null,null,0,0,0,0,"",""]
[null,null,null,null,null," ",null,null,0,0,0,0,"",""]
[null,null,null,null,null," ",null,null,0,0,0,0,"",""]
[null,null,null,null,null," ",null,null,0,0,0,0,"",""]
[null,null,null,null,null," ",null,null,0,0,0,0,"",""]
[null,null,null,null,null," ",null,null,0,0,0,0,"",""]
[null,null,null,null,null," ",null,null,0,0,0,0,"",""]
[null,null,null,null,null," ",null,null,0,0,0,0,"",""]
[null,null,null,null,null," ",null,null,0,0,0,0,"",""]
[null,null,null,null,null," ",null,null,0,0,0,0,"",""]
[null,null,null,null,null," ",null,null,0,0,0,0,"",""]
[null,null,null,null,null," ",null,null,0,0,0,0,"",""]
[null,null,null,null,null," ",null,null,0,0,0,0,"",""]
[null,null,null,null,null," ",null,null,0,0,0,0,"",""]
[null,null,null,null,null," ",null,null,0,0,0,0,"",""]
[null,null,null,null,null," ",null,null,0,0,0,0,"",""]
[null,null,null,null,null," ",null,null,0,0,0,0,"",""]
[null,null,null,null,null," ",null,null,0,0,0,0,{"$f":"IF(A6160=0,\"\",YEAR(A6160))","v":""},{"$f":"IF(A6160=0,\"\",MONTH(A6160))","v":""}]
[null,null,null,null,null," ",null,null,0,0,0,0,"",""]
[null,null,null,null,null," ",null,null,0,0,0,0,"",""]
[null,null,null,null,null," ",null,null,0,0,0,0,"",""]
[null,null,null,null,null," ",null,null,0,0,0,0,"",""]
[null,null,null,null,null," ",null,null,0,0,0,0,"",""]
[null,null,null,null,null," ",null,null,0,0,0,0,"",""]
[null,null,null,null,null," ",null,null,0,0,0,0,"",""]
[null,null,null,null,null," ",null,null,0,0,0,0,"",""]
[null,null,null,null,null," ",null,null,0,0,0,0,"",""]
[null,null,null,null,null," ",null,null,0,0,0,0,"",""]
[null,null,null,null,null," ",null,null,0,0,0,0,"",""]
[null,null,null,null,null," ",null,null,0,0,0,0,"",""]
[null,null,null,null,null," ",null,null,0,0,0,0,"",""]
[null,null,null,null,null," ",null,null,0,0,0,0,"",""]
[null,null,null,null,null," ",null,null,{"$f":"IF(H6215=0,0,D6215)","v":0},{"$f":"IF(H6215<>\"p\",0,D6215)","v":0},{"$f":"IF(H6215=0,0,E6215)","v":0},{"$f":"IF(H6215<>\"p\",0,E6215)","v":0},"",""]
[null,null,null,null,null," ",null,null,0,0,0,0,"",""]
[null,null,null,null,null," ",null,null,0,0,0,0,{"$f":"IF(A6224=0,\"\",YEAR(A6224))","v":""},{"$f":"IF(A6224=0,\"\",MONTH(A6224))","v":""}]
[null,null,null,null,null," ",null,null,0,0,0,0,"",""]
[null,null,null,null,null," ",null,null,0,0,0,0,"",""]
[null,null,null,null,null," ",null,null,0,0,0,0,"",""]
[null,null,null,null,null," ",null,null,0,0,0,0,"",""]
[null,null,null,null,null," ",null,null,0,0,0,0,"",""]
[null,null,null,null,null," ",null,null,0,0,0,0,"",""]
[null,null,null,null,null," ",null,null,0,0,0,0,"",""]
[null,null,null,null,null," ",null,null,0,0,0,0,"",""]
[null,null,null,null,null," ",null,null,0,0,0,0,"",""]
[null,null,null,null,null," ",null,null,0,0,0,0,"",""]
[null,null,null,null,null," ",null,null,0,0,0,0,"",""]
[null,null,null,null,null," ",null,null,0,0,0,0,"",""]
[null,null,null,null,null," ",null,null,0,0,0,0,"",""]
[null,null,null,null,null," ",null,null,0,0,0,0,"",""]
[null,null,null,null,null," ",null,null,0,0,0,0,"",""]
[null,null,null,null,null," ",null,null,0,0,0,0,"",""]
[null,null,null,null,null," ",null,null,0,0,0,0,"",""]
[null,null,null,null,null," ",null,null,0,0,0,0,"",""]
[null,null,null,null,null," ",null,null,0,0,0,0,"",""]
[null,null,null,null,null," ",null,null,0,0,0,0,"",""]
[null,null,null,null,null," ",null,null,0,0,0,0,"",""]
[null,null,null,null,null," ",null,null,0,0,0,0,"",""]
[null,null,null,null,null," ",null,null,0,0,0,0,"",""]
[null,null,null,null,null," ",null,null,0,0,0,0,"",""]
[null,null,null,null,null," ",null,null,0,0,0,0,"",""]
[null,null,null,null,null," ",null,null,0,0,0,0,"",""]
[null,null,null,null,null," ",null,null,0,0,0,0,"",""]
[null,null,null,null,null," ",null,null,0,0,0,0,"",""]
[null,null,null,null,null," ",null,null,0,0,0,0,"",""]
[null,null,null,null,null," ",null,null,0,0,0,0,"",""]
[null,null,null,null,null," ",null,null,0,0,0,0,"",""]
[null,null,null,null,null," ",null,null,0,0,0,0,"",""]
[null,null,null,null,null," ",null,null,0,0,0,0,"",""]
[null,null,null,null,null," ",null,null,0,0,0,0,"",""]
[null,null,null,null,null," ",null,null,0,0,0,0,"",""]
[null,null,null,null,null," ",null,null,0,0,0,0,"",""]
[null,null,null,null,null," ",null,null,0,0,0,0,"",""]
[null,null,null,null,null," ",null,null,0,0,0,0,"",""]
[null,null,null,null,null," ",null,null,0,0,0,0,"",""]
[null,null,null,null,null," ",null,null,0,0,0,0,"",""]
[null,null,null,null,null," ",null,null,0,0,0,0,"",""]
[null,null,null,null,null," ",null,null,0,0,0,0,"",""]
[null,null,null,null,null," ",null,null,0,0,0,0,"",""]
[null,null,null,null,null," ",null,null,0,0,0,0,"",""]
[null,null,null,null,null," ",null,null,0,0,0,0,"",""]
[null,null,null,null,null," ",null,null,0,0,0,0,"",""]
[null,null,null,null,null," ",null,null,0,0,0,0,"",""]
[null,null,null,null,null," ",null,null,0,0,0,0,"",""]
[null,null,null,null,null," ",null,null,0,0,0,0,"",""]
[null,null,null,null,null," ",null,null,0,0,0,0,"",""]
[null,null,null,null,null,{"$f":"IF(D6415-E6415=0,\" \",F6414+D6415-E6415)","v":" "},null,null,0,0,0,0,"",""]
[null,null,null,null,null," ",null,null,0,0,0,0,"",""]
[null,null,null,null,null," ",null,null,0,0,0,0,"",""]
[null,null,null,null,null," ",null,null,0,0,0,0,"",""]
[null,null,null,null,null," ",null,null,0,0,0,0,"",""]
[null,null,null,null,null," ",null,null,0,0,0,0,"",""]
[null,null,null,null,null," ",null,null,0,0,0,0,"",""]
[null,null,null,null,null," ",null,null,0,0,0,0,"",""]
[null,null,null,null,null," ",null,null,0,0,0,0,"",""]
[null,null,null,null,null," ",null,null,0,0,0,0,"",""]
[null,null,null,null,null," ",null,null,0,0,0,0,"",""]
[null,null,null,null,null," ",null,null,0,0,0,0,"",""]
[null,null,null,null,null," ",null,null,0,0,0,0,"",""]
[null,null,null,null,null," ",null,null,0,0,0,0,"",""]
[null,null,null,null,null," ",null,null,0,0,0,0,"",""]
[null,null,null,null,null," ",null,null,0,0,0,0,"",""]
[null,null,null,null,null," ",null,null,0,0,0,0,"",""]
[null,null,null,null,null," ",null,null,0,0,0,0,{"$f":"IF(A6480=0,\"\",YEAR(A6480))","v":""},{"$f":"IF(A6480=0,\"\",MONTH(A6480))","v":""}]
[null,null,null,null,null," ",null,null,0,0,0,0,"",""]
[null,null,null,null,null," ",null,null,0,0,0,0,"",""]
[null,null,null,null,null," ",null,null,0,0,0,0,"",""]
[null,null,null,null,null," ",null,null,0,0,0,0,"",""]
[null,null,null,null,null," ",null,null,0,0,0,0,"",""]
[null,null,null,null,null," ",null,null,0,0,0,0,"",""]
[null,null,null,null,null," ",null,null,0,0,0,0,"",""]
[null,null,null,null,null," ",null,null,0,0,0,0,"",""]
[null,null,null,null,null," ",null,null,0,0,0,0,"",""]
[null,null,null,null,null," ",null,null,0,0,0,0,"",""]
[null,null,null,null,null," ",null,null,0,0,0,0,"",""]
[null,null,null,null,null," ",null,null,0,0,0,0,"",""]
[null,null,null,null,null," ",null,null,0,0,0,0,"",""]
[null,null,null,null,null," ",null,null,0,0,0,0,"",""]
[null,null,null,null,null," ",null,null,{"$f":"IF(H6535=0,0,D6535)","v":0},{"$f":"IF(H6535<>\"p\",0,D6535)","v":0},{"$f":"IF(H6535=0,0,E6535)","v":0},{"$f":"IF(H6535<>\"p\",0,E6535)","v":0},"",""]
[null,null,null,null,null," ",null,null,0,0,0,0,"",""]
[null,null,null,null,null,{"$f":"IF(D6543-E6543=0,\" \",F6542+D6543-E6543)","v":" "},null,null,0,0,0,0,"",""]
[null,null,null,null,null," ",null,null,0,0,0,0,"",""]
[null,null,null,null,null," ",null,null,0,0,0,0,"",""]
[null,null,null,null,null," ",null,null,0,0,0,0,"",""]
[null,null,null,null,null," ",null,null,0,0,0,0,"",""]
[null,null,null,null,null," ",null,null,0,0,0,0,"",""]
[null,null,null,null,null," ",null,null,0,0,0,0,"",""]
[null,null,null,null,null," ",null,null,0,0,0,0,"",""]
[null,null,null,null,null," ",null,null,0,0,0,0,"",""]
[null,null,null,null,null," ",null,null,0,0,0,0,"",""]
[null,null,null,null,null," ",null,null,0,0,0,0,"",""]
[null,null,null,null,null," ",null,null,0,0,0,0,"",""]
[null,null,null,null,null," ",null,null,0,0,0,0,"",""]
[null,null,null,null,null," ",null,null,0,0,0,0,"",""]
[null,null,null,null,null," ",null,null,0,0,0,0,"",""]
[null,null,null,null,null," ",null,null,0,0,0,0,"",""]
[null,null,null,null,null," ",null,null,0,0,0,0,"",""]
[null,null,null,null,null," ",null,null,0,0,0,0,"",""]
[null,null,null,null,null," ",null,null,0,0,0,0,"",""]
[null,null,null,null,null," ",null,null,0,0,0,0,"",""]
[null,null,null,null,null," ",null,null,0,0,0,0,"",""]
[null,null,null,null,null," ",null,null,0,0,0,0,"",""]
[null,null,null,null,null," ",null,null,0,0,0,0,"",""]
[null,null,null,null,null," ",null,null,0,0,0,0,"",""]
[null,null,null,null,null," ",null,null,0,0,0,0,"",""]
[null,null,null,null,null," ",null,null,0,0,0,0,"",""]
[null,null,null,null,null," ",null,null,0,0,0,0,"",""]
[null,null,null,null,null," ",null,null,0,0,0,0,"",""]
[null,null,null,null,null," ",null,null,0,0,0,0,"",""]
[null,null,null,null,null," ",null,null,0,0,0,0,"",""]
[null,null,null,null,null," ",null,null,0,0,0,0,"",""]
[null,null,null,null,null," ",null,null,0,0,0,0,"",""]
[null,null,null,null,null," ",null,null,{"$f":"IF(H6663=0,0,D6663)","v":0},{"$f":"IF(H6663<>\"p\",0,D6663)","v":0},{"$f":"IF(H6663=0,0,E6663)","v":0},{"$f":"IF(H6663<>\"p\",0,E6663)","v":0},"",""]
[null,null,null,null,null," ",null,null,0,0,0,0,"",""]
[null,null,null,null,null," ",null,null,0,0,0,0,"",""]
[null,null,null,null,null," ",null,null,0,0,0,0,"",""]
[null,null,null,null,null," ",null,null,0,0,0,0,"",""]
[null,null,null,null,null," ",null,null,0,0,0,0,"",""]
[null,null,null,null,null," ",null,null,0,0,0,0,"",""]
[null,null,null,null,null," ",null,null,0,0,0,0,"",""]
[null,null,null,null,null," ",null,null,0,0,0,0,"",""]
[null,null,null,null,null," ",null,null,0,0,0,0,"",""]
[null,null,null,null,null," ",null,null,0,0,0,0,"",""]
[null,null,null,null,null," ",null,null,0,0,0,0,"",""]
[null,null,null,null,null," ",null,null,0,0,0,0,"",""]
[null,null,null,null,null," ",null,null,0,0,0,0,"",""]
[null,null,null,null,null," ",null,null,0,0,0,0,"",""]
[null,null,null,null,null," ",null,null,0,0,0,0,"",""]
[null,null,null,null,null," ",null,null,0,0,0,0,"",""]
[null,null,null,null,null," ",null,null,{"$f":"IF(H6727=0,0,D6727)","v":0},{"$f":"IF(H6727<>\"p\",0,D6727)","v":0},{"$f":"IF(H6727=0,0,E6727)","v":0},{"$f":"IF(H6727<>\"p\",0,E6727)","v":0},"",""]
[null,null,null,null,null," ",null,null,0,0,0,0,"",""]
[null,null,null,null,null,{"$f":"IF(D6735-E6735=0,\" \",F6734+D6735-E6735)","v":" "},null,null,0,0,0,0,"",""]
[null,null,null,null,null," ",null,null,0,0,0,0,"",""]
[null,null,null,null,null," ",null,null,0,0,0,0,"",""]
[null,null,null,null,null," ",null,null,0,0,0,0,"",""]
[null,null,null,null,null," ",null,null,0,0,0,0,"",""]
[null,null,null,null,null," ",null,null,0,0,0,0,"",""]
[null,null,null,null,null," ",null,null,0,0,0,0,"",""]
[null,null,null,null,null," ",null,null,0,0,0,0,"",""]
[null,null,null,null,null," ",null,null,0,0,0,0,"",""]
[null,null,null,null,null," ",null,null,0,0,0,0,"",""]
[null,null,null,null,null," ",null,null,0,0,0,0,"",""]
[null,null,null,null,null," ",null,null,0,0,0,0,"",""]
[null,null,null,null,null," ",null,null,0,0,0,0,"",""]
[null,null,null,null,null," ",null,null,0,0,0,0,"",""]
[null,null,null,null,null," ",null,null,0,0,0,0,"",""]
[null,null,null,null,null," ",null,null,0,0,0,0,"",""]
[null,null,null,null,null," ",null,null,0,0,0,0,"",""]
[null,null,null,null,null," ",null,null,0,0,0,0,{"$f":"IF(A6800=0,\"\",YEAR(A6800))","v":""},{"$f":"IF(A6800=0,\"\",MONTH(A6800))","v":""}]
[null,null,null,null,null," ",null,null,0,0,0,0,"",""]
[null,null,null,null,null," ",null,null,0,0,0,0,"",""]
[null,null,null,null,null," ",null,null,0,0,0,0,"",""]
[null,null,null,null,null," ",null,null,0,0,0,0,"",""]
[null,null,null,null,null," ",null,null,0,0,0,0,"",""]
[null,null,null,null,null," ",null,null,0,0,0,0,"",""]
[null,null,null,null,null," ",null,null,0,0,0,0,"",""]
[null,null,null,null,null," ",null,null,0,0,0,0,"",""]
[null,null,null,null,null," ",null,null,0,0,0,0,"",""]
[null,null,null,null,null," ",null,null,0,0,0,0,"",""]
[null,null,null,null,null," ",null,null,0,0,0,0,"",""]
[null,null,null,null,null," ",null,null,0,0,0,0,"",""]
[null,null,null,null,null," ",null,null,0,0,0,0,"",""]
[null,null,null,null,null," ",null,null,0,0,0,0,"",""]
[null,null,null,null,null," ",null,null,{"$f":"IF(H6855=0,0,D6855)","v":0},{"$f":"IF(H6855<>\"p\",0,D6855)","v":0},{"$f":"IF(H6855=0,0,E6855)","v":0},{"$f":"IF(H6855<>\"p\",0,E6855)","v":0},"",""]
[null,null,null,null,null," ",null,null,0,0,0,0,"",""]
[null,null,null,null,null," ",null,null,0,0,0,0,"",""]
[null,null,null,null,null," ",null,null,0,0,0,0,"",""]
[null,null,null,null,null," ",null,null,0,0,0,0,"",""]
[null,null,null,null,null," ",null,null,0,0,0,0,"",""]
[null,null,null,null,null," ",null,null,0,0,0,0,"",""]
[null,null,null,null,null," ",null,null,0,0,0,0,"",""]
[null,null,null,null,null," ",null,null,0,0,0,0,"",""]
[null,null,null,null,null," ",null,null,0,0,0,0,"",""]
[null,null,null,null,null," ",null,null,0,0,0,0,"",""]
[null,null,null,null,null," ",null,null,0,0,0,0,"",""]
[null,null,null,null,null," ",null,null,0,0,0,0,"",""]
[null,null,null,null,null," ",null,null,0,0,0,0,"",""]
[null,null,null,null,null," ",null,null,0,0,0,0,"",""]
[null,null,null,null,null," ",null,null,0,0,0,0,"",""]
[null,null,null,null,null," ",null,null,0,0,0,0,"",""]
[null,null,null,null,null," ",null,null,0,0,0,0,"",""]
[null,null,null,null,null," ",null,null,0,0,0,0,"",""]
[null,null,null,null,null," ",null,null,0,0,0,0,"",""]
[null,null,null,null,null," ",null,null,0,0,0,0,"",""]
[null,null,null,null,null," ",null,null,0,0,0,0,"",""]
[null,null,null,null,null," ",null,null,0,0,0,0,"",""]
[null,null,null,null,null," ",null,null,0,0,0,0,"",""]
[null,null,null,null,null," ",null,null,0,0,0,0,"",""]
[null,null,null,null,null," ",null,null,0,0,0,0,"",""]
[null,null,null,null,null," ",null,null,0,0,0,0,"",""]
[null,null,null,null,null," ",null,null,0,0,0,0,"",""]
[null,null,null,null,null," ",null,null,0,0,0,0,"",""]
[null,null,null,null,null," ",null,null,0,0,0,0,"",""]
[null,null,null,null,null," ",null,null,0,0,0,0,"",""]
[null,null,null,null,null," ",null,null,0,0,0,0,"",""]
[null,null,null,null,null," ",null,null,0,0,0,0,"",""]
[null,null,null,null,null," ",null,null,0,0,0,0,"",""]
[null,null,null,null,null," ",null,null,0,0,0,0,"",""]
[null,null,null,null,null," ",null,null,0,0,0,0,"",""]
[null,null,null,null,null," ",null,null,0,0,0,0,"",""]
[null,null,null,null,null," ",null,null,0,0,0,0,"",""]
[null,null,null,null,null," ",null,null,0,0,0,0,"",""]
[null,null,null,null,null," ",null,null,0,0,0,0,"",""]
[null,null,null,null,null," ",null,null,0,0,0,0,"",""]
[null,null,null,null,null," ",null,null,0,0,0,0,"",""]
[null,null,null,null,null," ",null,null,0,0,0,0,"",""]
[null,null,null,null,null," ",null,null,0,0,0,0,"",""]
[null,null,null,null,null," ",null,null,0,0,0,0,"",""]
[null,null,null,null,null," ",null,null,0,0,0,0,"",""]
[null,null,null,null,null," ",null,null,0,0,0,0,"",""]
[null,null,null,null,null," ",null,null,0,0,0,0,"",""]
[null,null,null,null,null," ",null,null,0,0,0,0,"",""]
[null,null,null,null,null," ",null,null,0,0,0,0,"",""]
[null,null,null,null,null," ",null,null,0,0,0,0,"",""]
[null,null,null,null,null," ",null,null,0,0,0,0,"",""]
[null,null,null,null,null," ",null,null,0,0,0,0,"",""]
[null,null,null,null,null,{"$f":"IF(D7055-E7055=0,\" \",F7054+D7055-E7055)","v":" "},null,null,0,0,0,0,"",""]
[null,null,null,null,null," ",null,null,0,0,0,0,{"$f":"IF(A7056=0,\"\",YEAR(A7056))","v":""},{"$f":"IF(A7056=0,\"\",MONTH(A7056))","v":""}]
[null,null,null,null,null," ",null,null,0,0,0,0,"",""]
[null,null,null,null,null," ",null,null,0,0,0,0,"",""]
[null,null,null,null,null," ",null,null,0,0,0,0,"",""]
[null,null,null,null,null," ",null,null,0,0,0,0,"",""]
[null,null,null,null,null," ",null,null,0,0,0,0,"",""]
[null,null,null,null,null," ",null,null,0,0,0,0,"",""]
[null,null,null,null,null," ",null,null,0,0,0,0,"",""]
[null,null,null,null,null," ",null,null,0,0,0,0,"",""]
[null,null,null,null,null," ",null,null,0,0,0,0,"",""]
[null,null,null,null,null," ",null,null,0,0,0,0,"",""]
[null,null,null,null,null," ",null,null,0,0,0,0,"",""]
[null,null,null,null,null," ",null,null,0,0,0,0,"",""]
[null,null,null,null,null," ",null,null,0,0,0,0,"",""]
[null,null,null,null,null," ",null,null,0,0,0,0,"",""]
[null,null,null,null,null," ",null,null,0,0,0,0,"",""]
[null,null,null,null,null," ",null,null,0,0,0,0,"",""]
[null,null,null,null,null," ",null,null,0,0,0,0,{"$f":"IF(A7120=0,\"\",YEAR(A7120))","v":""},{"$f":"IF(A7120=0,\"\",MONTH(A7120))","v":""}]
[null,null,null,null,null," ",null,null,0,0,0,0,"",""]
[null,null,null,null,null," ",null,null,0,0,0,0,"",""]
[null,null,null,null,null," ",null,null,0,0,0,0,"",""]
[null,null,null,null,null," ",null,null,0,0,0,0,"",""]
[null,null,null,null,null," ",null,null,0,0,0,0,"",""]
[null,null,null,null,null," ",null,null,0,0,0,0,"",""]
[null,null,null,null,null," ",null,null,0,0,0,0,"",""]
[null,null,null,null,null," ",null,null,0,0,0,0,"",""]
[null,null,null,null,null," ",null,null,0,0,0,0,"",""]
[null,null,null,null,null," ",null,null,0,0,0,0,"",""]
[null,null,null,null,null," ",null,null,0,0,0,0,"",""]
[null,null,null,null,null," ",null,null,0,0,0,0,"",""]
[null,null,null,null,null," ",null,null,0,0,0,0,"",""]
[null,null,null,null,null," ",null,null,{"$f":"IF(H7175=0,0,D7175)","v":0},{"$f":"IF(H7175<>\"p\",0,D7175)","v":0},{"$f":"IF(H7175=0,0,E7175)","v":0},{"$f":"IF(H7175<>\"p\",0,E7175)","v":0},"",""]
[null,null,null,null,null," ",null,null,0,0,0,0,"",""]
[null,null,null,null,null," ",null,null,0,0,0,0,"",""]
[null,null,null,null,null," ",null,null,0,0,0,0,"",""]
[null,null,null,null,null," ",null,null,0,0,0,0,"",""]
[null,null,null,null,null," ",null,null,0,0,0,0,"",""]
[null,null,null,null,null," ",null,null,0,0,0,0,"",""]
[null,null,null,null,null," ",null,null,0,0,0,0,"",""]
[null,null,null,null,null," ",null,null,0,0,0,0,"",""]
[null,null,null,null,null," ",null,null,0,0,0,0,"",""]
[null,null,null,null,null," ",null,null,0,0,0,0,"",""]
[null,null,null,null,null," ",null,null,0,0,0,0,"",""]
[null,null,null,null,null," ",null,null,0,0,0,0,"",""]
[null,null,null,null,null," ",null,null,0,0,0,0,"",""]
[null,null,null,null,null," ",null,null,0,0,0,0,"",""]
[null,null,null,null,null," ",null,null,0,0,0,0,"",""]
[null,null,null,null,null," ",null,null,0,0,0,0,"",""]
[null,null,null,null,null," ",null,null,0,0,0,0,"",""]
[null,null,null,null,null," ",null,null,0,0,0,0,"",""]
[null,null,null,null,null," ",null,null,0,0,0,0,"",""]
[null,null,null,null,null," ",null,null,0,0,0,0,"",""]
[null,null,null,null,null," ",null,null,0,0,0,0,"",""]
[null,null,null,null,null," ",null,null,0,0,0,0,"",""]
[null,null,null,null,null," ",null,null,0,0,0,0,"",""]
[null,null,null,null,null," ",null,null,0,0,0,0,"",""]
[null,null,null,null,null," ",null,null,0,0,0,0,"",""]
[null,null,null,null,null," ",null,null,0,0,0,0,"",""]
[null,null,null,null,null," ",null,null,0,0,0,0,"",""]
[null,null,null,null,null," ",null,null,0,0,0,0,"",""]
[null,null,null,null,null," ",null,null,0,0,0,0,"",""]
[null,null,null,null,null," ",null,null,0,0,0,0,"",""]
[null,null,null,null,null," ",null,null,0,0,0,0,"",""]
[null,null,null,null,null," ",null,null,0,0,0,0,"",""]
[null,null,null,null,null," ",null,null,0,0,0,0,"",""]
[null,null,null,null,null," ",null,null,0,0,0,0,"",""]
[null,null,null,null,null," ",null,null,0,0,0,0,"",""]
[null,null,null,null,null," ",null,null,0,0,0,0,"",""]
[null,null,null,null,null,{"$f":"IF(D7311-E7311=0,\" \",F7310+D7311-E7311)","v":" "},null,null,0,0,0,0,"",""]
[null,null,null,null,null," ",null,null,0,0,0,0,"",""]
[null,null,null,null,null," ",null,null,0,0,0,0,"",""]
[null,null,null,null,null," ",null,null,0,0,0,0,"",""]
[null,null,null,null,null," ",null,null,0,0,0,0,"",""]
[null,null,null,null,null," ",null,null,0,0,0,0,"",""]
[null,null,null,null,null," ",null,null,0,0,0,0,"",""]
[null,null,null,null,null," ",null,null,0,0,0,0,"",""]
[null,null,null,null,null," ",null,null,0,0,0,0,"",""]
[null,null,null,null,null," ",null,null,0,0,0,0,"",""]
[null,null,null,null,null," ",null,null,0,0,0,0,"",""]
[null,null,null,null,null," ",null,null,0,0,0,0,"",""]
[null,null,null,null,null," ",null,null,0,0,0,0,"",""]
[null,null,null,null,null," ",null,null,0,0,0,0,"",""]
[null,null,null,null,null," ",null,null,0,0,0,0,"",""]
[null,null,null,null,null," ",null,null,0,0,0,0,"",""]
[null,null,null,null,null," ",null,null,0,0,0,0,"",""]
[null,null,null,null,null," ",null,null,0,0,0,0,{"$f":"IF(A7376=0,\"\",YEAR(A7376))","v":""},{"$f":"IF(A7376=0,\"\",MONTH(A7376))","v":""}]
[null,null,null,null,null," ",null,null,0,0,0,0,"",""]
[null,null,null,null,null," ",null,null,0,0,0,0,"",""]
[null,null,null,null,null," ",null,null,0,0,0,0,"",""]
[null,null,null,null,null," ",null,null,0,0,0,0,"",""]
[null,null,null,null,null," ",null,null,0,0,0,0,"",""]
[null,null,null,null,null," ",null,null,0,0,0,0,"",""]
[null,null,null,null,null," ",null,null,0,0,0,0,"",""]
[null,null,null,null,null," ",null,null,0,0,0,0,"",""]
[null,null,null,null,null," ",null,null,0,0,0,0,"",""]
[null,null,null,null,null," ",null,null,0,0,0,0,"",""]
[null,null,null,null,null," ",null,null,0,0,0,0,"",""]
[null,null,null,null,null," ",null,null,0,0,0,0,"",""]
[null,null,null,null,null," ",null,null,0,0,0,0,"",""]
[null,null,null,null,null," ",null,null,0,0,0,0,"",""]
[null,null,null,null,null," ",null,null,{"$f":"IF(H7431=0,0,D7431)","v":0},{"$f":"IF(H7431<>\"p\",0,D7431)","v":0},{"$f":"IF(H7431=0,0,E7431)","v":0},{"$f":"IF(H7431<>\"p\",0,E7431)","v":0},"",""]
[null,null,null,null,null," ",null,null,0,0,0,0,"",""]
[null,null,null,null,null," ",null,null,0,0,0,0,"",""]
[null,null,null,null,null," ",null,null,0,0,0,0,"",""]
[null,null,null,null,null," ",null,null,0,0,0,0,"",""]
[null,null,null,null,null," ",null,null,0,0,0,0,"",""]
[null,null,null,null,null," ",null,null,0,0,0,0,"",""]
[null,null,null,null,null," ",null,null,0,0,0,0,"",""]
[null,null,null,null,null," ",null,null,0,0,0,0,"",""]
[null,null,null,null,null," ",null,null,0,0,0,0,"",""]
[null,null,null,null,null," ",null,null,0,0,0,0,"",""]
[null,null,null,null,null," ",null,null,0,0,0,0,"",""]
[null,null,null,null,null," ",null,null,0,0,0,0,"",""]
[null,null,null,null,null," ",null,null,0,0,0,0,"",""]
[null,null,null,null,null," ",null,null,0,0,0,0,"",""]
[null,null,null,null,null," ",null,null,0,0,0,0,"",""]
[null,null,null,null,null," ",null,null,0,0,0,0,"",""]
[null,null,null,null,null," ",null,null,0,0,0,0,"",""]
[null,null,null,null,null," ",null,null,0,0,0,0,"",""]
[null,null,null,null,null," ",null,null,0,0,0,0,"",""]
[null,null,null,null,null," ",null,null,0,0,0,0,"",""]
[null,null,null,null,null," ",null,null,0,0,0,0,"",""]
[null,null,null,null,null," ",null,null,0,0,0,0,"",""]
[null,null,null,null,null," ",null,null,0,0,0,0,"",""]
[null,null,null,null,null," ",null,null,0,0,0,0,"",""]
[null,null,null,null,null," ",null,null,0,0,0,0,"",""]
[null,null,null,null,null," ",null,null,0,0,0,0,"",""]
[null,null,null,null,null," ",null,null,0,0,0,0,"",""]
[null,null,null,null,null," ",null,null,0,0,0,0,"",""]
[null,null,null,null,null," ",null,null,0,0,0,0,"",""]
[null,null,null,null,null," ",null,null,0,0,0,0,"",""]
[null,null,null,null,null," ",null,null,0,0,0,0,"",""]
[null,null,null,null,null," ",null,null,0,0,0,0,"",""]
[null,null,null,null,null," ",null,null,0,0,0,0,"",""]
[null,null,null,null,null," ",null,null,0,0,0,0,"",""]
[null,null,null,null,null," ",null,null,0,0,0,0,"",""]
[null,null,null,null,null," ",null,null,0,0,0,0,"",""]
[null,null,null,null,null," ",null,null,0,0,0,0,"",""]
[null,null,null,null,null," ",null,null,0,0,0,0,"",""]
[null,null,null,null,null," ",null,null,0,0,0,0,"",""]
[null,null,null,null,null," ",null,null,0,0,0,0,"",""]
[null,null,null,null,null," ",null,null,0,0,0,0,"",""]
[null,null,null,null,null," ",null,null,0,0,0,0,"",""]
[null,null,null,null,null," ",null,null,0,0,0,0,"",""]
[null,null,null,null,null," ",null,null,0,0,0,0,"",""]
[null,null,null,null,null," ",null,null,0,0,0,0,"",""]
[null,null,null,null,null," ",null,null,0,0,0,0,"",""]
[null,null,null,null,null," ",null,null,0,0,0,0,"",""]
[null,null,null,null,null," ",null,null,0,0,0,0,"",""]
[null,null,null,null,null," ",null,null,0,0,0,0,"",""]
[null,null,null,null,null," ",null,null,0,0,0,0,"",""]
[null,null,null,null,null," ",null,null,0,0,0,0,"",""]
[null,null,null,null,null," ",null,null,0,0,0,0,"",""]
[null,null,null,null,null,{"$f":"IF(D7631-E7631=0,\" \",F7630+D7631-E7631)","v":" "},null,null,0,0,0,0,"",""]
[null,null,null,null,null," ",null,null,0,0,0,0,"",""]
[null,null,null,null,null," ",null,null,0,0,0,0,"",""]
[null,null,null,null,null," ",null,null,0,0,0,0,"",""]
[null,null,null,null,null," ",null,null,0,0,0,0,"",""]
[null,null,null,null,null," ",null,null,0,0,0,0,"",""]
[null,null,null,null,null," ",null,null,0,0,0,0,"",""]
[null,null,null,null,null," ",null,null,0,0,0,0,"",""]
[null,null,null,null,null," ",null,null,0,0,0,0,"",""]
[null,null,null,null,null," ",null,null,0,0,0,0,"",""]
[null,null,null,null,null," ",null,null,0,0,0,0,"",""]
[null,null,null,null,null," ",null,null,0,0,0,0,"",""]
[null,null,null,null,null," ",null,null,0,0,0,0,"",""]
[null,null,null,null,null," ",null,null,0,0,0,0,"",""]
[null,null,null,null,null," ",null,null,0,0,0,0,"",""]
[null,null,null,null,null," ",null,null,0,0,0,0,"",""]
[null,null,null,null,null," ",null,null,0,0,0,0,"",""]
[null,null,null,null,null," ",null,null,0,0,0,0,{"$f":"IF(A7696=0,\"\",YEAR(A7696))","v":""},{"$f":"IF(A7696=0,\"\",MONTH(A7696))","v":""}]
[null,null,null,null,null," ",null,null,0,0,0,0,"",""]
[null,null,null,null,null," ",null,null,0,0,0,0,"",""]
[null,null,null,null,null," ",null,null,0,0,0,0,"",""]
[null,null,null,null,null," ",null,null,0,0,0,0,"",""]
[null,null,null,null,null," ",null,null,0,0,0,0,"",""]
[null,null,null,null,null," ",null,null,0,0,0,0,"",""]
[null,null,null,null,null," ",null,null,0,0,0,0,"",""]
[null,null,null,null,null," ",null,null,0,0,0,0,"",""]
[null,null,null,null,null," ",null,null,0,0,0,0,"",""]
[null,null,null,null,null," ",null,null,0,0,0,0,"",""]
[null,null,null,null,null," ",null,null,0,0,0,0,"",""]
[null,null,null,null,null," ",null,null,0,0,0,0,"",""]
[null,null,null,null,null," ",null,null,0,0,0,0,"",""]
[null,null,null,null,null," ",null,null,0,0,0,0,"",""]
[null,null,null,null,null," ",null,null,{"$f":"IF(H7751=0,0,D7751)","v":0},{"$f":"IF(H7751<>\"p\",0,D7751)","v":0},{"$f":"IF(H7751=0,0,E7751)","v":0},{"$f":"IF(H7751<>\"p\",0,E7751)","v":0},"",""]
[null,null,null,null,null," ",null,null,0,0,0,0,"",""]
[null,null,null,null,null,{"$f":"IF(D7759-E7759=0,\" \",F7758+D7759-E7759)","v":" "},null,null,0,0,0,0,"",""]
[null,null,null,null,null," ",null,null,0,0,0,0,"",""]
[null,null,null,null,null," ",null,null,0,0,0,0,"",""]
[null,null,null,null,null," ",null,null,0,0,0,0,"",""]
[null,null,null,null,null," ",null,null,0,0,0,0,"",""]
[null,null,null,null,null," ",null,null,0,0,0,0,"",""]
[null,null,null,null,null," ",null,null,0,0,0,0,"",""]
[null,null,null,null,null," ",null,null,0,0,0,0,"",""]
[null,null,null,null,null," ",null,null,0,0,0,0,"",""]
[null,null,null,null,null," ",null,null,0,0,0,0,"",""]
[null,null,null,null,null," ",null,null,0,0,0,0,"",""]
[null,null,null,null,null," ",null,null,0,0,0,0,"",""]
[null,null,null,null,null," ",null,null,0,0,0,0,"",""]
[null,null,null,null,null," ",null,null,0,0,0,0,"",""]
[null,null,null,null,null," ",null,null,0,0,0,0,"",""]
[null,null,null,null,null," ",null,null,0,0,0,0,"",""]
[null,null,null,null,null," ",null,null,0,0,0,0,"",""]
[null,null,null,null,null," ",null,null,0,0,0,0,"",""]
[null,null,null,null,null," ",null,null,0,0,0,0,"",""]
[null,null,null,null,null," ",null,null,0,0,0,0,"",""]
[null,null,null,null,null," ",null,null,0,0,0,0,"",""]
[null,null,null,null,null," ",null,null,0,0,0,0,"",""]
[null,null,null,null,null," ",null,null,0,0,0,0,"",""]
[null,null,null,null,null," ",null,null,0,0,0,0,"",""]
[null,null,null,null,null," ",null,null,0,0,0,0,"",""]
[null,null,null,null,null," ",null,null,0,0,0,0,"",""]
[null,null,null,null,null," ",null,null,0,0,0,0,"",""]
[null,null,null,null,null," ",null,null,0,0,0,0,"",""]
[null,null,null,null,null," ",null,null,0,0,0,0,"",""]
[null,null,null,null,null," ",null,null,0,0,0,0,"",""]
[null,null,null,null,null," ",null,null,0,0,0,0,"",""]
[null,null,null,null,null," ",null,null,0,0,0,0,"",""]
[null,null,null,null,null," ",null,null,0,0,0,0,"",""]
[null,null,null,null,null," ",null,null,0,0,0,0,"",""]
[null,null,null,null,null," ",null,null,0,0,0,0,"",""]
[null,null,null,null,null," ",null,null,0,0,0,0,"",""]
[null,null,null,null,null," ",null,null,0,0,0,0,"",""]
[null,null,null,null,null," ",null,null,0,0,0,0,"",""]
[null,null,null,null,null," ",null,null,0,0,0,0,"",""]
[null,null,null,null,null," ",null,null,0,0,0,0,"",""]
[null,null,null,null,null," ",null,null,0,0,0,0,"",""]
[null,null,null,null,null," ",null,null,0,0,0,0,"",""]
[null,null,null,null,null," ",null,null,0,0,0,0,"",""]
[null,null,null,null,null," ",null,null,0,0,0,0,"",""]
[null,null,null,null,null," ",null,null,0,0,0,0,"",""]
[null,null,null,null,null," ",null,null,0,0,0,0,"",""]
[null,null,null,null,null," ",null,null,0,0,0,0,"",""]
[null,null,null,null,null," ",null,null,0,0,0,0,"",""]
[null,null,null,null,null," ",null,null,0,0,0,0,"",""]
[null,null,null,null,null," ",null,null,0,0,0,0,"",""]
[null,null,null,null,null," ",null,null,0,0,0,0,"",""]
[null,null,null,null,null,{"$f":"IF(D7951-E7951=0,\" \",F7950+D7951-E7951)","v":" "},null,null,0,0,0,0,"",""]
[null,null,null,null,null," ",null,null,0,0,0,0,"",""]
[null,null,null,null,null," ",null,null,0,0,0,0,"",""]
[null,null,null,null,null," ",null,null,0,0,0,0,"",""]
[null,null,null,null,null," ",null,null,0,0,0,0,"",""]
[null,null,null,null,null," ",null,null,0,0,0,0,"",""]
[null,null,null,null,null," ",null,null,0,0,0,0,"",""]
[null,null,null,null,null," ",null,null,0,0,0,0,"",""]
[null,null,null,null,null," ",null,null,0,0,0,0,"",""]
[null,null,null,null,null," ",null,null,0,0,0,0,"",""]
[null,null,null,null,null," ",null,null,0,0,0,0,"",""]
[null,null,null,null,null," ",null,null,0,0,0,0,"",""]
[null,null,null,null,null," ",null,null,0,0,0,0,"",""]
[null,null,null,null,null," ",null,null,0,0,0,0,"",""]
[null,null,null,null,null," ",null,null,0,0,0,0,"",""]
[null,null,null,null,null," ",null,null,0,0,0,0,"",""]
[null,null,null,null,null," ",null,null,0,0,0,0,"",""]
[null,null,null,null,null," ",null,null,0,0,0,0,{"$f":"IF(A8016=0,\"\",YEAR(A8016))","v":""},{"$f":"IF(A8016=0,\"\",MONTH(A8016))","v":""}]
[null,null,null,null,null," ",null,null,0,0,0,0,"",""]
[null,null,null,null,null," ",null,null,0,0,0,0,"",""]
[null,null,null,null,null," ",null,null,0,0,0,0,"",""]
[null,null,null,null,null," ",null,null,0,0,0,0,"",""]
[null,null,null,null,null," ",null,null,0,0,0,0,"",""]
[null,null,null,null,null," ",null,null,0,0,0,0,"",""]
[null,null,null,null,null," ",null,null,0,0,0,0,"",""]
[null,null,null,null,null," ",null,null,0,0,0,0,"",""]
[null,null,null,null,null," ",null,null,0,0,0,0,"",""]
[null,null,null,null,null," ",null,null,0,0,0,0,"",""]
[null,null,null,null,null," ",null,null,0,0,0,0,"",""]
[null,null,null,null,null," ",null,null,0,0,0,0,"",""]
[null,null,null,null,null," ",null,null,0,0,0,0,"",""]
[null,null,null,null,null," ",null,null,0,0,0,0,"",""]
[null,null,null,null,null," ",null,null,{"$f":"IF(H8071=0,0,D8071)","v":0},{"$f":"IF(H8071<>\"p\",0,D8071)","v":0},{"$f":"IF(H8071=0,0,E8071)","v":0},{"$f":"IF(H8071<>\"p\",0,E8071)","v":0},"",""]
[null,null,null,null,null," ",null,null,0,0,0,0,"",""]
[null,null,null,null,null," ",null,null,0,0,0,0,"",""]
[null,null,null,null,null," ",null,null,0,0,0,0,"",""]
[null,null,null,null,null," ",null,null,0,0,0,0,"",""]
[null,null,null,null,null," ",null,null,0,0,0,0,"",""]
[null,null,null,null,null," ",null,null,0,0,0,0,"",""]
[null,null,null,null,null," ",null,null,0,0,0,0,"",""]
[null,null,null,null,null," ",null,null,0,0,0,0,"",""]
[null,null,null,null,null," ",null,null,0,0,0,0,"",""]
[null,null,null,null,null," ",null,null,0,0,0,0,"",""]
[null,null,null,null,null," ",null,null,0,0,0,0,"",""]
[null,null,null,null,null," ",null,null,0,0,0,0,"",""]
[null,null,null,null,null," ",null,null,0,0,0,0,"",""]
[null,null,null,null,null," ",null,null,0,0,0,0,"",""]
[null,null,null,null,null," ",null,null,0,0,0,0,"",""]
[null,null,null,null,null," ",null,null,0,0,0,0,"",""]
[null,null,null,null,null," ",null,null,0,0,0,0,"",""]
[null,null,null,null,null," ",null,null,0,0,0,0,"",""]
[null,null,null,null,null," ",null,null,0,0,0,0,"",""]
[null,null,null,null,null," ",null,null,0,0,0,0,"",""]
[null,null,null,null,null," ",null,null,0,0,0,0,"",""]
[null,null,null,null,null," ",null,null,0,0,0,0,"",""]
[null,null,null,null,null," ",null,null,0,0,0,0,"",""]
[null,null,null,null,null," ",null,null,0,0,0,0,"",""]
[null,null,null,null,null," ",null,null,0,0,0,0,"",""]
[null,null,null,null,null," ",null,null,0,0,0,0,"",""]
[null,null,null,null,null," ",null,null,0,0,0,0,"",""]
[null,null,null,null,null," ",null,null,0,0,0,0,"",""]
[null,null,null,null,null," ",null,null,0,0,0,0,"",""]
[null,null,null,null,null," ",null,null,0,0,0,0,"",""]
[null,null,null,null,null," ",null,null,0,0,0,0,"",""]
[null,null,null,null,null," ",null,null,0,0,0,0,"",""]
[null,null,null,null,null," ",null,null,0,0,0,0,"",""]
[null,null,null,null,null," ",null,null,0,0,0,0,"",""]
[null,null,null,null,null," ",null,null,0,0,0,0,"",""]
[null,null,null,null,null," ",null,null,0,0,0,0,"",""]
[null,null,null,null,null," ",null,null,0,0,0,0,"",""]
[null,null,null,null,null," ",null,null,0,0,0,0,"",""]
[null,null,null,null,null," ",null,null,0,0,0,0,"",""]
[null,null,null,null,null," ",null,null,0,0,0,0,"",""]
[null,null,null,null,null," ",null,null,0,0,0,0,"",""]
[null,null,null,null,null," ",null,null,0,0,0,0,"",""]
[null,null,null,null,null," ",null,null,0,0,0,0,"",""]
[null,null,null,null,null," ",null,null,0,0,0,0,"",""]
[null,null,null,null,null," ",null,null,0,0,0,0,"",""]
[null,null,null,null,null," ",null,null,0,0,0,0,"",""]
[null,null,null,null,null," ",null,null,0,0,0,0,"",""]
[null,null,null,null,null," ",null,null,0,0,0,0,"",""]
[null,null,null,null,null," ",null,null,0,0,0,0,"",""]
[null,null,null,null,null," ",null,null,0,0,0,0,"",""]
[null,null,null,null,null," ",null,null,{"$f":"IF(H8263=0,0,D8263)","v":0},{"$f":"IF(H8263<>\"p\",0,D8263)","v":0},{"$f":"IF(H8263=0,0,E8263)","v":0},{"$f":"IF(H8263<>\"p\",0,E8263)","v":0},"",""]
[null,null,null,null,null," ",null,null,0,0,0,0,"",""]
[null,null,null,null,null,{"$f":"IF(D8271-E8271=0,\" \",F8270+D8271-E8271)","v":" "},null,null,0,0,0,0,"",""]
[null,null,null,null,null," ",null,null,0,0,0,0,{"$f":"IF(A8272=0,\"\",YEAR(A8272))","v":""},{"$f":"IF(A8272=0,\"\",MONTH(A8272))","v":""}]
[null,null,null,null,null," ",null,null,0,0,0,0,"",""]
[null,null,null,null,null," ",null,null,0,0,0,0,"",""]
[null,null,null,null,null," ",null,null,0,0,0,0,"",""]
[null,null,null,null,null," ",null,null,0,0,0,0,"",""]
[null,null,null,null,null," ",null,null,0,0,0,0,"",""]
[null,null,null,null,null," ",null,null,0,0,0,0,"",""]
[null,null,null,null,null," ",null,null,0,0,0,0,"",""]
[null,null,null,null,null," ",null,null,0,0,0,0,"",""]
[null,null,null,null,null," ",null,null,0,0,0,0,"",""]
[null,null,null,null,null," ",null,null,0,0,0,0,"",""]
[null,null,null,null,null," ",null,null,0,0,0,0,"",""]
[null,null,null,null,null," ",null,null,0,0,0,0,"",""]
[null,null,null,null,null," ",null,null,0,0,0,0,"",""]
[null,null,null,null,null," ",null,null,0,0,0,0,"",""]
[null,null,null,null,null," ",null,null,0,0,0,0,"",""]
[null,null,null,null,null," ",null,null,0,0,0,0,"",""]
[null,null,null,null,null," ",null,null,0,0,0,0,{"$f":"IF(A8336=0,\"\",YEAR(A8336))","v":""},{"$f":"IF(A8336=0,\"\",MONTH(A8336))","v":""}]
[null,null,null,null,null," ",null,null,0,0,0,0,"",""]
[null,null,null,null,null," ",null,null,0,0,0,0,"",""]
[null,null,null,null,null," ",null,null,0,0,0,0,"",""]
[null,null,null,null,null," ",null,null,0,0,0,0,"",""]
[null,null,null,null,null," ",null,null,0,0,0,0,"",""]
[null,null,null,null,null," ",null,null,0,0,0,0,"",""]
[null,null,null,null,null," ",null,null,0,0,0,0,"",""]
[null,null,null,null,null," ",null,null,0,0,0,0,"",""]
[null,null,null,null,null," ",null,null,0,0,0,0,"",""]
[null,null,null,null,null," ",null,null,0,0,0,0,"",""]
[null,null,null,null,null," ",null,null,0,0,0,0,"",""]
[null,null,null,null,null," ",null,null,0,0,0,0,"",""]
[null,null,null,null,null," ",null,null,0,0,0,0,"",""]
[null,null,null,null,null," ",null,null,{"$f":"IF(H8391=0,0,D8391)","v":0},{"$f":"IF(H8391<>\"p\",0,D8391)","v":0},{"$f":"IF(H8391=0,0,E8391)","v":0},{"$f":"IF(H8391<>\"p\",0,E8391)","v":0},"",""]
[null,null,null,null,null," ",null,null,0,0,0,0,"",""]
[null,null,null,null,null," ",null,null,0,0,0,0,"",""]
[null,null,null,null,null," ",null,null,0,0,0,0,"",""]
[null,null,null,null,null," ",null,null,0,0,0,0,"",""]
[null,null,null,null,null," ",null,null,0,0,0,0,"",""]
[null,null,null,null,null," ",null,null,0,0,0,0,"",""]
[null,null,null,null,null," ",null,null,0,0,0,0,"",""]
[null,null,null,null,null," ",null,null,0,0,0,0,"",""]
[null,null,null,null,null," ",null,null,0,0,0,0,"",""]
[null,null,null,null,null," ",null,null,0,0,0,0,"",""]
[null,null,null,null,null," ",null,null,0,0,0,0,"",""]
[null,null,null,null,null," ",null,null,0,0,0,0,"",""]
[null,null,null,null,null," ",null,null,0,0,0,0,"",""]
[null,null,null,null,null," ",null,null,0,0,0,0,"",""]
[null,null,null,null,null," ",null,null,0,0,0,0,"",""]
[null,null,null,null,null," ",null,null,0,0,0,0,"",""]
[null,null,null,null,null," ",null,null,0,0,0,0,"",""]
[null,null,null,null,null," ",null,null,0,0,0,0,"",""]
[null,null,null,null,null," ",null,null,0,0,0,0,"",""]
[null,null,null,null,null," ",null,null,0,0,0,0,"",""]
[null,null,null,null,null," ",null,null,0,0,0,0,"",""]
[null,null,null,null,null," ",null,null,0,0,0,0,"",""]
[null,null,null,null,null," ",null,null,0,0,0,0,"",""]
[null,null,null,null,null," ",null,null,0,0,0,0,"",""]
[null,null,null,null,null," ",null,null,0,0,0,0,"",""]
[null,null,null,null,null," ",null,null,0,0,0,0,"",""]
[null,null,null,null,null," ",null,null,0,0,0,0,"",""]
[null,null,null,null,null," ",null,null,0,0,0,0,"",""]
[null,null,null,null,null," ",null,null,0,0,0,0,"",""]
[null,null,null,null,null," ",null,null,0,0,0,0,"",""]
[null,null,null,null,null," ",null,null,0,0,0,0,"",""]
[null,null,null,null,null," ",null,null,0,0,0,0,"",""]
[null,null,null,null,null," ",null,null,0,0,0,0,"",""]
[null,null,null,null,null," ",null,null,0,0,0,0,"",""]
[null,null,null,null,null," ",null,null,0,0,0,0,"",""]
[null,null,null,null,null," ",null,null,0,0,0,0,"",""]
[null,null,null,null,null,{"$f":"IF(D8527-E8527=0,\" \",F8526+D8527-E8527)","v":" "},null,null,0,0,0,0,"",""]
[null,null,null,null,null," ",null,null,0,0,0,0,"",""]
[null,null,null,null,null," ",null,null,0,0,0,0,"",""]
[null,null,null,null,null," ",null,null,0,0,0,0,"",""]
[null,null,null,null,null," ",null,null,0,0,0,0,"",""]
[null,null,null,null,null," ",null,null,0,0,0,0,"",""]
[null,null,null,null,null," ",null,null,0,0,0,0,"",""]
[null,null,null,null,null," ",null,null,0,0,0,0,"",""]
[null,null,null,null,null," ",null,null,0,0,0,0,"",""]
[null,null,null,null,null," ",null,null,0,0,0,0,"",""]
[null,null,null,null,null," ",null,null,0,0,0,0,"",""]
[null,null,null,null,null," ",null,null,0,0,0,0,"",""]
[null,null,null,null,null," ",null,null,0,0,0,0,"",""]
[null,null,null,null,null," ",null,null,0,0,0,0,"",""]
[null,null,null,null,null," ",null,null,0,0,0,0,"",""]
[null,null,null,null,null," ",null,null,0,0,0,0,"",""]
[null,null,null,null,null," ",null,null,0,0,0,0,"",""]
[null,null,null,null,null," ",null,null,0,0,0,0,{"$f":"IF(A8592=0,\"\",YEAR(A8592))","v":""},{"$f":"IF(A8592=0,\"\",MONTH(A8592))","v":""}]
[null,null,null,null,null," ",null,null,0,0,0,0,"",""]
[null,null,null,null,null," ",null,null,0,0,0,0,"",""]
[null,null,null,null,null," ",null,null,0,0,0,0,"",""]
[null,null,null,null,null," ",null,null,0,0,0,0,"",""]
[null,null,null,null,null," ",null,null,0,0,0,0,"",""]
[null,null,null,null,null," ",null,null,0,0,0,0,"",""]
[null,null,null,null,null," ",null,null,0,0,0,0,"",""]
[null,null,null,null,null," ",null,null,0,0,0,0,"",""]
[null,null,null,null,null," ",null,null,0,0,0,0,"",""]
[null,null,null,null,null," ",null,null,0,0,0,0,"",""]
[null,null,null,null,null," ",null,null,0,0,0,0,"",""]
[null,null,null,null,null," ",null,null,0,0,0,0,"",""]
[null,null,null,null,null," ",null,null,0,0,0,0,"",""]
[null,null,null,null,null," ",null,null,0,0,0,0,"",""]
[null,null,null,null,null," ",null,null,{"$f":"IF(H8647=0,0,D8647)","v":0},{"$f":"IF(H8647<>\"p\",0,D8647)","v":0},{"$f":"IF(H8647=0,0,E8647)","v":0},{"$f":"IF(H8647<>\"p\",0,E8647)","v":0},"",""]
[null,null,null,null,null," ",null,null,0,0,0,0,"",""]
[null,null,null,null,null,{"$f":"IF(D8655-E8655=0,\" \",F8654+D8655-E8655)","v":" "},null,null,0,0,0,0,"",""]
[null,null,null,null,null," ",null,null,0,0,0,0,"",""]
[null,null,null,null,null," ",null,null,0,0,0,0,"",""]
[null,null,null,null,null," ",null,null,0,0,0,0,"",""]
[null,null,null,null,null," ",null,null,0,0,0,0,"",""]
[null,null,null,null,null," ",null,null,0,0,0,0,"",""]
[null,null,null,null,null," ",null,null,0,0,0,0,"",""]
[null,null,null,null,null," ",null,null,0,0,0,0,"",""]
[null,null,null,null,null," ",null,null,0,0,0,0,"",""]
[null,null,null,null,null," ",null,null,0,0,0,0,"",""]
[null,null,null,null,null," ",null,null,0,0,0,0,"",""]
[null,null,null,null,null," ",null,null,0,0,0,0,"",""]
[null,null,null,null,null," ",null,null,0,0,0,0,"",""]
[null,null,null,null,null," ",null,null,0,0,0,0,"",""]
[null,null,null,null,null," ",null,null,0,0,0,0,"",""]
[null,null,null,null,null," ",null,null,0,0,0,0,"",""]
[null,null,null,null,null," ",null,null,0,0,0,0,"",""]
[null,null,null,null,null," ",null,null,0,0,0,0,"",""]
[null,null,null,null,null," ",null,null,0,0,0,0,"",""]
[null,null,null,null,null," ",null,null,0,0,0,0,"",""]
[null,null,null,null,null," ",null,null,0,0,0,0,"",""]
[null,null,null,null,null," ",null,null,0,0,0,0,"",""]
[null,null,null,null,null," ",null,null,0,0,0,0,"",""]
[null,null,null,null,null," ",null,null,0,0,0,0,"",""]
[null,null,null,null,null," ",null,null,0,0,0,0,"",""]
[null,null,null,null,null," ",null,null,0,0,0,0,"",""]
[null,null,null,null,null," ",null,null,0,0,0,0,"",""]
[null,null,null,null,null," ",null,null,0,0,0,0,"",""]
[null,null,null,null,null," ",null,null,0,0,0,0,"",""]
[null,null,null,null,null," ",null,null,0,0,0,0,"",""]
[null,null,null,null,null," ",null,null,0,0,0,0,"",""]
[null,null,null,null,null," ",null,null,0,0,0,0,"",""]
[null,null,null,null,null," ",null,null,{"$f":"IF(H8775=0,0,D8775)","v":0},{"$f":"IF(H8775<>\"p\",0,D8775)","v":0},{"$f":"IF(H8775=0,0,E8775)","v":0},{"$f":"IF(H8775<>\"p\",0,E8775)","v":0},"",""]
[null,null,null,null,null," ",null,null,0,0,0,0,"",""]
[null,null,null,null,null," ",null,null,0,0,0,0,"",""]
[null,null,null,null,null," ",null,null,0,0,0,0,"",""]
[null,null,null,null,null," ",null,null,0,0,0,0,"",""]
[null,null,null,null,null," ",null,null,0,0,0,0,"",""]
[null,null,null,null,null," ",null,null,0,0,0,0,"",""]
[null,null,null,null,null," ",null,null,0,0,0,0,"",""]
[null,null,null,null,null," ",null,null,0,0,0,0,"",""]
[null,null,null,null,null," ",null,null,0,0,0,0,"",""]
[null,null,null,null,null," ",null,null,0,0,0,0,"",""]
[null,null,null,null,null," ",null,null,0,0,0,0,"",""]
[null,null,null,null,null," ",null,null,0,0,0,0,"",""]
[null,null,null,null,null," ",null,null,0,0,0,0,"",""]
[null,null,null,null,null," ",null,null,0,0,0,0,"",""]
[null,null,null,null,null," ",null,null,0,0,0,0,"",""]
[null,null,null,null,null," ",null,null,0,0,0,0,"",""]
[null,null,null,null,null," ",null,null,0,0,0,0,"",""]
[null,null,null,null,null," ",null,null,0,0,0,0,"",""]
[null,null,null,null,null,{"$f":"IF(D8847-E8847=0,\" \",F8846+D8847-E8847)","v":" "},null,null,0,0,0,0,"",""]
[null,null,null,null,null," ",null,null,0,0,0,0,"",""]
[null,null,null,null,null," ",null,null,0,0,0,0,"",""]
[null,null,null,null,null," ",null,null,0,0,0,0,"",""]
[null,null,null,null,null," ",null,null,0,0,0,0,"",""]
[null,null,null,null,null," ",null,null,0,0,0,0,"",""]
[null,null,null,null,null," ",null,null,0,0,0,0,"",""]
[null,null,null,null,null," ",null,null,0,0,0,0,"",""]
[null,null,null,null,null," ",null,null,0,0,0,0,"",""]
[null,null,null,null,null," ",null,null,0,0,0,0,"",""]
[null,null,null,null,null," ",null,null,0,0,0,0,"",""]
[null,null,null,null,null," ",null,null,0,0,0,0,"",""]
[null,null,null,null,null," ",null,null,0,0,0,0,"",""]
[null,null,null,null,null," ",null,null,0,0,0,0,"",""]
[null,null,null,null,null," ",null,null,0,0,0,0,"",""]
[null,null,null,null,null," ",null,null,0,0,0,0,"",""]
[null,null,null,null,null," ",null,null,0,0,0,0,"",""]
[null,null,null,null,null," ",null,null,0,0,0,0,{"$f":"IF(A8912=0,\"\",YEAR(A8912))","v":""},{"$f":"IF(A8912=0,\"\",MONTH(A8912))","v":""}]
[null,null,null,null,null," ",null,null,0,0,0,0,"",""]
[null,null,null,null,null," ",null,null,0,0,0,0,"",""]
[null,null,null,null,null," ",null,null,0,0,0,0,"",""]
[null,null,null,null,null," ",null,null,0,0,0,0,"",""]
[null,null,null,null,null," ",null,null,0,0,0,0,"",""]
[null,null,null,null,null," ",null,null,0,0,0,0,"",""]
[null,null,null,null,null," ",null,null,0,0,0,0,"",""]
[null,null,null,null,null," ",null,null,0,0,0,0,"",""]
[null,null,null,null,null," ",null,null,0,0,0,0,"",""]
[null,null,null,null,null," ",null,null,0,0,0,0,"",""]
[null,null,null,null,null," ",null,null,0,0,0,0,"",""]
[null,null,null,null,null," ",null,null,0,0,0,0,"",""]
[null,null,null,null,null," ",null,null,0,0,0,0,"",""]
[null,null,null,null,null," ",null,null,0,0,0,0,"",""]
[null,null,null,null,null," ",null,null,{"$f":"IF(H8967=0,0,D8967)","v":0},{"$f":"IF(H8967<>\"p\",0,D8967)","v":0},{"$f":"IF(H8967=0,0,E8967)","v":0},{"$f":"IF(H8967<>\"p\",0,E8967)","v":0},"",""]
[null,null,null,null,null," ",null,null,0,0,0,0,"",""]
[null,null,null,null,null," ",null,null,0,0,0,0,{"$f":"IF(A8976=0,\"\",YEAR(A8976))","v":""},{"$f":"IF(A8976=0,\"\",MONTH(A8976))","v":""}]
[null,null,null,null,null," ",null,null,0,0,0,0,"",""]
[null,null,null,null,null," ",null,null,0,0,0,0,"",""]
[null,null,null,null,null," ",null,null,0,0,0,0,"",""]
[null,null,null,null,null," ",null,null,0,0,0,0,"",""]
[null,null,null,null,null," ",null,null,0,0,0,0,"",""]
[null,null,null,null,null," ",null,null,0,0,0,0,"",""]
[null,null,null,null,null," ",null,null,0,0,0,0,"",""]
[null,null,null,null,null," ",null,null,0,0,0,0,"",""]
[null,null,null,null,null," ",null,null,0,0,0,0,"",""]
[null,null,null,null,null," ",null,null,0,0,0,0,"",""]
[null,null,null,null,null," ",null,null,0,0,0,0,"",""]
[null,null,null,null,null," ",null,null,0,0,0,0,"",""]
[null,null,null,null,null," ",null,null,0,0,0,0,"",""]
[null,null,null,null,null," ",null,null,0,0,0,0,"",""]
[null,null,null,null,null," ",null,null,0,0,0,0,"",""]
[null,null,null,null,null," ",null,null,0,0,0,0,"",""]
[null,null,null,null,null," ",null,null,0,0,0,0,"",""]
[null,null,null,null,null," ",null,null,0,0,0,0,"",""]
[null,null,null,null,null," ",null,null,0,0,0,0,"",""]
[null,null,null,null,null," ",null,null,0,0,0,0,"",""]
[null,null,null,null,null," ",null,null,0,0,0,0,"",""]
[null,null,null,null,null," ",null,null,0,0,0,0,"",""]
[null,null,null,null,null," ",null,null,0,0,0,0,"",""]
[null,null,null,null,null," ",null,null,0,0,0,0,"",""]
[null,null,null,null,null," ",null,null,0,0,0,0,"",""]
[null,null,null,null,null," ",null,null,0,0,0,0,"",""]
[null,null,null,null,null," ",null,null,0,0,0,0,"",""]
[null,null,null,null,null," ",null,null,0,0,0,0,"",""]
[null,null,null,null,null," ",null,null,0,0,0,0,"",""]
[null,null,null,null,null," ",null,null,0,0,0,0,"",""]
[null,null,null,null,null," ",null,null,0,0,0,0,"",""]
[null,null,null,null,null," ",null,null,0,0,0,0,"",""]
[null,null,null,null,null," ",null,null,0,0,0,0,"",""]
[null,null,null,null,null," ",null,null,0,0,0,0,"",""]
[null,null,null,null,null," ",null,null,0,0,0,0,"",""]
[null,null,null,null,null," ",null,null,0,0,0,0,"",""]
[null,null,null,null,null," ",null,null,0,0,0,0,"",""]
[null,null,null,null,null," ",null,null,0,0,0,0,"",""]
[null,null,null,null,null," ",null,null,0,0,0,0,"",""]
[null,null,null,null,null," ",null,null,0,0,0,0,"",""]
[null,null,null,null,null," ",null,null,0,0,0,0,"",""]
[null,null,null,null,null," ",null,null,0,0,0,0,"",""]
[null,null,null,null,null," ",null,null,0,0,0,0,"",""]
[null,null,null,null,null," ",null,null,0,0,0,0,"",""]
[null,null,null,null,null," ",null,null,0,0,0,0,"",""]
[null,null,null,null,null," ",null,null,0,0,0,0,"",""]
[null,null,null,null,null," ",null,null,0,0,0,0,"",""]
[null,null,null,null,null," ",null,null,0,0,0,0,"",""]
[null,null,null,null,null," ",null,null,0,0,0,0,"",""]
[null,null,null,null,null," ",null,null,0,0,0,0,"",""]
[null,null,null,null,null,{"$f":"IF(D9167-E9167=0,\" \",F9166+D9167-E9167)","v":" "},null,null,0,0,0,0,"",""]
[null,null,null,null,null," ",null,null,0,0,0,0,"",""]
[null,null,null,null,null," ",null,null,0,0,0,0,"",""]
[null,null,null,null,null," ",null,null,0,0,0,0,"",""]
[null,null,null,null,null," ",null,null,0,0,0,0,"",""]
[null,null,null,null,null," ",null,null,0,0,0,0,"",""]
[null,null,null,null,null," ",null,null,0,0,0,0,"",""]
[null,null,null,null,null," ",null,null,0,0,0,0,"",""]
[null,null,null,null,null," ",null,null,0,0,0,0,"",""]
[null,null,null,null,null," ",null,null,0,0,0,0,"",""]
[null,null,null,null,null," ",null,null,0,0,0,0,"",""]
[null,null,null,null,null," ",null,null,0,0,0,0,"",""]
[null,null,null,null,null," ",null,null,0,0,0,0,"",""]
[null,null,null,null,null," ",null,null,0,0,0,0,"",""]
[null,null,null,null,null," ",null,null,0,0,0,0,"",""]
[null,null,null,null,null," ",null,null,0,0,0,0,"",""]
[null,null,null,null,null," ",null,null,0,0,0,0,"",""]
[null,null,null,null,null," ",null,null,0,0,0,0,{"$f":"IF(A9232=0,\"\",YEAR(A9232))","v":""},{"$f":"IF(A9232=0,\"\",MONTH(A9232))","v":""}]
[null,null,null,null,null," ",null,null,0,0,0,0,"",""]
[null,null,null,null,null," ",null,null,0,0,0,0,"",""]
[null,null,null,null,null," ",null,null,0,0,0,0,"",""]
[null,null,null,null,null," ",null,null,0,0,0,0,"",""]
[null,null,null,null,null," ",null,null,0,0,0,0,"",""]
[null,null,null,null,null," ",null,null,0,0,0,0,"",""]
[null,null,null,null,null," ",null,null,0,0,0,0,"",""]
[null,null,null,null,null," ",null,null,0,0,0,0,"",""]
[null,null,null,null,null," ",null,null,0,0,0,0,"",""]
[null,null,null,null,null," ",null,null,0,0,0,0,"",""]
[null,null,null,null,null," ",null,null,0,0,0,0,"",""]
[null,null,null,null,null," ",null,null,0,0,0,0,"",""]
[null,null,null,null,null," ",null,null,0,0,0,0,"",""]
[null,null,null,null,null," ",null,null,0,0,0,0,"",""]
[null,null,null,null,null," ",null,null,{"$f":"IF(H9287=0,0,D9287)","v":0},{"$f":"IF(H9287<>\"p\",0,D9287)","v":0},{"$f":"IF(H9287=0,0,E9287)","v":0},{"$f":"IF(H9287<>\"p\",0,E9287)","v":0},"",""]
[null,null,null,null,null," ",null,null,0,0,0,0,"",""]
[null,null,null,null,null,{"$f":"IF(D9295-E9295=0,\" \",F9294+D9295-E9295)","v":" "},null,null,0,0,0,0,"",""]
[null,null,null,null,null," ",null,null,0,0,0,0,"",""]
[null,null,null,null,null," ",null,null,0,0,0,0,"",""]
[null,null,null,null,null," ",null,null,0,0,0,0,"",""]
[null,null,null,null,null," ",null,null,0,0,0,0,"",""]
[null,null,null,null,null," ",null,null,0,0,0,0,"",""]
[null,null,null,null,null," ",null,null,0,0,0,0,"",""]
[null,null,null,null,null," ",null,null,0,0,0,0,"",""]
[null,null,null,null,null," ",null,null,0,0,0,0,"",""]
[null,null,null,null,null," ",null,null,0,0,0,0,"",""]
[null,null,null,null,null," ",null,null,0,0,0,0,"",""]
[null,null,null,null,null," ",null,null,0,0,0,0,"",""]
[null,null,null,null,null," ",null,null,0,0,0,0,"",""]
[null,null,null,null,null," ",null,null,0,0,0,0,"",""]
[null,null,null,null,null," ",null,null,0,0,0,0,"",""]
[null,null,null,null,null," ",null,null,0,0,0,0,"",""]
[null,null,null,null,null," ",null,null,0,0,0,0,"",""]
[null,null,null,null,null," ",null,null,0,0,0,0,"",""]
[null,null,null,null,null," ",null,null,0,0,0,0,"",""]
[null,null,null,null,null," ",null,null,0,0,0,0,"",""]
[null,null,null,null,null," ",null,null,0,0,0,0,"",""]
[null,null,null,null,null," ",null,null,0,0,0,0,"",""]
[null,null,null,null,null," ",null,null,0,0,0,0,"",""]
[null,null,null,null,null," ",null,null,0,0,0,0,"",""]
[null,null,null,null,null," ",null,null,0,0,0,0,"",""]
[null,null,null,null,null," ",null,null,0,0,0,0,"",""]
[null,null,null,null,null," ",null,null,0,0,0,0,"",""]
[null,null,null,null,null," ",null,null,0,0,0,0,"",""]
[null,null,null,null,null," ",null,null,0,0,0,0,"",""]
[null,null,null,null,null," ",null,null,0,0,0,0,"",""]
[null,null,null,null,null," ",null,null,0,0,0,0,"",""]
[null,null,null,null,null," ",null,null,0,0,0,0,"",""]
[null,null,null,null,null," ",null,null,{"$f":"IF(H9415=0,0,D9415)","v":0},{"$f":"IF(H9415<>\"p\",0,D9415)","v":0},{"$f":"IF(H9415=0,0,E9415)","v":0},{"$f":"IF(H9415<>\"p\",0,E9415)","v":0},"",""]
[null,null,null,null,null," ",null,null,0,0,0,0,"",""]
[null,null,null,null,null," ",null,null,0,0,0,0,"",""]
[null,null,null,null,null," ",null,null,0,0,0,0,"",""]
[null,null,null,null,null," ",null,null,0,0,0,0,"",""]
[null,null,null,null,null," ",null,null,0,0,0,0,"",""]
[null,null,null,null,null," ",null,null,0,0,0,0,"",""]
[null,null,null,null,null," ",null,null,0,0,0,0,"",""]
[null,null,null,null,null," ",null,null,0,0,0,0,"",""]
[null,null,null,null,null," ",null,null,0,0,0,0,"",""]
[null,null,null,null,null," ",null,null,0,0,0,0,"",""]
[null,null,null,null,null," ",null,null,0,0,0,0,"",""]
[null,null,null,null,null," ",null,null,0,0,0,0,"",""]
[null,null,null,null,null," ",null,null,0,0,0,0,"",""]
[null,null,null,null,null," ",null,null,0,0,0,0,"",""]
[null,null,null,null,null," ",null,null,0,0,0,0,"",""]
[null,null,null,null,null," ",null,null,0,0,0,0,"",""]
[null,null,null,null,null," ",null,null,0,0,0,0,"",""]
[null,null,null,null,null," ",null,null,0,0,0,0,"",""]
[null,null,null,null,null,{"$f":"IF(D9487-E9487=0,\" \",F9486+D9487-E9487)","v":" "},null,null,0,0,0,0,"",""]
[null,null,null,null,null," ",null,null,0,0,0,0,"",""]
[null,null,null,null,null," ",null,null,0,0,0,0,"",""]
[null,null,null,null,null," ",null,null,0,0,0,0,"",""]
[null,null,null,null,null," ",null,null,0,0,0,0,"",""]
[null,null,null,null,null," ",null,null,0,0,0,0,"",""]
[null,null,null,null,null," ",null,null,0,0,0,0,"",""]
[null,null,null,null,null," ",null,null,0,0,0,0,"",""]
[null,null,null,null,null," ",null,null,0,0,0,0,"",""]
[null,null,null,null,null," ",null,null,0,0,0,0,"",""]
[null,null,null,null,null," ",null,null,0,0,0,0,"",""]
[null,null,null,null,null," ",null,null,0,0,0,0,"",""]
[null,null,null,null,null," ",null,null,0,0,0,0,"",""]
[null,null,null,null,null," ",null,null,0,0,0,0,"",""]
[null,null,null,null,null," ",null,null,0,0,0,0,"",""]
[null,null,null,null,null," ",null,null,0,0,0,0,"",""]
[null,null,null,null,null," ",null,null,0,0,0,0,"",""]
[null,null,null,null,null," ",null,null,0,0,0,0,"",""]
[null,null,null,null,null," ",null,null,0,0,0,0,"",""]
[null,null,null,null,null," ",null,null,0,0,0,0,"",""]
[null,null,null,null,null," ",null,null,0,0,0,0,"",""]
[null,null,null,null,null," ",null,null,0,0,0,0,"",""]
[null,null,null,null,null," ",null,null,0,0,0,0,"",""]
[null,null,null,null,null," ",null,null,0,0,0,0,"",""]
[null,null,null,null,null," ",null,null,0,0,0,0,"",""]
[null,null,null,null,null," ",null,null,0,0,0,0,"",""]
[null,null,null,null,null," ",null,null,0,0,0,0,"",""]
[null,null,null,null,null," ",null,null,0,0,0,0,"",""]
[null,null,null,null,null," ",null,null,0,0,0,0,"",""]
[null,null,null,null,null," ",null,null,0,0,0,0,"",""]
[null,null,null,null,null," ",null,null,0,0,0,0,"",""]
[null,null,null,null,null," ",null,null,0,0,0,0,"",""]
[null,null,null,null,null," ",null,null,0,0,0,0,"",""]
[null,null,null,null,null," ",null,null,0,0,0,0,"",""]
[null,null,null,null,null," ",null,null,0,0,0,0,"",""]
[null,null,null,null,null," ",null,null,0,0,0,0,"",""]
[null,null,null,null,null," ",null,null,0,0,0,0,"",""]
[null,null,null,null,null," ",null,null,0,0,0,0,"",""]
[null,null,null,null,null," ",null,null,0,0,0,0,"",""]
[null,null,null,null,null," ",null,null,0,0,0,0,"",""]
[null,null,null,null,null," ",null,null,0,0,0,0,"",""]
[null,null,null,null,null," ",null,null,0,0,0,0,"",""]
[null,null,null,null,null," ",null,null,{"$f":"IF(H9543=0,0,D9543)","v":0},{"$f":"IF(H9543<>\"p\",0,D9543)","v":0},{"$f":"IF(H9543=0,0,E9543)","v":0},{"$f":"IF(H9543<>\"p\",0,E9543)","v":0},"",""]
[null,null,null,null,null," ",null,null,0,0,0,0,"",""]
[null,null,null,null,null," ",null,null,0,0,0,0,"",""]
[null,null,null,null,null," ",null,null,0,0,0,0,"",""]
[null,null,null,null,null," ",null,null,0,0,0,0,"",""]
[null,null,null,null,null," ",null,null,0,0,0,0,"",""]
[null,null,null,null,null," ",null,null,0,0,0,0,"",""]
[null,null,null,null,null," ",null,null,0,0,0,0,"",""]
[null,null,null,null,null,{"$f":"IF(D9551-E9551=0,\" \",F9550+D9551-E9551)","v":" "},null,null,0,0,0,0,"",""]
[null,null,null,null,null," ",null,null,0,0,0,0,{"$f":"IF(A9552=0,\"\",YEAR(A9552))","v":""},{"$f":"IF(A9552=0,\"\",MONTH(A9552))","v":""}]
[null,null,null,null,null," ",null,null,0,0,0,0,"",""]
[null,null,null,null,null," ",null,null,0,0,0,0,"",""]
[null,null,null,null,null," ",null,null,0,0,0,0,"",""]
[null,null,null,null,null," ",null,null,0,0,0,0,"",""]
[null,null,null,null,null," ",null,null,0,0,0,0,"",""]
[null,null,null,null,null," ",null,null,0,0,0,0,"",""]
[null,null,null,null,null," ",null,null,0,0,0,0,"",""]
[null,null,null,null,null," ",null,null,0,0,0,0,"",""]
[null,null,null,null,null," ",null,null,0,0,0,0,"",""]
[null,null,null,null,null," ",null,null,0,0,0,0,"",""]
[null,null,null,null,null," ",null,null,0,0,0,0,"",""]
[null,null,null,null,null," ",null,null,0,0,0,0,"",""]
[null,null,null,null,null," ",null,null,0,0,0,0,"",""]
[null,null,null,null,null," ",null,null,0,0,0,0,"",""]
[null,null,null,null,null," ",null,null,0,0,0,0,"",""]
[null,null,null,null,null," ",null,null,0,0,0,0,"",""]
[null,null,null,null,null," ",null,null,0,0,0,0,"",""]
[null,null,null,null,null," ",null,null,0,0,0,0,"",""]
[null,null,null,null,null," ",null,null,0,0,0,0,"",""]
[null,null,null,null,null," ",null,null,0,0,0,0,"",""]
[null,null,null,null,null," ",null,null,0,0,0,0,"",""]
[null,null,null,null,null," ",null,null,0,0,0,0,"",""]
[null,null,null,null,null," ",null,null,0,0,0,0,"",""]
[null,null,null,null,null," ",null,null,0,0,0,0,"",""]
[null,null,null,null,null," ",null,null,0,0,0,0,"",""]
[null,null,null,null,null," ",null,null,0,0,0,0,"",""]
[null,null,null,null,null," ",null,null,0,0,0,0,"",""]
[null,null,null,null,null," ",null,null,0,0,0,0,"",""]
[null,null,null,null,null," ",null,null,0,0,0,0,"",""]
[null,null,null,null,null," ",null,null,0,0,0,0,"",""]
[null,null,null,null,null," ",null,null,0,0,0,0,"",""]
[null,null,null,null,null," ",null,null,0,0,0,0,"",""]
[null,null,null,null,null," ",null,null,0,0,0,0,"",""]
[null,null,null,null,null," ",null,null,0,0,0,0,"",""]
[null,null,null,null,null," ",null,null,0,0,0,0,"",""]
[null,null,null,null,null," ",null,null,0,0,0,0,"",""]
[null,null,null,null,null," ",null,null,0,0,0,0,"",""]
[null,null,null,null,null," ",null,null,0,0,0,0,"",""]
[null,null,null,null,null," ",null,null,0,0,0,0,"",""]
[null,null,null,null,null," ",null,null,0,0,0,0,"",""]
[null,null,null,null,null," ",null,null,0,0,0,0,"",""]
[null,null,null,null,null," ",null,null,0,0,0,0,"",""]
[null,null,null,null,null," ",null,null,0,0,0,0,"",""]
[null,null,null,null,null," ",null,null,0,0,0,0,"",""]
[null,null,null,null,null," ",null,null,0,0,0,0,"",""]
[null,null,null,null,null," ",null,null,0,0,0,0,"",""]
[null,null,null,null,null," ",null,null,0,0,0,0,"",""]
[null,null,null,null,null," ",null,null,0,0,0,0,"",""]
[null,null,null,null,null," ",null,null,0,0,0,0,"",""]
[null,null,null,null,null," ",null,null,0,0,0,0,"",""]
[null,null,null,null,null," ",null,null,0,0,0,0,"",""]
[null,null,null,null,null," ",null,null,0,0,0,0,"",""]
[null,null,null,null,null," ",null,null,0,0,0,0,"",""]
[null,null,null,null,null," ",null,null,0,0,0,0,"",""]
[null,null,null,null,null," ",null,null,{"$f":"IF(H9607=0,0,D9607)","v":0},{"$f":"IF(H9607<>\"p\",0,D9607)","v":0},{"$f":"IF(H9607=0,0,E9607)","v":0},{"$f":"IF(H9607<>\"p\",0,E9607)","v":0},"",""]
[null,null,null,null,null," ",null,null,0,0,0,0,"",""]
[null,null,null,null,null," ",null,null,0,0,0,0,"",""]
[null,null,null,null,null," ",null,null,0,0,0,0,"",""]
[null,null,null,null,null," ",null,null,0,0,0,0,"",""]
[null,null,null,null,null," ",null,null,0,0,0,0,"",""]
[null,null,null,null,null," ",null,null,0,0,0,0,"",""]
[null,null,null,null,null," ",null,null,0,0,0,0,"",""]
[null,null,null,null,null,{"$f":"IF(D9615-E9615=0,\" \",F9614+D9615-E9615)","v":" "},null,null,0,0,0,0,"",""]
[null,null,null,null,null," ",null,null,0,0,0,0,{"$f":"IF(A9616=0,\"\",YEAR(A9616))","v":""},{"$f":"IF(A9616=0,\"\",MONTH(A9616))","v":""}]
[null,null,null,null,null," ",null,null,0,0,0,0,"",""]
[null,null,null,null,null," ",null,null,0,0,0,0,"",""]
[null,null,null,null,null," ",null,null,0,0,0,0,"",""]
[null,null,null,null,null," ",null,null,0,0,0,0,"",""]
[null,null,null,null,null," ",null,null,0,0,0,0,"",""]
[null,null,null,null,null," ",null,null,0,0,0,0,"",""]
[null,null,null,null,null," ",null,null,0,0,0,0,"",""]
[null,null,null,null,null," ",null,null,0,0,0,0,"",""]
[null,null,null,null,null," ",null,null,0,0,0,0,"",""]
[null,null,null,null,null," ",null,null,0,0,0,0,"",""]
[null,null,null,null,null," ",null,null,0,0,0,0,"",""]
[null,null,null,null,null," ",null,null,0,0,0,0,"",""]
[null,null,null,null,null," ",null,null,0,0,0,0,"",""]
[null,null,null,null,null," ",null,null,0,0,0,0,"",""]
[null,null,null,null,null," ",null,null,0,0,0,0,"",""]
[null,null,null,null,null," ",null,null,0,0,0,0,"",""]
[null,null,null,null,null," ",null,null,0,0,0,0,"",""]
[null,null,null,null,null," ",null,null,0,0,0,0,"",""]
[null,null,null,null,null," ",null,null,0,0,0,0,"",""]
[null,null,null,null,null," ",null,null,0,0,0,0,"",""]
[null,null,null,null,null," ",null,null,0,0,0,0,"",""]
[null,null,null,null,null," ",null,null,0,0,0,0,"",""]
[null,null,null,null,null," ",null,null,0,0,0,0,"",""]
[null,null,null,null,null," ",null,null,0,0,0,0,"",""]
[null,null,null,null,null," ",null,null,0,0,0,0,"",""]
[null,null,null,null,null," ",null,null,0,0,0,0,"",""]
[null,null,null,null,null," ",null,null,0,0,0,0,"",""]
[null,null,null,null,null," ",null,null,0,0,0,0,"",""]
[null,null,null,null,null," ",null,null,0,0,0,0,"",""]
[null,null,null,null,null," ",null,null,0,0,0,0,"",""]
[null,null,null,null,null," ",null,null,0,0,0,0,"",""]
[null,null,null,null,null," ",null,null,0,0,0,0,"",""]
[null,null,null,null,null," ",null,null,0,0,0,0,"",""]
[null,null,null,null,null," ",null,null,0,0,0,0,"",""]
[null,null,null,null,null," ",null,null,0,0,0,0,"",""]
[null,null,null,null,null," ",null,null,0,0,0,0,"",""]
[null,null,null,null,null," ",null,null,0,0,0,0,"",""]
[null,null,null,null,null," ",null,null,0,0,0,0,"",""]
[null,null,null,null,null," ",null,null,0,0,0,0,"",""]
[null,null,null,null,null," ",null,null,0,0,0,0,"",""]
[null,null,null,null,null," ",null,null,0,0,0,0,"",""]
[null,null,null,null,null," ",null,null,0,0,0,0,"",""]
[null,null,null,null,null," ",null,null,0,0,0,0,"",""]
[null,null,null,null,null," ",null,null,0,0,0,0,"",""]
[null,null,null,null,null," ",null,null,0,0,0,0,"",""]
[null,null,null,null,null," ",null,null,0,0,0,0,"",""]
[null,null,null,null,null," ",null,null,0,0,0,0,"",""]
[null,null,null,null,null," ",null,null,0,0,0,0,"",""]
[null,null,null,null,null," ",null,null,0,0,0,0,"",""]
[null,null,null,null,null," ",null,null,0,0,0,0,"",""]
[null,null,null,null,null," ",null,null,0,0,0,0,"",""]
[null,null,null,null,null," ",null,null,0,0,0,0,"",""]
[null,null,null,null,null," ",null,null,0,0,0,0,"",""]
[null,null,null,null,null," ",null,null,0,0,0,0,"",""]
[null,null,null,null,null," ",null,null,{"$f":"IF(H9671=0,0,D9671)","v":0},{"$f":"IF(H9671<>\"p\",0,D9671)","v":0},{"$f":"IF(H9671=0,0,E9671)","v":0},{"$f":"IF(H9671<>\"p\",0,E9671)","v":0},"",""]
[null,null,null,null,null," ",null,null,0,0,0,0,"",""]
[null,null,null,null,null," ",null,null,0,0,0,0,"",""]
[null,null,null,null,null," ",null,null,0,0,0,0,"",""]
[null,null,null,null,null," ",null,null,0,0,0,0,"",""]
[null,null,null,null,null," ",null,null,0,0,0,0,"",""]
[null,null,null,null,null," ",null,null,0,0,0,0,"",""]
[null,null,null,null,null," ",null,null,0,0,0,0,"",""]
[null,null,null,null,null,{"$f":"IF(D9679-E9679=0,\" \",F9678+D9679-E9679)","v":" "},null,null,0,0,0,0,"",""]
[null,null,null,null,null," ",null,null,0,0,0,0,{"$f":"IF(A9680=0,\"\",YEAR(A9680))","v":""},{"$f":"IF(A9680=0,\"\",MONTH(A9680))","v":""}]
[null,null,null,null,null," ",null,null,0,0,0,0,"",""]
[null,null,null,null,null," ",null,null,0,0,0,0,"",""]
[null,null,null,null,null," ",null,null,0,0,0,0,"",""]
[null,null,null,null,null," ",null,null,0,0,0,0,"",""]
[null,null,null,null,null," ",null,null,0,0,0,0,"",""]
[null,null,null,null,null," ",null,null,0,0,0,0,"",""]
[null,null,null,null,null," ",null,null,0,0,0,0,"",""]
[null,null,null,null,null," ",null,null,0,0,0,0,"",""]
[null,null,null,null,null," ",null,null,0,0,0,0,"",""]
[null,null,null,null,null," ",null,null,0,0,0,0,"",""]
[null,null,null,null,null," ",null,null,0,0,0,0,"",""]
[null,null,null,null,null," ",null,null,0,0,0,0,"",""]
[null,null,null,null,null," ",null,null,0,0,0,0,"",""]
[null,null,null,null,null," ",null,null,0,0,0,0,"",""]
[null,null,null,null,null," ",null,null,0,0,0,0,"",""]
[null,null,null,null,null," ",null,null,0,0,0,0,"",""]
[null,null,null,null,null," ",null,null,0,0,0,0,"",""]
[null,null,null,null,null," ",null,null,0,0,0,0,"",""]
[null,null,null,null,null," ",null,null,0,0,0,0,"",""]
[null,null,null,null,null," ",null,null,0,0,0,0,"",""]
[null,null,null,null,null," ",null,null,0,0,0,0,"",""]
[null,null,null,null,null," ",null,null,0,0,0,0,"",""]
[null,null,null,null,null," ",null,null,0,0,0,0,"",""]
[null,null,null,null,null," ",null,null,0,0,0,0,"",""]
[null,null,null,null,null," ",null,null,0,0,0,0,"",""]
[null,null,null,null,null," ",null,null,0,0,0,0,"",""]
[null,null,null,null,null," ",null,null,0,0,0,0,"",""]
[null,null,null,null,null," ",null,null,0,0,0,0,"",""]
[null,null,null,null,null," ",null,null,0,0,0,0,"",""]
[null,null,null,null,null," ",null,null,0,0,0,0,"",""]
[null,null,null,null,null," ",null,null,0,0,0,0,"",""]
[null,null,null,null,null," ",null,null,0,0,0,0,"",""]
[null,null,null,null,null," ",null,null,0,0,0,0,"",""]
[null,null,null,null,null," ",null,null,0,0,0,0,"",""]
[null,null,null,null,null," ",null,null,0,0,0,0,"",""]
[null,null,null,null,null," ",null,null,0,0,0,0,"",""]
[null,null,null,null,null," ",null,null,0,0,0,0,"",""]
[null,null,null,null,null," ",null,null,0,0,0,0,"",""]
[null,null,null,null,null," ",null,null,0,0,0,0,"",""]
[null,null,null,null,null," ",null,null,0,0,0,0,"",""]
[null,null,null,null,null," ",null,null,0,0,0,0,"",""]
[null,null,null,null,null," ",null,null,0,0,0,0,"",""]
[null,null,null,null,null," ",null,null,0,0,0,0,"",""]
[null,null,null,null,null," ",null,null,0,0,0,0,"",""]
[null,null,null,null,null," ",null,null,0,0,0,0,"",""]
[null,null,null,null,null," ",null,null,0,0,0,0,"",""]
[null,null,null,null,null," ",null,null,0,0,0,0,"",""]
[null,null,null,null,null," ",null,null,0,0,0,0,"",""]
[null,null,null,null,null," ",null,null,0,0,0,0,"",""]
[null,null,null,null,null," ",null,null,0,0,0,0,"",""]
[null,null,null,null,null," ",null,null,0,0,0,0,"",""]
[null,null,null,null,null," ",null,null,0,0,0,0,"",""]
[null,null,null,null,null," ",null,null,0,0,0,0,"",""]
[null,null,null,null,null," ",null,null,0,0,0,0,"",""]
[null,null,null,null,null," ",null,null,{"$f":"IF(H9735=0,0,D9735)","v":0},{"$f":"IF(H9735<>\"p\",0,D9735)","v":0},{"$f":"IF(H9735=0,0,E9735)","v":0},{"$f":"IF(H9735<>\"p\",0,E9735)","v":0},"",""]
[null,null,null,null,null," ",null,null,0,0,0,0,"",""]
[null,null,null,null,null," ",null,null,0,0,0,0,"",""]
[null,null,null,null,null," ",null,null,0,0,0,0,"",""]
[null,null,null,null,null," ",null,null,0,0,0,0,"",""]
[null,null,null,null,null," ",null,null,0,0,0,0,"",""]
[null,null,null,null,null," ",null,null,0,0,0,0,"",""]
[null,null,null,null,null," ",null,null,0,0,0,0,"",""]
[null,null,null,null,null,{"$f":"IF(D9743-E9743=0,\" \",F9742+D9743-E9743)","v":" "},null,null,0,0,0,0,"",""]
[null,null,null,null,null," ",null,null,0,0,0,0,{"$f":"IF(A9744=0,\"\",YEAR(A9744))","v":""},{"$f":"IF(A9744=0,\"\",MONTH(A9744))","v":""}]
[null,null,null,null,null," ",null,null,0,0,0,0,"",""]
[null,null,null,null,null," ",null,null,0,0,0,0,"",""]
[null,null,null,null,null," ",null,null,0,0,0,0,"",""]
[null,null,null,null,null," ",null,null,0,0,0,0,"",""]
[null,null,null,null,null," ",null,null,0,0,0,0,"",""]
[null,null,null,null,null," ",null,null,0,0,0,0,"",""]
[null,null,null,null,null," ",null,null,0,0,0,0,"",""]
[null,null,null,null,null," ",null,null,0,0,0,0,"",""]
[null,null,null,null,null," ",null,null,0,0,0,0,"",""]
[null,null,null,null,null," ",null,null,0,0,0,0,"",""]
[null,null,null,null,null," ",null,null,0,0,0,0,"",""]
[null,null,null,null,null," ",null,null,0,0,0,0,"",""]
[null,null,null,null,null," ",null,null,0,0,0,0,"",""]
[null,null,null,null,null," ",null,null,0,0,0,0,"",""]
[null,null,null,null,null," ",null,null,0,0,0,0,"",""]
[null,null,null,null,null," ",null,null,0,0,0,0,"",""]
[null,null,null,null,null," ",null,null,0,0,0,0,"",""]
[null,null,null,null,null," ",null,null,0,0,0,0,"",""]
[null,null,null,null,null," ",null,null,0,0,0,0,"",""]
[null,null,null,null,null," ",null,null,0,0,0,0,"",""]
[null,null,null,null,null," ",null,null,0,0,0,0,"",""]
[null,null,null,null,null," ",null,null,0,0,0,0,"",""]
[null,null,null,null,null," ",null,null,0,0,0,0,"",""]
[null,null,null,null,null," ",null,null,0,0,0,0,"",""]
[null,null,null,null,null," ",null,null,0,0,0,0,"",""]
[null,null,null,null,null," ",null,null,0,0,0,0,"",""]
[null,null,null,null,null," ",null,null,0,0,0,0,"",""]
[null,null,null,null,null," ",null,null,0,0,0,0,"",""]
[null,null,null,null,null," ",null,null,0,0,0,0,"",""]
[null,null,null,null,null," ",null,null,0,0,0,0,"",""]
[null,null,null,null,null," ",null,null,0,0,0,0,"",""]
[null,null,null,null,null," ",null,null,0,0,0,0,"",""]
[null,null,null,null,null," ",null,null,0,0,0,0,"",""]
[null,null,null,null,null," ",null,null,0,0,0,0,"",""]
[null,null,null,null,null," ",null,null,0,0,0,0,"",""]
[null,null,null,null,null," ",null,null,0,0,0,0,"",""]
[null,null,null,null,null," ",null,null,0,0,0,0,"",""]
[null,null,null,null,null," ",null,null,0,0,0,0,"",""]
[null,null,null,null,null," ",null,null,0,0,0,0,"",""]
[null,null,null,null,null," ",null,null,0,0,0,0,"",""]
[null,null,null,null,null," ",null,null,0,0,0,0,"",""]
[null,null,null,null,null," ",null,null,0,0,0,0,"",""]
[null,null,null,null,null," ",null,null,0,0,0,0,"",""]
[null,null,null,null,null," ",null,null,0,0,0,0,"",""]
[null,null,null,null,null," ",null,null,0,0,0,0,"",""]
[null,null,null,null,null," ",null,null,0,0,0,0,"",""]
[null,null,null,null,null," ",null,null,0,0,0,0,"",""]
[null,null,null,null,null," ",null,null,0,0,0,0,"",""]
[null,null,null,null,null," ",null,null,0,0,0,0,"",""]
[null,null,null,null,null," ",null,null,0,0,0,0,"",""]
[null,null,null,null,null," ",null,null,0,0,0,0,"",""]
[null,null,null,null,null," ",null,null,0,0,0,0,"",""]
[null,null,null,null,null," ",null,null,0,0,0,0,"",""]
[null,null,null,null,null," ",null,null,0,0,0,0,"",""]
[null,null,null,null,null," ",null,null,{"$f":"IF(H9799=0,0,D9799)","v":0},{"$f":"IF(H9799<>\"p\",0,D9799)","v":0},{"$f":"IF(H9799=0,0,E9799)","v":0},{"$f":"IF(H9799<>\"p\",0,E9799)","v":0},"",""]
[null,null,null,null,null," ",null,null,0,0,0,0,"",""]
[null,null,null,null,null," ",null,null,0,0,0,0,"",""]
[null,null,null,null,null," ",null,null,0,0,0,0,"",""]
[null,null,null,null,null," ",null,null,0,0,0,0,"",""]
[null,null,null,null,null," ",null,null,0,0,0,0,"",""]
[null,null,null,null,null," ",null,null,0,0,0,0,"",""]
[null,null,null,null,null," ",null,null,0,0,0,0,"",""]
[null,null,null,null,null,{"$f":"IF(D9807-E9807=0,\" \",F9806+D9807-E9807)","v":" "},null,null,0,0,0,0,"",""]
[null,null,null,null,null," ",null,null,0,0,0,0,{"$f":"IF(A9808=0,\"\",YEAR(A9808))","v":""},{"$f":"IF(A9808=0,\"\",MONTH(A9808))","v":""}]
[null,null,null,null,null," ",null,null,0,0,0,0,"",""]
[null,null,null,null,null," ",null,null,0,0,0,0,"",""]
[null,null,null,null,null," ",null,null,0,0,0,0,"",""]
[null,null,null,null,null," ",null,null,0,0,0,0,"",""]
[null,null,null,null,null," ",null,null,0,0,0,0,"",""]
[null,null,null,null,null," ",null,null,0,0,0,0,"",""]
[null,null,null,null,null," ",null,null,0,0,0,0,"",""]
[null,null,null,null,null," ",null,null,0,0,0,0,"",""]
[null,null,null,null,null," ",null,null,0,0,0,0,"",""]
[null,null,null,null,null," ",null,null,0,0,0,0,"",""]
[null,null,null,null,null," ",null,null,0,0,0,0,"",""]
[null,null,null,null,null," ",null,null,0,0,0,0,"",""]
[null,null,null,null,null," ",null,null,0,0,0,0,"",""]
[null,null,null,null,null," ",null,null,0,0,0,0,"",""]
[null,null,null,null,null," ",null,null,0,0,0,0,"",""]
[null,null,null,null,null," ",null,null,0,0,0,0,"",""]
[null,null,null,null,null," ",null,null,0,0,0,0,"",""]
[null,null,null,null,null," ",null,null,0,0,0,0,"",""]
[null,null,null,null,null," ",null,null,0,0,0,0,"",""]
[null,null,null,null,null," ",null,null,0,0,0,0,"",""]
[null,null,null,null,null," ",null,null,0,0,0,0,"",""]
[null,null,null,null,null," ",null,null,0,0,0,0,"",""]
[null,null,null,null,null," ",null,null,0,0,0,0,"",""]
[null,null,null,null,null," ",null,null,0,0,0,0,"",""]
[null,null,null,null,null," ",null,null,0,0,0,0,"",""]
[null,null,null,null,null," ",null,null,0,0,0,0,"",""]
[null,null,null,null,null," ",null,null,0,0,0,0,"",""]
[null,null,null,null,null," ",null,null,0,0,0,0,"",""]
[null,null,null,null,null," ",null,null,0,0,0,0,"",""]
[null,null,null,null,null," ",null,null,0,0,0,0,"",""]
[null,null,null,null,null," ",null,null,0,0,0,0,"",""]
[null,null,null,null,null," ",null,null,0,0,0,0,"",""]
[null,null,null,null,null," ",null,null,0,0,0,0,"",""]
[null,null,null,null,null," ",null,null,0,0,0,0,"",""]
[null,null,null,null,null," ",null,null,0,0,0,0,"",""]
[null,null,null,null,null," ",null,null,0,0,0,0,"",""]
[null,null,null,null,null," ",null,null,0,0,0,0,"",""]
[null,null,null,null,null," ",null,null,0,0,0,0,"",""]
[null,null,null,null,null," ",null,null,0,0,0,0,"",""]
[null,null,null,null,null," ",null,null,0,0,0,0,"",""]
[null,null,null,null,null," ",null,null,0,0,0,0,"",""]
[null,null,null,null,null," ",null,null,0,0,0,0,"",""]
[null,null,null,null,null," ",null,null,0,0,0,0,"",""]
[null,null,null,null,null," ",null,null,0,0,0,0,"",""]
[null,null,null,null,null," ",null,null,0,0,0,0,"",""]
[null,null,null,null,null," ",null,null,0,0,0,0,"",""]
[null,null,null,null,null," ",null,null,0,0,0,0,"",""]
[null,null,null,null,null," ",null,null,0,0,0,0,"",""]
[null,null,null,null,null," ",null,null,0,0,0,0,"",""]
[null,null,null,null,null," ",null,null,0,0,0,0,"",""]
[null,null,null,null,null," ",null,null,0,0,0,0,"",""]
[null,null,null,null,null," ",null,null,0,0,0,0,"",""]
[null,null,null,null,null," ",null,null,0,0,0,0,"",""]
[null,null,null,null,null," ",null,null,0,0,0,0,"",""]
[null,null,null,null,null," ",null,null,{"$f":"IF(H9863=0,0,D9863)","v":0},{"$f":"IF(H9863<>\"p\",0,D9863)","v":0},{"$f":"IF(H9863=0,0,E9863)","v":0},{"$f":"IF(H9863<>\"p\",0,E9863)","v":0},"",""]
[null,null,null,null,null," ",null,null,0,0,0,0,"",""]
[null,null,null,null,null," ",null,null,0,0,0,0,"",""]
[null,null,null,null,null," ",null,null,0,0,0,0,"",""]
[null,null,null,null,null," ",null,null,0,0,0,0,"",""]
[null,null,null,null,null," ",null,null,0,0,0,0,"",""]
[null,null,null,null,null," ",null,null,0,0,0,0,"",""]
[null,null,null,null,null," ",null,null,0,0,0,0,"",""]
[null,null,null,null,null,{"$f":"IF(D9871-E9871=0,\" \",F9870+D9871-E9871)","v":" "},null,null,0,0,0,0,"",""]
[null,null,null,null,null," ",null,null,0,0,0,0,{"$f":"IF(A9872=0,\"\",YEAR(A9872))","v":""},{"$f":"IF(A9872=0,\"\",MONTH(A9872))","v":""}]
[null,null,null,null,null," ",null,null,0,0,0,0,"",""]
[null,null,null,null,null," ",null,null,0,0,0,0,"",""]
[null,null,null,null,null," ",null,null,0,0,0,0,"",""]
[null,null,null,null,null," ",null,null,0,0,0,0,"",""]
[null,null,null,null,null," ",null,null,0,0,0,0,"",""]
[null,null,null,null,null," ",null,null,0,0,0,0,"",""]
[null,null,null,null,null," ",null,null,0,0,0,0,"",""]
[null,null,null,null,null," ",null,null,0,0,0,0,"",""]
[null,null,null,null,null," ",null,null,0,0,0,0,"",""]
[null,null,null,null,null," ",null,null,0,0,0,0,"",""]
[null,null,null,null,null," ",null,null,0,0,0,0,"",""]
[null,null,null,null,null," ",null,null,0,0,0,0,"",""]
[null,null,null,null,null," ",null,null,0,0,0,0,"",""]
[null,null,null,null,null," ",null,null,0,0,0,0,"",""]
[null,null,null,null,null," ",null,null,0,0,0,0,"",""]
[null,null,null,null,null," ",null,null,0,0,0,0,"",""]
[null,null,null,null,null," ",null,null,0,0,0,0,"",""]
[null,null,null,null,null," ",null,null,0,0,0,0,"",""]
[null,null,null,null,null," ",null,null,0,0,0,0,"",""]
[null,null,null,null,null," ",null,null,0,0,0,0,"",""]
[null,null,null,null,null," ",null,null,0,0,0,0,"",""]
[null,null,null,null,null," ",null,null,0,0,0,0,"",""]
[null,null,null,null,null," ",null,null,0,0,0,0,"",""]
[null,null,null,null,null," ",null,null,0,0,0,0,"",""]
[null,null,null,null,null," ",null,null,0,0,0,0,"",""]
[null,null,null,null,null," ",null,null,0,0,0,0,"",""]
[null,null,null,null,null," ",null,null,0,0,0,0,"",""]
[null,null,null,null,null," ",null,null,0,0,0,0,"",""]
[null,null,null,null,null," ",null,null,0,0,0,0,"",""]
[null,null,null,null,null," ",null,null,0,0,0,0,"",""]
[null,null,null,null,null," ",null,null,0,0,0,0,"",""]
[null,null,null,null,null," ",null,null,0,0,0,0,"",""]
[null,null,null,null,null," ",null,null,0,0,0,0,"",""]
[null,null,null,null,null," ",null,null,0,0,0,0,"",""]
[null,null,null,null,null," ",null,null,0,0,0,0,"",""]
[null,null,null,null,null," ",null,null,0,0,0,0,"",""]
[null,null,null,null,null," ",null,null,0,0,0,0,"",""]
[null,null,null,null,null," ",null,null,0,0,0,0,"",""]
[null,null,null,null,null," ",null,null,0,0,0,0,"",""]
[null,null,null,null,null," ",null,null,0,0,0,0,"",""]
[null,null,null,null,null," ",null,null,0,0,0,0,"",""]
[null,null,null,null,null," ",null,null,0,0,0,0,"",""]
[null,null,null,null,null," ",null,null,0,0,0,0,"",""]
[null,null,null,null,null," ",null,null,0,0,0,0,"",""]
[null,null,null,null,null," ",null,null,0,0,0,0,"",""]
[null,null,null,null,null," ",null,null,0,0,0,0,"",""]
[null,null,null,null,null," ",null,null,0,0,0,0,"",""]
[null,null,null,null,null," ",null,null,0,0,0,0,"",""]
[null,null,null,null,null," ",null,null,0,0,0,0,"",""]
[null,null,null,null,null," ",null,null,0,0,0,0,"",""]
[null,null,null,null,null," ",null,null,0,0,0,0,"",""]
[null,null,null,null,null," ",null,null,0,0,0,0,"",""]
[null,null,null,null,null," ",null,null,0,0,0,0,"",""]
[null,null,null,null,null," ",null,null,0,0,0,0,"",""]
[null,null,null,null,null," ",null,null,{"$f":"IF(H9927=0,0,D9927)","v":0},{"$f":"IF(H9927<>\"p\",0,D9927)","v":0},{"$f":"IF(H9927=0,0,E9927)","v":0},{"$f":"IF(H9927<>\"p\",0,E9927)","v":0},"",""]
[null,null,null,null,null," ",null,null,0,0,0,0,"",""]
[null,null,null,null,null," ",null,null,0,0,0,0,"",""]
[null,null,null,null,null," ",null,null,0,0,0,0,"",""]
[null,null,null,null,null," ",null,null,0,0,0,0,"",""]
[null,null,null,null,null," ",null,null,0,0,0,0,"",""]
[null,null,null,null,null," ",null,null,0,0,0,0,"",""]
[null,null,null,null,null," ",null,null,0,0,0,0,"",""]
[null,null,null,null,null,{"$f":"IF(D9935-E9935=0,\" \",F9934+D9935-E9935)","v":" "},null,null,0,0,0,0,"",""]
[null,null,null,null,null," ",null,null,0,0,0,0,{"$f":"IF(A9936=0,\"\",YEAR(A9936))","v":""},{"$f":"IF(A9936=0,\"\",MONTH(A9936))","v":""}]
[null,null,null,null,null," ",null,null,0,0,0,0,"",""]
[null,null,null,null,null," ",null,null,0,0,0,0,"",""]
[null,null,null,null,null," ",null,null,0,0,0,0,"",""]
[null,null,null,null,null," ",null,null,0,0,0,0,"",""]
[null,null,null,null,null," ",null,null,0,0,0,0,"",""]
[null,null,null,null,null," ",null,null,0,0,0,0,"",""]
[null,null,null,null,null," ",null,null,0,0,0,0,"",""]
[null,null,null,null,null," ",null,null,0,0,0,0,"",""]
[null,null,null,null,null," ",null,null,0,0,0,0,"",""]
[null,null,null,null,null," ",null,null,0,0,0,0,"",""]
[null,null,null,null,null," ",null,null,0,0,0,0,"",""]
[null,null,null,null,null," ",null,null,0,0,0,0,"",""]
[null,null,null,null,null," ",null,null,0,0,0,0,"",""]
[null,null,null,null,null," ",null,null,0,0,0,0,"",""]
[null,null,null,null,null," ",null,null,0,0,0,0,"",""]
[null,null,null,null,null," ",null,null,0,0,0,0,"",""]
[null,null,null,null,null," ",null,null,0,0,0,0,"",""]
[null,null,null,null,null," ",null,null,0,0,0,0,"",""]
[null,null,null,null,null," ",null,null,0,0,0,0,"",""]
[null,null,null,null,null," ",null,null,0,0,0,0,"",""]
[null,null,null,null,null," ",null,null,0,0,0,0,"",""]
[null,null,null,null,null," ",null,null,0,0,0,0,"",""]
[null,null,null,null,null," ",null,null,0,0,0,0,"",""]
[null,null,null,null,null," ",null,null,0,0,0,0,"",""]
[null,null,null,null,null," ",null,null,0,0,0,0,"",""]
[null,null,null,null,null," ",null,null,0,0,0,0,"",""]
[null,null,null,null,null," ",null,null,0,0,0,0,"",""]
[null,null,null,null,null," ",null,null,0,0,0,0,"",""]
[null,null,null,null,null," ",null,null,0,0,0,0,"",""]
[null,null,null,null,null," ",null,null,0,0,0,0,"",""]
[null,null,null,null,null," ",null,null,0,0,0,0,"",""]
[null,null,null,null,null," ",null,null,0,0,0,0,"",""]
[null,null,null,null,null," ",null,null,0,0,0,0,"",""]
[null,null,null,null,null," ",null,null,0,0,0,0,"",""]
[null,null,null,null,null," ",null,null,0,0,0,0,"",""]
[null,null,null,null,null," ",null,null,0,0,0,0,"",""]
[null,null,null,null,null," ",null,null,0,0,0,0,"",""]
[null,null,null,null,null," ",null,null,0,0,0,0,"",""]
[null,null,null,null,null," ",null,null,0,0,0,0,"",""]
[null,null,null,null,null," ",null,null,0,0,0,0,"",""]
[null,null,null,null,null," ",null,null,0,0,0,0,"",""]
[null,null,null,null,null," ",null,null,0,0,0,0,"",""]
[null,null,null,null,null," ",null,null,0,0,0,0,"",""]
[null,null,null,null,null," ",null,null,0,0,0,0,"",""]
[null,null,null,null,null," ",null,null,0,0,0,0,"",""]
[null,null,null,null,null," ",null,null,0,0,0,0,"",""]
[null,null,null,null,null," ",null,null,0,0,0,0,"",""]
[null,null,null,null,null," ",null,null,0,0,0,0,"",""]
[null,null,null,null,null," ",null,null,0,0,0,0,"",""]
[null,null,null,null,null," ",null,null,0,0,0,0,"",""]
[null,null,null,null,null," ",null,null,0,0,0,0,"",""]
[null,null,null,null,null," ",null,null,0,0,0,0,"",""]
[null,null,null,null,null," ",null,null,0,0,0,0,"",""]
[null,null,null,null,null," ",null,null,0,0,0,0,"",""]
[null,null,null,null,null," ",null,null,{"$f":"IF(H9991=0,0,D9991)","v":0},{"$f":"IF(H9991<>\"p\",0,D9991)","v":0},{"$f":"IF(H9991=0,0,E9991)","v":0},{"$f":"IF(H9991<>\"p\",0,E9991)","v":0},"",""]
[null,null,null,null,null," ",null,null,0,0,0,0,"",""]
[null,null,null,null,null," ",null,null,0,0,0,0,"",""]
[null,null,null,null,null," ",null,null,0,0,0,0,"",""]
[null,null,null,null,null," ",null,null,0,0,0,0,"",""]
[null,null,null,null,null," ",null,null,0,0,0,0,"",""]
[null,null,null,null,null," ",null,null,0,0,0,0,"",""]
[null,null,null,null,null," ",null,null,0,0,0,0,"",""]
[null,null,null,null,null,{"$f":"IF(D9999-E9999=0,\" \",F9998+D9999-E9999)","v":" "},null,null,0,0,0,0,"",""]
[null,null,null,null,null," ",null,null,0,0,0,0,{"$f":"IF(A10000=0,\"\",YEAR(A10000))","v":""},{"$f":"IF(A10000=0,\"\",MONTH(A10000))","v":""}]
[null,null,null,null,null," ",null,null,0,0,0,0,"",""]
[null,null,null,null,null," ",null,null,0,0,0,0,"",""]
[null,null,null,null,null," ",null,null,0,0,0,0,"",""]
[null,null,null,null,null," ",null,null,0,0,0,0,"",""]
[null,null,null,null,null," ",null,null,0,0,0,0,"",""]
[null,null,null,null,null," ",null,null,0,0,0,0,"",""]

{"sheet":"Feuil2","index":1,"n_rows":32,"n_cols":6,"rows_kept":32,"cut":false,"hidden":false,"merged":[]}
["Crédit",null,null,"Par Type","Cumul Recettes","Cumul Dépenses"]
["Salaire",null,null,"Salaire",{"$f":"SUMIF('Compte Joint'!$G$6:$G$1003,$A$2:$A$8,'Compte Joint'!$D$6:$D$1003)","v":1800},{"$f":"SUMIF('Compte Joint'!$G$6:$G$1003,A11:A15,'Compte Joint'!$E$6:$E$1003)","v":0}]
["Kdo",null,null,"Kdo",{"$f":"SUMIF('Compte Joint'!$G$6:$G$1003,$A$2:$A$8,'Compte Joint'!$D$6:$D$1003)","v":0},{"$f":"SUMIF('Compte Joint'!$G$6:$G$1003,A12:A16,'Compte Joint'!$E$6:$E$1003)","v":0}]
["Santé",null,null,"Santé",{"$f":"SUMIF('Compte Joint'!$G$6:$G$1003,$A$2:$A$8,'Compte Joint'!$D$6:$D$1003)","v":10},{"$f":"SUMIF('Compte Joint'!$G$6:$G$1003,A13:A17,'Compte Joint'!$E$6:$E$1003)","v":0}]
["Jeux",null,null,"Jeux",{"$f":"SUMIF('Compte Joint'!$G$6:$G$1003,$A$2:$A$8,'Compte Joint'!$D$6:$D$1003)","v":30},{"$f":"SUMIF('Compte Joint'!$G$6:$G$1003,A14:A18,'Compte Joint'!$E$6:$E$1003)","v":0}]
["Remb",null,null,"Remb",{"$f":"SUMIF('Compte Joint'!$G$6:$G$1003,$A$2:$A$8,'Compte Joint'!$D$6:$D$1003)","v":0},{"$f":"SUMIF('Compte Joint'!$G$6:$G$1003,A15:A19,'Compte Joint'!$E$6:$E$1003)","v":0}]
[null,null,null,null,{"$f":"SUMIF('Compte Joint'!$G$6:$G$1003,$A$2:$A$8,'Compte Joint'!$D$6:$D$1003)","v":0},{"$f":"SUMIF('Compte Joint'!$G$6:$G$1003,A16:A20,'Compte Joint'!$E$6:$E$1003)","v":0}]
[null,null,null,null,{"$f":"SUMIF('Compte Joint'!$G$6:$G$1003,$A$2:$A$8,'Compte Joint'!$D$6:$D$1003)","v":0}]
["Dépenses",null,null,"Alimentation",null,{"$f":"SUMIF('Compte Joint'!$G$6:$G$1003,$A$10:$A$26,'Compte Joint'!$E$6:$E$1003)","v":0}]
["Alimentation",null,null,"Auto",null,{"$f":"SUMIF('Compte Joint'!$G$6:$G$1003,$A$10:$A$26,'Compte Joint'!$E$6:$E$1003)","v":240}]
["Auto",null,null,"Eau",null,{"$f":"SUMIF('Compte Joint'!$G$6:$G$1003,$A$10:$A$26,'Compte Joint'!$E$6:$E$1003)","v":500}]
["Eau",null,null,"Electricite",null,{"$f":"SUMIF('Compte Joint'!$G$6:$G$1003,$A$10:$A$26,'Compte Joint'!$E$6:$E$1003)","v":0}]
["Electricite",null,null,"Equipements Maison",null,{"$f":"SUMIF('Compte Joint'!$G$6:$G$1003,$A$10:$A$26,'Compte Joint'!$E$6:$E$1003)","v":0}]
["Equipements Maison",null,null,"Especes",null,{"$f":"SUMIF('Compte Joint'!$G$6:$G$1003,$A$10:$A$26,'Compte Joint'!$E$6:$E$1003)","v":1000}]
["Especes",null,null,"Gaz",null,{"$f":"SUMIF('Compte Joint'!$G$6:$G$1003,$A$10:$A$26,'Compte Joint'!$E$6:$E$1003)","v":0}]
["Gaz",null,null,"Habillement",null,{"$f":"SUMIF('Compte Joint'!$G$6:$G$1003,$A$10:$A$26,'Compte Joint'!$E$6:$E$1003)","v":0}]
["Habillement",null,null,"Impots",null,{"$f":"SUMIF('Compte Joint'!$G$6:$G$1003,$A$10:$A$26,'Compte Joint'!$E$6:$E$1003)","v":0}]
["Impots",null,null,"Kdo",null,{"$f":"SUMIF('Compte Joint'!$G$6:$G$1003,$A$10:$A$26,'Compte Joint'!$E$6:$E$1003)","v":0}]
["Kdo",null,null,"Loisirs",null,{"$f":"SUMIF('Compte Joint'!$G$6:$G$1003,$A$10:$A$26,'Compte Joint'!$E$6:$E$1003)","v":20}]
["Loisirs",null,null,"Loyer",null,{"$f":"SUMIF('Compte Joint'!$G$6:$G$1003,$A$10:$A$26,'Compte Joint'!$E$6:$E$1003)","v":10}]
["Loyer",null,null,"Santé",null,{"$f":"SUMIF('Compte Joint'!$G$6:$G$1003,$A$10:$A$26,'Compte Joint'!$E$6:$E$1003)","v":0}]
["Santé"]
[]
[]
[]
[]
["pointage"]
["P"]
[]
["n° Chequier"]
["xxxxxxx1"]
["CB"]

{"sheet":"Feuil3","index":2,"n_rows":0,"n_cols":0,"rows_kept":0,"cut":false,"hidden":false,"merged":[]}